Body Name,Body,Date,Department,Beneficiary,Summary of Purpose (SeRCOP),Amount SUM,Merchant Code,Transaction Number,Supplier ID
Sandwell Metropolitan Borough Council,http://www.sandwell.gov.uk/info/200202/performance_and_spending/1079/payments_over_500,01-Jul-2023,Adults Social Care Capital,DOLPHIN LIFTS MIDLANDS LTD,Adults Social Care Capital,1355.09,Deferred Charges/Grant Payments,2324P04_00001,123852
Sandwell Metropolitan Borough Council,http://www.sandwell.gov.uk/info/200202/performance_and_spending/1079/payments_over_500,01-Jul-2023,Adults Social Care Capital,DOLPHIN LIFTS MIDLANDS LTD,Adults Social Care Capital,1614.66,Deferred Charges/Grant Payments,2324P04_00002,123852
Sandwell Metropolitan Borough Council,http://www.sandwell.gov.uk/info/200202/performance_and_spending/1079/payments_over_500,01-Jul-2023,Adults Social Care Capital,LIQUIDLOGIC LIMITED,Adults Social Care Capital,2546.85,ICT ,2324P04_00003,83167
Sandwell Metropolitan Borough Council,http://www.sandwell.gov.uk/info/200202/performance_and_spending/1079/payments_over_500,01-Jul-2023,Adults Social Care Capital,LIQUIDLOGIC LIMITED,Adults Social Care Capital,5457.53,ICT ,2324P04_00004,83167
Sandwell Metropolitan Borough Council,http://www.sandwell.gov.uk/info/200202/performance_and_spending/1079/payments_over_500,01-Jul-2023,Adults Social Care Capital,VINCI CONSTRUCTION LTD,Adults Social Care Capital,5751.96,Deferred Charges/Grant Payments,2324P04_00005,36361
Sandwell Metropolitan Borough Council,http://www.sandwell.gov.uk/info/200202/performance_and_spending/1079/payments_over_500,01-Jul-2023,Adults Social Care Capital,DOLPHIN LIFTS MIDLANDS LTD,Adults Social Care Capital,6021.66,Deferred Charges/Grant Payments,2324P04_00006,123852
Sandwell Metropolitan Borough Council,http://www.sandwell.gov.uk/info/200202/performance_and_spending/1079/payments_over_500,01-Jul-2023,Adults Social Care Capital,AXIS EUROPE PLC ,Adults Social Care Capital,12174.36,Deferred Charges/Grant Payments,2324P04_00007,64946
Sandwell Metropolitan Borough Council,http://www.sandwell.gov.uk/info/200202/performance_and_spending/1079/payments_over_500,01-Jul-2023,Adults Social Care Capital,AXIS EUROPE PLC ,Adults Social Care Capital,12462.77,Deferred Charges/Grant Payments,2324P04_00008,64946
Sandwell Metropolitan Borough Council,http://www.sandwell.gov.uk/info/200202/performance_and_spending/1079/payments_over_500,17-Jul-2023,Adults Social Care Capital,PR PROPERTY MAINTENANCE,Adults Social Care Capital,23694.93,Deferred Charges/Grant Payments,2324P04_00009,33836
Sandwell Metropolitan Borough Council,http://www.sandwell.gov.uk/info/200202/performance_and_spending/1079/payments_over_500,01-Jul-2023,Adults Social Care Capital,HOME DESIGN,Adults Social Care Capital,3399.00,Deferred Charges/Grant Payments,2324P04_00010,141847
Sandwell Metropolitan Borough Council,http://www.sandwell.gov.uk/info/200202/performance_and_spending/1079/payments_over_500,01-Jul-2023,Adults Social Care Capital,HOME DESIGN,Adults Social Care Capital,7616.85,Deferred Charges/Grant Payments,2324P04_00011,141847
Sandwell Metropolitan Borough Council,http://www.sandwell.gov.uk/info/200202/performance_and_spending/1079/payments_over_500,01-Jul-2023,Adults Social Care Capital,HOME DESIGN,Adults Social Care Capital,9281.85,Deferred Charges/Grant Payments,2324P04_00012,141847
Sandwell Metropolitan Borough Council,http://www.sandwell.gov.uk/info/200202/performance_and_spending/1079/payments_over_500,01-Jul-2023,Adults Social Care Capital,HOME DESIGN,Adults Social Care Capital,10000.00,Deferred Charges/Grant Payments,2324P04_00013,141847
Sandwell Metropolitan Borough Council,http://www.sandwell.gov.uk/info/200202/performance_and_spending/1079/payments_over_500,02-Jul-2023,Adults Social Care Capital,TDF DESIGN LIMITED,Adults Social Care Capital,19000.00,Deferred Charges/Grant Payments,2324P04_00014,10320
Sandwell Metropolitan Borough Council,http://www.sandwell.gov.uk/info/200202/performance_and_spending/1079/payments_over_500,04-Jul-2023,Adults Social Care Capital,DESIGN SYNTAX LIMITED,Adults Social Care Capital,19302.50,Deferred Charges/Grant Payments,2324P04_00015,106226
Sandwell Metropolitan Borough Council,http://www.sandwell.gov.uk/info/200202/performance_and_spending/1079/payments_over_500,01-Jul-2023,Adults Social Care Capital,DESIGN SYNTAX LIMITED,Adults Social Care Capital,21628.20,Deferred Charges/Grant Payments,2324P04_00016,106226
Sandwell Metropolitan Borough Council,http://www.sandwell.gov.uk/info/200202/performance_and_spending/1079/payments_over_500,01-Jul-2023,Adults Social Care Capital,TDF DESIGN LIMITED,Adults Social Care Capital,23372.86,Deferred Charges/Grant Payments,2324P04_00017,10320
Sandwell Metropolitan Borough Council,http://www.sandwell.gov.uk/info/200202/performance_and_spending/1079/payments_over_500,11-Jul-2023,Adults Social Care Capital,LIFT & ENGINEERING SERVICES LTD,Adults Social Care Capital,1313.90,"CIP - New Construction,Conversion, Enhancement & Reno",2324P04_00018,77003962
Sandwell Metropolitan Borough Council,http://www.sandwell.gov.uk/info/200202/performance_and_spending/1079/payments_over_500,20-Jul-2023,Adults Social Care Capital,LIFT & ENGINEERING SERVICES LTD,Adults Social Care Capital,6915.56,"CIP - New Construction,Conversion, Enhancement & Reno",2324P04_00019,77003962
Sandwell Metropolitan Borough Council,http://www.sandwell.gov.uk/info/200202/performance_and_spending/1079/payments_over_500,01-Jul-2023,Childrens Services,WEST MIDLANDS TRAVEL LIMITED,Childrens Services,-1286.52,Public Transport,2324P04_00020,01736688
Sandwell Metropolitan Borough Council,http://www.sandwell.gov.uk/info/200202/performance_and_spending/1079/payments_over_500,01-Jul-2023,Childrens Services,CROCKETTS COMMUNITY PRIMARY SCHOOL,Childrens Services,500.00,Grants,2324P04_00021,01768821
Sandwell Metropolitan Borough Council,http://www.sandwell.gov.uk/info/200202/performance_and_spending/1079/payments_over_500,17-Jul-2023,Childrens Services,DIRECTION TRAINING & MANAGEMENT,Childrens Services,500.00,Externally Purchased Professional Services ,2324P04_00022,01727395
Sandwell Metropolitan Borough Council,http://www.sandwell.gov.uk/info/200202/performance_and_spending/1079/payments_over_500,01-Jul-2023,Childrens Services,FERNDALE PRIMARY SCHOOL,Childrens Services,500.00,Grants,2324P04_00023,11562
Sandwell Metropolitan Borough Council,http://www.sandwell.gov.uk/info/200202/performance_and_spending/1079/payments_over_500,01-Jul-2023,Childrens Services,FERNDALE PRIMARY SCHOOL,Childrens Services,500.00,Grants,2324P04_00024,11562
Sandwell Metropolitan Borough Council,http://www.sandwell.gov.uk/info/200202/performance_and_spending/1079/payments_over_500,01-Jul-2023,Childrens Services,HARGATE PRIMARY SCHOOL,Childrens Services,500.00,Grants,2324P04_00025,04010481
Sandwell Metropolitan Borough Council,http://www.sandwell.gov.uk/info/200202/performance_and_spending/1079/payments_over_500,01-Jul-2023,Childrens Services,HARGATE PRIMARY SCHOOL,Childrens Services,500.00,Grants,2324P04_00026,04010481
Sandwell Metropolitan Borough Council,http://www.sandwell.gov.uk/info/200202/performance_and_spending/1079/payments_over_500,01-Jul-2023,Childrens Services,HARGATE PRIMARY SCHOOL,Childrens Services,500.00,Grants,2324P04_00027,04010481
Sandwell Metropolitan Borough Council,http://www.sandwell.gov.uk/info/200202/performance_and_spending/1079/payments_over_500,28-Jul-2023,Childrens Services,NEW BEGINNINGS COMMUNITY,Childrens Services,500.00,Externally Purchased Professional Services ,2324P04_00028,155886
Sandwell Metropolitan Borough Council,http://www.sandwell.gov.uk/info/200202/performance_and_spending/1079/payments_over_500,01-Jul-2023,Childrens Services,SKILLS WORK AND ENTERPRISE DEVELOPMENT AGENCY LTD,Childrens Services,500.00,Hire of Facilities,2324P04_00029,5092
Sandwell Metropolitan Borough Council,http://www.sandwell.gov.uk/info/200202/performance_and_spending/1079/payments_over_500,01-Jul-2023,Childrens Services,WHITECREST PRIMARY SCHOOL  ,Childrens Services,500.00,Grants,2324P04_00030,38087
Sandwell Metropolitan Borough Council,http://www.sandwell.gov.uk/info/200202/performance_and_spending/1079/payments_over_500,01-Jul-2023,Childrens Services,NEWAVE LTD,Childrens Services,505.62,Agency Staff,2324P04_00031,101666
Sandwell Metropolitan Borough Council,http://www.sandwell.gov.uk/info/200202/performance_and_spending/1079/payments_over_500,10-Jul-2023,Childrens Services,BIDFOOD,Childrens Services,522.85,Catering Provisions,2324P04_00032,164984
Sandwell Metropolitan Borough Council,http://www.sandwell.gov.uk/info/200202/performance_and_spending/1079/payments_over_500,09-Jul-2023,Childrens Services,TOTALENERGIES GAS & POWER LTD,Childrens Services,531.44,Electricity,2324P04_00033,107605
Sandwell Metropolitan Borough Council,http://www.sandwell.gov.uk/info/200202/performance_and_spending/1079/payments_over_500,01-Jul-2023,Childrens Services,GRESHAM OFFICE FURNITURE LTD,Childrens Services,532.00,Equipment & Furniture ,2324P04_00034,93465
Sandwell Metropolitan Borough Council,http://www.sandwell.gov.uk/info/200202/performance_and_spending/1079/payments_over_500,01-Jul-2023,Childrens Services,TOTALENERGIES GAS & POWER LTD,Childrens Services,535.52,Electricity,2324P04_00035,107605
Sandwell Metropolitan Borough Council,http://www.sandwell.gov.uk/info/200202/performance_and_spending/1079/payments_over_500,02-Jul-2023,Childrens Services,BCH PROPERTY LIMITED,Childrens Services,541.71,Rents,2324P04_00036,01011861
Sandwell Metropolitan Borough Council,http://www.sandwell.gov.uk/info/200202/performance_and_spending/1079/payments_over_500,01-Jul-2023,Childrens Services,DEBORAH UDAKIS CONSULTANCY LTD,Childrens Services,550.00,Externally Purchased Professional Services ,2324P04_00037,139858
Sandwell Metropolitan Borough Council,http://www.sandwell.gov.uk/info/200202/performance_and_spending/1079/payments_over_500,01-Jul-2023,Childrens Services,DEBORAH UDAKIS CONSULTANCY LTD,Childrens Services,550.00,Externally Purchased Professional Services ,2324P04_00038,139858
Sandwell Metropolitan Borough Council,http://www.sandwell.gov.uk/info/200202/performance_and_spending/1079/payments_over_500,01-Jul-2023,Childrens Services,CASTELL HOWELL FOODS LTD,Childrens Services,564.15,Catering Provisions,2324P04_00039,163660
Sandwell Metropolitan Borough Council,http://www.sandwell.gov.uk/info/200202/performance_and_spending/1079/payments_over_500,10-Jul-2023,Childrens Services,APD PRINT & DESIGN,Childrens Services,570.00,"Printing, Stationery & General Office Expenses",2324P04_00040,49454
Sandwell Metropolitan Borough Council,http://www.sandwell.gov.uk/info/200202/performance_and_spending/1079/payments_over_500,01-Jul-2023,Childrens Services,TOTALENERGIES GAS & POWER LTD,Childrens Services,575.53,Electricity,2324P04_00041,107605
Sandwell Metropolitan Borough Council,http://www.sandwell.gov.uk/info/200202/performance_and_spending/1079/payments_over_500,01-Jul-2023,Childrens Services,TOTALENERGIES GAS & POWER LTD,Childrens Services,576.30,Electricity,2324P04_00042,107605
Sandwell Metropolitan Borough Council,http://www.sandwell.gov.uk/info/200202/performance_and_spending/1079/payments_over_500,03-Jul-2023,Childrens Services,BIDFOOD,Childrens Services,579.12,Catering Provisions,2324P04_00043,164984
Sandwell Metropolitan Borough Council,http://www.sandwell.gov.uk/info/200202/performance_and_spending/1079/payments_over_500,01-Jul-2023,Childrens Services,TOTALENERGIES GAS & POWER LTD,Childrens Services,584.79,Electricity,2324P04_00044,107605
Sandwell Metropolitan Borough Council,http://www.sandwell.gov.uk/info/200202/performance_and_spending/1079/payments_over_500,01-Jul-2023,Childrens Services,TOTALENERGIES GAS & POWER LTD,Childrens Services,589.42,Electricity,2324P04_00045,107605
Sandwell Metropolitan Borough Council,http://www.sandwell.gov.uk/info/200202/performance_and_spending/1079/payments_over_500,19-Jul-2023,Childrens Services,UNITE FIRE & SECURITY COMPANY LTD,Childrens Services,594.60,Security,2324P04_00046,148200
Sandwell Metropolitan Borough Council,http://www.sandwell.gov.uk/info/200202/performance_and_spending/1079/payments_over_500,01-Jul-2023,Childrens Services,SITEWATCH FIRE AND SURVEILLANCE LIMITED,Childrens Services,599.36,Security,2324P04_00047,55288
Sandwell Metropolitan Borough Council,http://www.sandwell.gov.uk/info/200202/performance_and_spending/1079/payments_over_500,28-Jul-2023,Childrens Services,NEW BEGINNINGS COMMUNITY,Childrens Services,600.00,Externally Purchased Professional Services ,2324P04_00048,155886
Sandwell Metropolitan Borough Council,http://www.sandwell.gov.uk/info/200202/performance_and_spending/1079/payments_over_500,28-Jul-2023,Childrens Services,NEW BEGINNINGS COMMUNITY,Childrens Services,600.00,Externally Purchased Professional Services ,2324P04_00049,155886
Sandwell Metropolitan Borough Council,http://www.sandwell.gov.uk/info/200202/performance_and_spending/1079/payments_over_500,28-Jul-2023,Childrens Services,NEW BEGINNINGS COMMUNITY,Childrens Services,600.00,Externally Purchased Professional Services ,2324P04_00050,155886
Sandwell Metropolitan Borough Council,http://www.sandwell.gov.uk/info/200202/performance_and_spending/1079/payments_over_500,01-Jul-2023,Childrens Services,BIDFOOD,Childrens Services,602.08,Catering Provisions,2324P04_00051,164984
Sandwell Metropolitan Borough Council,http://www.sandwell.gov.uk/info/200202/performance_and_spending/1079/payments_over_500,01-Jul-2023,Childrens Services,TOTALENERGIES GAS & POWER LTD,Childrens Services,602.25,Electricity,2324P04_00052,107605
Sandwell Metropolitan Borough Council,http://www.sandwell.gov.uk/info/200202/performance_and_spending/1079/payments_over_500,12-Jul-2023,Childrens Services,NEWAVE LTD,Childrens Services,606.30,Agency Staff,2324P04_00053,101666
Sandwell Metropolitan Borough Council,http://www.sandwell.gov.uk/info/200202/performance_and_spending/1079/payments_over_500,01-Jul-2023,Childrens Services,TOTALENERGIES GAS & POWER LTD,Childrens Services,611.51,Electricity,2324P04_00054,107605
Sandwell Metropolitan Borough Council,http://www.sandwell.gov.uk/info/200202/performance_and_spending/1079/payments_over_500,01-Jul-2023,Childrens Services,BUFFET EXPRESS,Childrens Services,617.20,Catering Provisions,2324P04_00055,01730518
Sandwell Metropolitan Borough Council,http://www.sandwell.gov.uk/info/200202/performance_and_spending/1079/payments_over_500,01-Jul-2023,Childrens Services,WATER PLUS SELECT LIMITED,Childrens Services,617.63,Water Services,2324P04_00056,129644
Sandwell Metropolitan Borough Council,http://www.sandwell.gov.uk/info/200202/performance_and_spending/1079/payments_over_500,01-Jul-2023,Childrens Services,LEARNPLAY FOUNDATION LTD,Childrens Services,623.61,Externally Purchased Professional Services ,2324P04_00057,86525
Sandwell Metropolitan Borough Council,http://www.sandwell.gov.uk/info/200202/performance_and_spending/1079/payments_over_500,17-Jul-2023,Childrens Services,NEWAVE LTD,Childrens Services,629.64,Agency Staff,2324P04_00058,101666
Sandwell Metropolitan Borough Council,http://www.sandwell.gov.uk/info/200202/performance_and_spending/1079/payments_over_500,01-Jul-2023,Childrens Services,CUSTODIAN GROUP LTD,Childrens Services,630.00,Rents,2324P04_00059,151637
Sandwell Metropolitan Borough Council,http://www.sandwell.gov.uk/info/200202/performance_and_spending/1079/payments_over_500,01-Jul-2023,Childrens Services,CUSTODIAN GROUP LTD,Childrens Services,630.00,Rents,2324P04_00060,151637
Sandwell Metropolitan Borough Council,http://www.sandwell.gov.uk/info/200202/performance_and_spending/1079/payments_over_500,01-Jul-2023,Childrens Services,CUSTODIAN GROUP LTD,Childrens Services,630.00,Rents,2324P04_00061,151637
Sandwell Metropolitan Borough Council,http://www.sandwell.gov.uk/info/200202/performance_and_spending/1079/payments_over_500,01-Jul-2023,Childrens Services,CUSTODIAN GROUP LTD,Childrens Services,630.00,Rents,2324P04_00062,151637
Sandwell Metropolitan Borough Council,http://www.sandwell.gov.uk/info/200202/performance_and_spending/1079/payments_over_500,01-Jul-2023,Childrens Services,CUSTODIAN GROUP LTD,Childrens Services,630.00,Rents,2324P04_00063,151637
Sandwell Metropolitan Borough Council,http://www.sandwell.gov.uk/info/200202/performance_and_spending/1079/payments_over_500,01-Jul-2023,Childrens Services,CUSTODIAN GROUP LTD,Childrens Services,630.00,Rents,2324P04_00064,151637
Sandwell Metropolitan Borough Council,http://www.sandwell.gov.uk/info/200202/performance_and_spending/1079/payments_over_500,12-Jul-2023,Childrens Services,CUSTODIAN GROUP LTD,Childrens Services,630.00,Rents,2324P04_00065,151637
Sandwell Metropolitan Borough Council,http://www.sandwell.gov.uk/info/200202/performance_and_spending/1079/payments_over_500,12-Jul-2023,Childrens Services,CUSTODIAN GROUP LTD,Childrens Services,630.00,Rents,2324P04_00066,151637
Sandwell Metropolitan Borough Council,http://www.sandwell.gov.uk/info/200202/performance_and_spending/1079/payments_over_500,12-Jul-2023,Childrens Services,CUSTODIAN GROUP LTD,Childrens Services,630.00,Rents,2324P04_00067,151637
Sandwell Metropolitan Borough Council,http://www.sandwell.gov.uk/info/200202/performance_and_spending/1079/payments_over_500,12-Jul-2023,Childrens Services,CUSTODIAN GROUP LTD,Childrens Services,630.00,Rents,2324P04_00068,151637
Sandwell Metropolitan Borough Council,http://www.sandwell.gov.uk/info/200202/performance_and_spending/1079/payments_over_500,12-Jul-2023,Childrens Services,CUSTODIAN GROUP LTD,Childrens Services,630.00,Rents,2324P04_00069,151637
Sandwell Metropolitan Borough Council,http://www.sandwell.gov.uk/info/200202/performance_and_spending/1079/payments_over_500,12-Jul-2023,Childrens Services,CUSTODIAN GROUP LTD,Childrens Services,630.00,Rents,2324P04_00070,151637
Sandwell Metropolitan Borough Council,http://www.sandwell.gov.uk/info/200202/performance_and_spending/1079/payments_over_500,12-Jul-2023,Childrens Services,CUSTODIAN GROUP LTD,Childrens Services,630.00,Rents,2324P04_00071,151637
Sandwell Metropolitan Borough Council,http://www.sandwell.gov.uk/info/200202/performance_and_spending/1079/payments_over_500,12-Jul-2023,Childrens Services,CUSTODIAN GROUP LTD,Childrens Services,630.00,Rents,2324P04_00072,151637
Sandwell Metropolitan Borough Council,http://www.sandwell.gov.uk/info/200202/performance_and_spending/1079/payments_over_500,12-Jul-2023,Childrens Services,CUSTODIAN GROUP LTD,Childrens Services,630.00,Rents,2324P04_00073,151637
Sandwell Metropolitan Borough Council,http://www.sandwell.gov.uk/info/200202/performance_and_spending/1079/payments_over_500,12-Jul-2023,Childrens Services,CUSTODIAN GROUP LTD,Childrens Services,630.00,Rents,2324P04_00074,151637
Sandwell Metropolitan Borough Council,http://www.sandwell.gov.uk/info/200202/performance_and_spending/1079/payments_over_500,01-Jul-2023,Childrens Services,CUSTODIAN GROUP LTD,Childrens Services,630.00,Rents,2324P04_00075,151637
Sandwell Metropolitan Borough Council,http://www.sandwell.gov.uk/info/200202/performance_and_spending/1079/payments_over_500,01-Jul-2023,Childrens Services,CUSTODIAN GROUP LTD,Childrens Services,630.00,Rents,2324P04_00076,151637
Sandwell Metropolitan Borough Council,http://www.sandwell.gov.uk/info/200202/performance_and_spending/1079/payments_over_500,01-Jul-2023,Childrens Services,CUSTODIAN GROUP LTD,Childrens Services,630.00,Rents,2324P04_00077,151637
Sandwell Metropolitan Borough Council,http://www.sandwell.gov.uk/info/200202/performance_and_spending/1079/payments_over_500,01-Jul-2023,Childrens Services,CUSTODIAN GROUP LTD,Childrens Services,630.00,Rents,2324P04_00078,151637
Sandwell Metropolitan Borough Council,http://www.sandwell.gov.uk/info/200202/performance_and_spending/1079/payments_over_500,01-Jul-2023,Childrens Services,CUSTODIAN GROUP LTD,Childrens Services,630.00,Rents,2324P04_00079,151637
Sandwell Metropolitan Borough Council,http://www.sandwell.gov.uk/info/200202/performance_and_spending/1079/payments_over_500,01-Jul-2023,Childrens Services,EARLS GYMNASTICS CLUB,Childrens Services,630.00,Externally Purchased Professional Services ,2324P04_00080,96950
Sandwell Metropolitan Borough Council,http://www.sandwell.gov.uk/info/200202/performance_and_spending/1079/payments_over_500,01-Jul-2023,Childrens Services,TOTALENERGIES GAS & POWER LTD,Childrens Services,633.23,Electricity,2324P04_00081,107605
Sandwell Metropolitan Borough Council,http://www.sandwell.gov.uk/info/200202/performance_and_spending/1079/payments_over_500,02-Jul-2023,Childrens Services,BCH PROPERTY LIMITED,Childrens Services,641.76,Rents,2324P04_00082,01011861
Sandwell Metropolitan Borough Council,http://www.sandwell.gov.uk/info/200202/performance_and_spending/1079/payments_over_500,27-Jul-2023,Childrens Services,WATER PLUS SELECT LIMITED,Childrens Services,648.51,Water Services,2324P04_00083,129644
Sandwell Metropolitan Borough Council,http://www.sandwell.gov.uk/info/200202/performance_and_spending/1079/payments_over_500,01-Jul-2023,Childrens Services,BIDFOOD,Childrens Services,649.68,Catering Provisions,2324P04_00084,164984
Sandwell Metropolitan Borough Council,http://www.sandwell.gov.uk/info/200202/performance_and_spending/1079/payments_over_500,01-Jul-2023,Childrens Services,BIDFOOD,Childrens Services,687.66,Catering Provisions,2324P04_00085,164984
Sandwell Metropolitan Borough Council,http://www.sandwell.gov.uk/info/200202/performance_and_spending/1079/payments_over_500,07-Jul-2023,Childrens Services,AMS SANDERSON LTD T/A AMS INTERNATIONAL,Childrens Services,699.00,Materials & Consumables,2324P04_00086,165702
Sandwell Metropolitan Borough Council,http://www.sandwell.gov.uk/info/200202/performance_and_spending/1079/payments_over_500,01-Jul-2023,Childrens Services,NEWVISION PROMOTIONS LTD,Childrens Services,700.00,"Printing, Stationery & General Office Expenses",2324P04_00087,01423582
Sandwell Metropolitan Borough Council,http://www.sandwell.gov.uk/info/200202/performance_and_spending/1079/payments_over_500,13-Jul-2023,Childrens Services,PAUL STRINGER,Childrens Services,700.00,Externally Purchased Professional Services ,2324P04_00088,155655
Sandwell Metropolitan Borough Council,http://www.sandwell.gov.uk/info/200202/performance_and_spending/1079/payments_over_500,12-Jul-2023,Childrens Services,BIDFOOD,Childrens Services,714.29,Catering Provisions,2324P04_00089,164984
Sandwell Metropolitan Borough Council,http://www.sandwell.gov.uk/info/200202/performance_and_spending/1079/payments_over_500,12-Jul-2023,Childrens Services,NEWAVE LTD,Childrens Services,742.50,Agency Staff,2324P04_00090,101666
Sandwell Metropolitan Borough Council,http://www.sandwell.gov.uk/info/200202/performance_and_spending/1079/payments_over_500,28-Jul-2023,Childrens Services,CLB MUSIC SERVICES LTD,Childrens Services,750.00,Externally Purchased Professional Services ,2324P04_00091,163924
Sandwell Metropolitan Borough Council,http://www.sandwell.gov.uk/info/200202/performance_and_spending/1079/payments_over_500,07-Jul-2023,Childrens Services,CYBER MEDIA SOLUTIONS LTD,Childrens Services,755.00,Licences,2324P04_00092,114293
Sandwell Metropolitan Borough Council,http://www.sandwell.gov.uk/info/200202/performance_and_spending/1079/payments_over_500,01-Jul-2023,Childrens Services,TOTALENERGIES GAS & POWER LTD,Childrens Services,777.20,Gas,2324P04_00093,107605
Sandwell Metropolitan Borough Council,http://www.sandwell.gov.uk/info/200202/performance_and_spending/1079/payments_over_500,01-Jul-2023,Childrens Services,LOCAL GOVERMENT TRAINING,Childrens Services,780.00,Externally Purchased Professional Services ,2324P04_00094,162678
Sandwell Metropolitan Borough Council,http://www.sandwell.gov.uk/info/200202/performance_and_spending/1079/payments_over_500,28-Jul-2023,Childrens Services,EAGLE DESIGN LIMITED,Childrens Services,800.00,Advertising & Publicity,2324P04_00095,1932
Sandwell Metropolitan Borough Council,http://www.sandwell.gov.uk/info/200202/performance_and_spending/1079/payments_over_500,01-Jul-2023,Childrens Services,GATEWAY QUALIFICATIONS,Childrens Services,800.00,Externally Purchased Professional Services ,2324P04_00096,151038
Sandwell Metropolitan Borough Council,http://www.sandwell.gov.uk/info/200202/performance_and_spending/1079/payments_over_500,03-Jul-2023,Childrens Services,BUFFET EXPRESS,Childrens Services,822.72,Catering Provisions,2324P04_00097,01730518
Sandwell Metropolitan Borough Council,http://www.sandwell.gov.uk/info/200202/performance_and_spending/1079/payments_over_500,01-Jul-2023,Childrens Services,RENAISSANCE CREATIVE DESIGN & PRINT LTD,Childrens Services,840.00,SH Payments,2324P04_00098,97376
Sandwell Metropolitan Borough Council,http://www.sandwell.gov.uk/info/200202/performance_and_spending/1079/payments_over_500,01-Jul-2023,Childrens Services,THOMAS CHARLES FACILITIES & MAINTENANCE LTD,Childrens Services,858.00,Contract Cleaning,2324P04_00099,114170
Sandwell Metropolitan Borough Council,http://www.sandwell.gov.uk/info/200202/performance_and_spending/1079/payments_over_500,01-Jul-2023,Childrens Services,TOTALENERGIES GAS & POWER LTD,Childrens Services,862.45,Electricity,2324P04_00100,107605
Sandwell Metropolitan Borough Council,http://www.sandwell.gov.uk/info/200202/performance_and_spending/1079/payments_over_500,01-Jul-2023,Childrens Services,LEARNING INTO EMPLOYMENT ACADEMY LTD,Childrens Services,873.83,Externally Purchased Professional Services ,2324P04_00101,147427
Sandwell Metropolitan Borough Council,http://www.sandwell.gov.uk/info/200202/performance_and_spending/1079/payments_over_500,12-Jul-2023,Childrens Services,LEARNING INTO EMPLOYMENT ACADEMY LTD,Childrens Services,873.83,Externally Purchased Professional Services ,2324P04_00102,147427
Sandwell Metropolitan Borough Council,http://www.sandwell.gov.uk/info/200202/performance_and_spending/1079/payments_over_500,12-Jul-2023,Childrens Services,LEARNING INTO EMPLOYMENT ACADEMY LTD,Childrens Services,873.83,Externally Purchased Professional Services ,2324P04_00103,147427
Sandwell Metropolitan Borough Council,http://www.sandwell.gov.uk/info/200202/performance_and_spending/1079/payments_over_500,01-Jul-2023,Childrens Services,FIRST RESPONSE (FIRST AID) LTD,Childrens Services,875.00,Externally Purchased Professional Services ,2324P04_00104,57372
Sandwell Metropolitan Borough Council,http://www.sandwell.gov.uk/info/200202/performance_and_spending/1079/payments_over_500,01-Jul-2023,Childrens Services,NEWAVE LTD,Childrens Services,875.00,Agency Staff,2324P04_00105,101666
Sandwell Metropolitan Borough Council,http://www.sandwell.gov.uk/info/200202/performance_and_spending/1079/payments_over_500,18-Jul-2023,Childrens Services,DANIELLE LYNCH,Childrens Services,880.00,Externally Purchased Professional Services ,2324P04_00106,165778
Sandwell Metropolitan Borough Council,http://www.sandwell.gov.uk/info/200202/performance_and_spending/1079/payments_over_500,28-Jul-2023,Childrens Services,CLB MUSIC SERVICES LTD,Childrens Services,900.00,Externally Purchased Professional Services ,2324P04_00107,163924
Sandwell Metropolitan Borough Council,http://www.sandwell.gov.uk/info/200202/performance_and_spending/1079/payments_over_500,01-Jul-2023,Childrens Services,EURO SHAF TRAINING SERVICES LIMITED,Childrens Services,901.00,Externally Purchased Professional Services ,2324P04_00108,76260
Sandwell Metropolitan Borough Council,http://www.sandwell.gov.uk/info/200202/performance_and_spending/1079/payments_over_500,01-Jul-2023,Childrens Services,EURO SHAF TRAINING SERVICES LIMITED,Childrens Services,901.00,Externally Purchased Professional Services ,2324P04_00109,76260
Sandwell Metropolitan Borough Council,http://www.sandwell.gov.uk/info/200202/performance_and_spending/1079/payments_over_500,01-Jul-2023,Childrens Services,EURO SHAF TRAINING SERVICES LIMITED,Childrens Services,901.00,Externally Purchased Professional Services ,2324P04_00110,76260
Sandwell Metropolitan Borough Council,http://www.sandwell.gov.uk/info/200202/performance_and_spending/1079/payments_over_500,12-Jul-2023,Childrens Services,CITIZENS ADVICE SANDWELL & WALSALL,Childrens Services,954.22,Grants,2324P04_00111,01760899
Sandwell Metropolitan Borough Council,http://www.sandwell.gov.uk/info/200202/performance_and_spending/1079/payments_over_500,01-Jul-2023,Childrens Services,THOMAS CHARLES FACILITIES & MAINTENANCE LTD,Childrens Services,960.00,Security,2324P04_00112,114170
Sandwell Metropolitan Borough Council,http://www.sandwell.gov.uk/info/200202/performance_and_spending/1079/payments_over_500,01-Jul-2023,Childrens Services,PPL PRS LTD,Childrens Services,990.43,Licences,2324P04_00113,134302
Sandwell Metropolitan Borough Council,http://www.sandwell.gov.uk/info/200202/performance_and_spending/1079/payments_over_500,01-Jul-2023,Childrens Services,HARGATE PRIMARY SCHOOL,Childrens Services,1000.00,Grants,2324P04_00114,04010481
Sandwell Metropolitan Borough Council,http://www.sandwell.gov.uk/info/200202/performance_and_spending/1079/payments_over_500,01-Jul-2023,Childrens Services,HARGATE PRIMARY SCHOOL,Childrens Services,1000.00,Grants,2324P04_00115,04010481
Sandwell Metropolitan Borough Council,http://www.sandwell.gov.uk/info/200202/performance_and_spending/1079/payments_over_500,01-Jul-2023,Childrens Services,HARGATE PRIMARY SCHOOL,Childrens Services,1000.00,Grants,2324P04_00116,04010481
Sandwell Metropolitan Borough Council,http://www.sandwell.gov.uk/info/200202/performance_and_spending/1079/payments_over_500,13-Jul-2023,Childrens Services,"RACHEL SMITH,",Childrens Services,1000.00,Externally Purchased Professional Services ,2324P04_00117,162210
Sandwell Metropolitan Borough Council,http://www.sandwell.gov.uk/info/200202/performance_and_spending/1079/payments_over_500,01-Jul-2023,Childrens Services,MARK LAMSDALE,Childrens Services,1000.00,"Printing, Stationery & General Office Expenses",2324P04_00118,26316
Sandwell Metropolitan Borough Council,http://www.sandwell.gov.uk/info/200202/performance_and_spending/1079/payments_over_500,01-Jul-2023,Childrens Services,EMMA COX,Childrens Services,1015.00,Agency Staff,2324P04_00119,166306
Sandwell Metropolitan Borough Council,http://www.sandwell.gov.uk/info/200202/performance_and_spending/1079/payments_over_500,01-Jul-2023,Childrens Services,CLEANIT CLEANING SERVICES,Childrens Services,1017.00,Agency Staff,2324P04_00120,166301
Sandwell Metropolitan Borough Council,http://www.sandwell.gov.uk/info/200202/performance_and_spending/1079/payments_over_500,01-Jul-2023,Childrens Services,TOTALENERGIES GAS & POWER LTD,Childrens Services,1029.52,Electricity,2324P04_00121,107605
Sandwell Metropolitan Borough Council,http://www.sandwell.gov.uk/info/200202/performance_and_spending/1079/payments_over_500,01-Jul-2023,Childrens Services,DIGBETH DINING CLUB CIC,Childrens Services,1050.00,Externally Purchased Professional Services ,2324P04_00122,153646
Sandwell Metropolitan Borough Council,http://www.sandwell.gov.uk/info/200202/performance_and_spending/1079/payments_over_500,01-Jul-2023,Childrens Services,TOTALENERGIES GAS & POWER LTD,Childrens Services,1069.26,Electricity,2324P04_00123,107605
Sandwell Metropolitan Borough Council,http://www.sandwell.gov.uk/info/200202/performance_and_spending/1079/payments_over_500,18-Jul-2023,Childrens Services,PRINT DIRECT LIMITED,Childrens Services,1079.70,"Printing, Stationery & General Office Expenses",2324P04_00124,118575
Sandwell Metropolitan Borough Council,http://www.sandwell.gov.uk/info/200202/performance_and_spending/1079/payments_over_500,01-Jul-2023,Childrens Services,IRON MAIDENS COMMERCIAL LAUNDRY LIMITED,Childrens Services,1085.13,Laundry,2324P04_00125,124628
Sandwell Metropolitan Borough Council,http://www.sandwell.gov.uk/info/200202/performance_and_spending/1079/payments_over_500,01-Jul-2023,Childrens Services,TOTALENERGIES GAS & POWER LTD,Childrens Services,1088.94,Electricity,2324P04_00126,107605
Sandwell Metropolitan Borough Council,http://www.sandwell.gov.uk/info/200202/performance_and_spending/1079/payments_over_500,17-Jul-2023,Childrens Services,CHUBB FIRE & SECURITY LIMITED t/a CHUBB ELECTRONIC SECURITY,Childrens Services,1119.36,Security,2324P04_00127,81343
Sandwell Metropolitan Borough Council,http://www.sandwell.gov.uk/info/200202/performance_and_spending/1079/payments_over_500,01-Jul-2023,Childrens Services,THE PURPLE COMPANY (UK) LTD T/A SILK GROUP,Childrens Services,1151.50,"Printing, Stationery & General Office Expenses",2324P04_00128,153789
Sandwell Metropolitan Borough Council,http://www.sandwell.gov.uk/info/200202/performance_and_spending/1079/payments_over_500,01-Jul-2023,Childrens Services,EMMA COX,Childrens Services,1160.00,Agency Staff,2324P04_00129,166306
Sandwell Metropolitan Borough Council,http://www.sandwell.gov.uk/info/200202/performance_and_spending/1079/payments_over_500,02-Jul-2023,Childrens Services,BCH PROPERTY LIMITED,Childrens Services,1166.76,Rents,2324P04_00130,01011861
Sandwell Metropolitan Borough Council,http://www.sandwell.gov.uk/info/200202/performance_and_spending/1079/payments_over_500,02-Jul-2023,Childrens Services,BCH PROPERTY LIMITED,Childrens Services,1166.76,Rents,2324P04_00131,01011861
Sandwell Metropolitan Borough Council,http://www.sandwell.gov.uk/info/200202/performance_and_spending/1079/payments_over_500,17-Jul-2023,Childrens Services,LEARNPLAY FOUNDATION LTD,Childrens Services,1198.40,Externally Purchased Professional Services ,2324P04_00132,86525
Sandwell Metropolitan Borough Council,http://www.sandwell.gov.uk/info/200202/performance_and_spending/1079/payments_over_500,01-Jul-2023,Childrens Services,RENAISSANCE CREATIVE DESIGN & PRINT LTD,Childrens Services,1205.00,Advertising & Publicity,2324P04_00133,97376
Sandwell Metropolitan Borough Council,http://www.sandwell.gov.uk/info/200202/performance_and_spending/1079/payments_over_500,01-Jul-2023,Childrens Services,NOTTINGHAMSHIRE COUNTY COUNCIL,Childrens Services,1218.75,External Contract Hire,2324P04_00134,01218759
Sandwell Metropolitan Borough Council,http://www.sandwell.gov.uk/info/200202/performance_and_spending/1079/payments_over_500,01-Jul-2023,Childrens Services,HEART & SOUL COMMUNITY CIC LTD,Childrens Services,1248.16,Externally Purchased Professional Services ,2324P04_00135,133378
Sandwell Metropolitan Borough Council,http://www.sandwell.gov.uk/info/200202/performance_and_spending/1079/payments_over_500,01-Jul-2023,Childrens Services,HEART & SOUL COMMUNITY CIC LTD,Childrens Services,1248.16,Externally Purchased Professional Services ,2324P04_00136,133378
Sandwell Metropolitan Borough Council,http://www.sandwell.gov.uk/info/200202/performance_and_spending/1079/payments_over_500,01-Jul-2023,Childrens Services,HEART & SOUL COMMUNITY CIC LTD,Childrens Services,1248.16,Externally Purchased Professional Services ,2324P04_00137,133378
Sandwell Metropolitan Borough Council,http://www.sandwell.gov.uk/info/200202/performance_and_spending/1079/payments_over_500,01-Jul-2023,Childrens Services,HEART & SOUL COMMUNITY CIC LTD,Childrens Services,1248.16,Externally Purchased Professional Services ,2324P04_00138,133378
Sandwell Metropolitan Borough Council,http://www.sandwell.gov.uk/info/200202/performance_and_spending/1079/payments_over_500,02-Jul-2023,Childrens Services,BCH PROPERTY LIMITED,Childrens Services,1283.52,Rents,2324P04_00139,01011861
Sandwell Metropolitan Borough Council,http://www.sandwell.gov.uk/info/200202/performance_and_spending/1079/payments_over_500,02-Jul-2023,Childrens Services,BCH PROPERTY LIMITED,Childrens Services,1283.52,Rents,2324P04_00140,01011861
Sandwell Metropolitan Borough Council,http://www.sandwell.gov.uk/info/200202/performance_and_spending/1079/payments_over_500,01-Jul-2023,Childrens Services,THOMAS CHARLES FACILITIES & MAINTENANCE LTD,Childrens Services,1287.00,Contract Cleaning,2324P04_00141,114170
Sandwell Metropolitan Borough Council,http://www.sandwell.gov.uk/info/200202/performance_and_spending/1079/payments_over_500,18-Jul-2023,Childrens Services,SIPS EDUCATION LTD,Childrens Services,1305.00,Contract Payments,2324P04_00142,110784
Sandwell Metropolitan Borough Council,http://www.sandwell.gov.uk/info/200202/performance_and_spending/1079/payments_over_500,01-Jul-2023,Childrens Services,WATER PLUS SELECT LIMITED,Childrens Services,1309.55,Water Services,2324P04_00143,129644
Sandwell Metropolitan Borough Council,http://www.sandwell.gov.uk/info/200202/performance_and_spending/1079/payments_over_500,01-Jul-2023,Childrens Services,CALOR GAS LTD,Childrens Services,1314.12,Gas,2324P04_00144,01562564
Sandwell Metropolitan Borough Council,http://www.sandwell.gov.uk/info/200202/performance_and_spending/1079/payments_over_500,01-Jul-2023,Childrens Services,LEARNPLAY FOUNDATION LTD,Childrens Services,1320.00,Externally Purchased Professional Services ,2324P04_00145,86525
Sandwell Metropolitan Borough Council,http://www.sandwell.gov.uk/info/200202/performance_and_spending/1079/payments_over_500,01-Jul-2023,Childrens Services,STAFF COLLEGE,Childrens Services,1325.00,SH Payments,2324P04_00146,88119
Sandwell Metropolitan Borough Council,http://www.sandwell.gov.uk/info/200202/performance_and_spending/1079/payments_over_500,09-Jul-2023,Childrens Services,TOTALENERGIES GAS & POWER LTD,Childrens Services,1418.17,Electricity,2324P04_00147,107605
Sandwell Metropolitan Borough Council,http://www.sandwell.gov.uk/info/200202/performance_and_spending/1079/payments_over_500,01-Jul-2023,Childrens Services,FERNDALE PRIMARY SCHOOL,Childrens Services,1500.00,Grants,2324P04_00148,11562
Sandwell Metropolitan Borough Council,http://www.sandwell.gov.uk/info/200202/performance_and_spending/1079/payments_over_500,17-Jul-2023,Childrens Services,HARGATE PRIMARY SCHOOL,Childrens Services,1500.00,Grants,2324P04_00149,04010481
Sandwell Metropolitan Borough Council,http://www.sandwell.gov.uk/info/200202/performance_and_spending/1079/payments_over_500,01-Jul-2023,Childrens Services,WHITECREST PRIMARY SCHOOL  ,Childrens Services,1500.00,Grants,2324P04_00150,38087
Sandwell Metropolitan Borough Council,http://www.sandwell.gov.uk/info/200202/performance_and_spending/1079/payments_over_500,01-Jul-2023,Childrens Services,TOTALENERGIES GAS & POWER LTD,Childrens Services,1525.84,Electricity,2324P04_00151,107605
Sandwell Metropolitan Borough Council,http://www.sandwell.gov.uk/info/200202/performance_and_spending/1079/payments_over_500,28-Jul-2023,Childrens Services,APD PRINT & DESIGN,Childrens Services,1550.00,"Printing, Stationery & General Office Expenses",2324P04_00152,49454
Sandwell Metropolitan Borough Council,http://www.sandwell.gov.uk/info/200202/performance_and_spending/1079/payments_over_500,02-Jul-2023,Childrens Services,BCH PROPERTY LIMITED,Childrens Services,1568.00,Rents,2324P04_00153,01011861
Sandwell Metropolitan Borough Council,http://www.sandwell.gov.uk/info/200202/performance_and_spending/1079/payments_over_500,01-Jul-2023,Childrens Services,ROYALE TRAINING LTD,Childrens Services,1579.30,Externally Purchased Professional Services ,2324P04_00154,133604
Sandwell Metropolitan Borough Council,http://www.sandwell.gov.uk/info/200202/performance_and_spending/1079/payments_over_500,09-Jul-2023,Childrens Services,TOTALENERGIES GAS & POWER LTD,Childrens Services,1615.90,Electricity,2324P04_00155,107605
Sandwell Metropolitan Borough Council,http://www.sandwell.gov.uk/info/200202/performance_and_spending/1079/payments_over_500,09-Jul-2023,Childrens Services,TOTALENERGIES GAS & POWER LTD,Childrens Services,1617.33,Electricity,2324P04_00156,107605
Sandwell Metropolitan Borough Council,http://www.sandwell.gov.uk/info/200202/performance_and_spending/1079/payments_over_500,01-Jul-2023,Childrens Services,APD PRINT & DESIGN,Childrens Services,1650.00,Advertising & Publicity,2324P04_00157,49454
Sandwell Metropolitan Borough Council,http://www.sandwell.gov.uk/info/200202/performance_and_spending/1079/payments_over_500,04-Jul-2023,Childrens Services,NEWAVE LTD,Childrens Services,1660.17,Agency Staff,2324P04_00158,101666
Sandwell Metropolitan Borough Council,http://www.sandwell.gov.uk/info/200202/performance_and_spending/1079/payments_over_500,01-Jul-2023,Childrens Services,CDW LIMITED,Childrens Services,1711.18,ICT ,2324P04_00159,140946
Sandwell Metropolitan Borough Council,http://www.sandwell.gov.uk/info/200202/performance_and_spending/1079/payments_over_500,01-Jul-2023,Childrens Services,THOMAS CHARLES FACILITIES & MAINTENANCE LTD,Childrens Services,1716.00,Contract Cleaning,2324P04_00160,114170
Sandwell Metropolitan Borough Council,http://www.sandwell.gov.uk/info/200202/performance_and_spending/1079/payments_over_500,01-Jul-2023,Childrens Services,NEWAVE LTD,Childrens Services,1731.60,Agency Staff,2324P04_00161,101666
Sandwell Metropolitan Borough Council,http://www.sandwell.gov.uk/info/200202/performance_and_spending/1079/payments_over_500,01-Jul-2023,Childrens Services,IDEAL FOR ALL LIMITED,Childrens Services,1800.00,Civic Events,2324P04_00162,01678484
Sandwell Metropolitan Borough Council,http://www.sandwell.gov.uk/info/200202/performance_and_spending/1079/payments_over_500,01-Jul-2023,Childrens Services,NEWAVE LTD,Childrens Services,2000.00,Agency Staff,2324P04_00163,101666
Sandwell Metropolitan Borough Council,http://www.sandwell.gov.uk/info/200202/performance_and_spending/1079/payments_over_500,13-Jul-2023,Childrens Services,"RACHEL SMITH,",Childrens Services,2000.00,Externally Purchased Professional Services ,2324P04_00164,162210
Sandwell Metropolitan Borough Council,http://www.sandwell.gov.uk/info/200202/performance_and_spending/1079/payments_over_500,01-Jul-2023,Childrens Services,THOMAS CHARLES FACILITIES & MAINTENANCE LTD,Childrens Services,2145.00,Contract Cleaning,2324P04_00165,114170
Sandwell Metropolitan Borough Council,http://www.sandwell.gov.uk/info/200202/performance_and_spending/1079/payments_over_500,01-Jul-2023,Childrens Services,THOMAS CHARLES FACILITIES & MAINTENANCE LTD,Childrens Services,2145.00,Contract Cleaning,2324P04_00166,114170
Sandwell Metropolitan Borough Council,http://www.sandwell.gov.uk/info/200202/performance_and_spending/1079/payments_over_500,01-Jul-2023,Childrens Services,THOMAS CHARLES FACILITIES & MAINTENANCE LTD,Childrens Services,2145.00,Contract Cleaning,2324P04_00167,114170
Sandwell Metropolitan Borough Council,http://www.sandwell.gov.uk/info/200202/performance_and_spending/1079/payments_over_500,03-Jul-2023,Childrens Services,NEWBURY TRAVEL LTD,Childrens Services,2300.00,Public Transport,2324P04_00168,06003081
Sandwell Metropolitan Borough Council,http://www.sandwell.gov.uk/info/200202/performance_and_spending/1079/payments_over_500,01-Jul-2023,Childrens Services,TOTALENERGIES GAS & POWER LTD,Childrens Services,2338.76,Electricity,2324P04_00169,107605
Sandwell Metropolitan Borough Council,http://www.sandwell.gov.uk/info/200202/performance_and_spending/1079/payments_over_500,01-Jul-2023,Childrens Services,SIPS EDUCATION LTD,Childrens Services,2346.50,Catering Provisions,2324P04_00170,110784
Sandwell Metropolitan Borough Council,http://www.sandwell.gov.uk/info/200202/performance_and_spending/1079/payments_over_500,01-Jul-2023,Childrens Services,GBS PROCURE LIMITED,Childrens Services,2465.00,Public Transport,2324P04_00171,165756
Sandwell Metropolitan Borough Council,http://www.sandwell.gov.uk/info/200202/performance_and_spending/1079/payments_over_500,01-Jul-2023,Childrens Services,MERCURE HOTEL,Childrens Services,2750.00,Externally Purchased Professional Services ,2324P04_00172,78342
Sandwell Metropolitan Borough Council,http://www.sandwell.gov.uk/info/200202/performance_and_spending/1079/payments_over_500,13-Jul-2023,Childrens Services,TEMPLE MEADOW PRIMARY SCHOOL ,Childrens Services,2905.00,Rents,2324P04_00173,04015109
Sandwell Metropolitan Borough Council,http://www.sandwell.gov.uk/info/200202/performance_and_spending/1079/payments_over_500,01-Jul-2023,Childrens Services,SIPS EDUCATION LTD,Childrens Services,3087.70,Catering Provisions,2324P04_00174,110784
Sandwell Metropolitan Borough Council,http://www.sandwell.gov.uk/info/200202/performance_and_spending/1079/payments_over_500,01-Jul-2023,Childrens Services,NEWAVE LTD,Childrens Services,3205.70,Agency Staff,2324P04_00175,101666
Sandwell Metropolitan Borough Council,http://www.sandwell.gov.uk/info/200202/performance_and_spending/1079/payments_over_500,01-Jul-2023,Childrens Services,THOMAS CHARLES FACILITIES & MAINTENANCE LTD,Childrens Services,3217.50,Contract Cleaning,2324P04_00176,114170
Sandwell Metropolitan Borough Council,http://www.sandwell.gov.uk/info/200202/performance_and_spending/1079/payments_over_500,01-Jul-2023,Childrens Services,SIPS EDUCATION LTD,Childrens Services,3243.25,Catering Provisions,2324P04_00177,110784
Sandwell Metropolitan Borough Council,http://www.sandwell.gov.uk/info/200202/performance_and_spending/1079/payments_over_500,28-Jul-2023,Childrens Services,EAGLE DESIGN LIMITED,Childrens Services,3600.00,Advertising & Publicity,2324P04_00178,1932
Sandwell Metropolitan Borough Council,http://www.sandwell.gov.uk/info/200202/performance_and_spending/1079/payments_over_500,01-Jul-2023,Childrens Services,SIPS EDUCATION LTD,Childrens Services,3680.90,Catering Provisions,2324P04_00179,110784
Sandwell Metropolitan Borough Council,http://www.sandwell.gov.uk/info/200202/performance_and_spending/1079/payments_over_500,28-Jul-2023,Childrens Services,EAGLE DESIGN LIMITED,Childrens Services,3712.00,Advertising & Publicity,2324P04_00180,1932
Sandwell Metropolitan Borough Council,http://www.sandwell.gov.uk/info/200202/performance_and_spending/1079/payments_over_500,01-Jul-2023,Childrens Services,NEWAVE LTD,Childrens Services,4082.70,Agency Staff,2324P04_00181,101666
Sandwell Metropolitan Borough Council,http://www.sandwell.gov.uk/info/200202/performance_and_spending/1079/payments_over_500,01-Jul-2023,Childrens Services,PROSPECTS SERVICES LIMITED,Childrens Services,4089.92,Grant Payments,2324P04_00182,01721288
Sandwell Metropolitan Borough Council,http://www.sandwell.gov.uk/info/200202/performance_and_spending/1079/payments_over_500,28-Jul-2023,Childrens Services,EAGLE DESIGN LIMITED,Childrens Services,4194.00,"Printing, Stationery & General Office Expenses",2324P04_00183,1932
Sandwell Metropolitan Borough Council,http://www.sandwell.gov.uk/info/200202/performance_and_spending/1079/payments_over_500,01-Jul-2023,Childrens Services,SIPS EDUCATION LTD,Childrens Services,4210.00,Externally Purchased Professional Services ,2324P04_00184,110784
Sandwell Metropolitan Borough Council,http://www.sandwell.gov.uk/info/200202/performance_and_spending/1079/payments_over_500,01-Jul-2023,Childrens Services,THE PRIORY PRIMARY,Childrens Services,4331.10,Rents,2324P04_00185,01746051
Sandwell Metropolitan Borough Council,http://www.sandwell.gov.uk/info/200202/performance_and_spending/1079/payments_over_500,01-Jul-2023,Childrens Services,PENNA PLC,Childrens Services,5000.00,Advertising & Publicity,2324P04_00186,20829
Sandwell Metropolitan Borough Council,http://www.sandwell.gov.uk/info/200202/performance_and_spending/1079/payments_over_500,01-Jul-2023,Childrens Services,PENNA PLC,Childrens Services,5000.00,Advertising & Publicity,2324P04_00187,20829
Sandwell Metropolitan Borough Council,http://www.sandwell.gov.uk/info/200202/performance_and_spending/1079/payments_over_500,01-Jul-2023,Childrens Services,PENNA PLC,Childrens Services,5000.00,Advertising & Publicity,2324P04_00188,20829
Sandwell Metropolitan Borough Council,http://www.sandwell.gov.uk/info/200202/performance_and_spending/1079/payments_over_500,01-Jul-2023,Childrens Services,WEST MIDLANDS TRAVEL LIMITED,Childrens Services,5146.06,Public Transport,2324P04_00189,01736688
Sandwell Metropolitan Borough Council,http://www.sandwell.gov.uk/info/200202/performance_and_spending/1079/payments_over_500,01-Jul-2023,Childrens Services,WEST MIDLANDS TRAVEL LIMITED,Childrens Services,5285.16,Public Transport,2324P04_00190,01736688
Sandwell Metropolitan Borough Council,http://www.sandwell.gov.uk/info/200202/performance_and_spending/1079/payments_over_500,28-Jul-2023,Childrens Services,HAPPY APPLE CO LTD,Childrens Services,5288.50,Advertising & Publicity,2324P04_00191,7299
Sandwell Metropolitan Borough Council,http://www.sandwell.gov.uk/info/200202/performance_and_spending/1079/payments_over_500,18-Jul-2023,Childrens Services,EAGLE DESIGN LIMITED,Childrens Services,5428.10,Advertising & Publicity,2324P04_00192,1932
Sandwell Metropolitan Borough Council,http://www.sandwell.gov.uk/info/200202/performance_and_spending/1079/payments_over_500,26-Jul-2023,Childrens Services,GBS PROCURE LIMITED,Childrens Services,6013.35,Public Transport,2324P04_00193,165756
Sandwell Metropolitan Borough Council,http://www.sandwell.gov.uk/info/200202/performance_and_spending/1079/payments_over_500,12-Jul-2023,Childrens Services,CITIZENS ADVICE SANDWELL & WALSALL,Childrens Services,6056.34,Grants,2324P04_00194,01760899
Sandwell Metropolitan Borough Council,http://www.sandwell.gov.uk/info/200202/performance_and_spending/1079/payments_over_500,01-Jul-2023,Childrens Services,WEST MIDLANDS TRAVEL LIMITED,Childrens Services,8793.35,Externally Purchased Professional Services ,2324P04_00195,01736688
Sandwell Metropolitan Borough Council,http://www.sandwell.gov.uk/info/200202/performance_and_spending/1079/payments_over_500,01-Jul-2023,Childrens Services,AUTISM WEST MIDLANDS  ,Childrens Services,9215.50,Grant Payments,2324P04_00196,65002404
Sandwell Metropolitan Borough Council,http://www.sandwell.gov.uk/info/200202/performance_and_spending/1079/payments_over_500,01-Jul-2023,Childrens Services,AUTISM WEST MIDLANDS    ,Childrens Services,9215.50,Grant Payments,2324P04_00197,65002404
Sandwell Metropolitan Borough Council,http://www.sandwell.gov.uk/info/200202/performance_and_spending/1079/payments_over_500,12-Jul-2023,Childrens Services,CITIZENS ADVICE SANDWELL & WALSALL,Childrens Services,16213.01,Grants,2324P04_00198,01760899
Sandwell Metropolitan Borough Council,http://www.sandwell.gov.uk/info/200202/performance_and_spending/1079/payments_over_500,02-Jul-2023,Childrens Services,TRIPLE P UK LTD,Childrens Services,16625.00,Externally Purchased Professional Services ,2324P04_00199,83730
Sandwell Metropolitan Borough Council,http://www.sandwell.gov.uk/info/200202/performance_and_spending/1079/payments_over_500,01-Jul-2023,Childrens Services,SIPS EDUCATION LTD,Childrens Services,21250.00,Contract Payments,2324P04_00200,110784
Sandwell Metropolitan Borough Council,http://www.sandwell.gov.uk/info/200202/performance_and_spending/1079/payments_over_500,11-Jul-2023,Childrens Services,SANDWELL ACADEMY TRUST LTD,Childrens Services,21505.00,Public Transport,2324P04_00201,62330
Sandwell Metropolitan Borough Council,http://www.sandwell.gov.uk/info/200202/performance_and_spending/1079/payments_over_500,17-Jul-2023,Childrens Services,ACTION FOR CHILDREN SERVICES LIMITED,Childrens Services,31694.17,Externally Purchased Professional Services ,2324P04_00202,111189
Sandwell Metropolitan Borough Council,http://www.sandwell.gov.uk/info/200202/performance_and_spending/1079/payments_over_500,01-Jul-2023,Childrens Services,BARNARDO SERVICES LIMITED,Childrens Services,673079.73,Contract Payments,2324P04_00203,9330
Sandwell Metropolitan Borough Council,http://www.sandwell.gov.uk/info/200202/performance_and_spending/1079/payments_over_500,05-Jul-2023,Childrens Services,SANDWELL CHILDREN'S TRUST,Childrens Services,5705769.23,Other Establishments,2324P04_00204,133302
Sandwell Metropolitan Borough Council,http://www.sandwell.gov.uk/info/200202/performance_and_spending/1079/payments_over_500,10-Jul-2023,Childrens Services,BRANDHALL PRIMARY SCHOOL  ,Childrens Services,7066.00,Discretionary Awards,2324P04_00205,60971
Sandwell Metropolitan Borough Council,http://www.sandwell.gov.uk/info/200202/performance_and_spending/1079/payments_over_500,11-Jul-2023,Childrens Services,REDACTED PERSONAL DATA,Childrens Services,545.45,External Contract Hire,2324P04_00206,REDACTED PERSONAL DATA
Sandwell Metropolitan Borough Council,http://www.sandwell.gov.uk/info/200202/performance_and_spending/1079/payments_over_500,11-Jul-2023,Childrens Services,REDACTED PERSONAL DATA,Childrens Services,545.45,External Contract Hire,2324P04_00207,REDACTED PERSONAL DATA
Sandwell Metropolitan Borough Council,http://www.sandwell.gov.uk/info/200202/performance_and_spending/1079/payments_over_500,11-Jul-2023,Childrens Services,REDACTED PERSONAL DATA,Childrens Services,545.45,External Contract Hire,2324P04_00208,REDACTED PERSONAL DATA
Sandwell Metropolitan Borough Council,http://www.sandwell.gov.uk/info/200202/performance_and_spending/1079/payments_over_500,11-Jul-2023,Childrens Services,REDACTED PERSONAL DATA,Childrens Services,545.45,External Contract Hire,2324P04_00209,REDACTED PERSONAL DATA
Sandwell Metropolitan Borough Council,http://www.sandwell.gov.uk/info/200202/performance_and_spending/1079/payments_over_500,11-Jul-2023,Childrens Services,REDACTED PERSONAL DATA,Childrens Services,545.45,External Contract Hire,2324P04_00210,REDACTED PERSONAL DATA
Sandwell Metropolitan Borough Council,http://www.sandwell.gov.uk/info/200202/performance_and_spending/1079/payments_over_500,11-Jul-2023,Childrens Services,REDACTED PERSONAL DATA,Childrens Services,545.45,External Contract Hire,2324P04_00211,REDACTED PERSONAL DATA
Sandwell Metropolitan Borough Council,http://www.sandwell.gov.uk/info/200202/performance_and_spending/1079/payments_over_500,11-Jul-2023,Childrens Services,REDACTED PERSONAL DATA,Childrens Services,545.45,External Contract Hire,2324P04_00212,REDACTED PERSONAL DATA
Sandwell Metropolitan Borough Council,http://www.sandwell.gov.uk/info/200202/performance_and_spending/1079/payments_over_500,11-Jul-2023,Childrens Services,REDACTED PERSONAL DATA,Childrens Services,545.45,External Contract Hire,2324P04_00213,REDACTED PERSONAL DATA
Sandwell Metropolitan Borough Council,http://www.sandwell.gov.uk/info/200202/performance_and_spending/1079/payments_over_500,11-Jul-2023,Childrens Services,REDACTED PERSONAL DATA,Childrens Services,545.45,External Contract Hire,2324P04_00214,REDACTED PERSONAL DATA
Sandwell Metropolitan Borough Council,http://www.sandwell.gov.uk/info/200202/performance_and_spending/1079/payments_over_500,11-Jul-2023,Childrens Services,REDACTED PERSONAL DATA,Childrens Services,545.45,External Contract Hire,2324P04_00215,REDACTED PERSONAL DATA
Sandwell Metropolitan Borough Council,http://www.sandwell.gov.uk/info/200202/performance_and_spending/1079/payments_over_500,11-Jul-2023,Childrens Services,REDACTED PERSONAL DATA,Childrens Services,545.45,External Contract Hire,2324P04_00216,REDACTED PERSONAL DATA
Sandwell Metropolitan Borough Council,http://www.sandwell.gov.uk/info/200202/performance_and_spending/1079/payments_over_500,11-Jul-2023,Childrens Services,REDACTED PERSONAL DATA,Childrens Services,545.45,External Contract Hire,2324P04_00217,REDACTED PERSONAL DATA
Sandwell Metropolitan Borough Council,http://www.sandwell.gov.uk/info/200202/performance_and_spending/1079/payments_over_500,11-Jul-2023,Childrens Services,REDACTED PERSONAL DATA,Childrens Services,545.45,External Contract Hire,2324P04_00218,REDACTED PERSONAL DATA
Sandwell Metropolitan Borough Council,http://www.sandwell.gov.uk/info/200202/performance_and_spending/1079/payments_over_500,11-Jul-2023,Childrens Services,REDACTED PERSONAL DATA,Childrens Services,545.45,External Contract Hire,2324P04_00219,REDACTED PERSONAL DATA
Sandwell Metropolitan Borough Council,http://www.sandwell.gov.uk/info/200202/performance_and_spending/1079/payments_over_500,11-Jul-2023,Childrens Services,REDACTED PERSONAL DATA,Childrens Services,545.45,External Contract Hire,2324P04_00220,REDACTED PERSONAL DATA
Sandwell Metropolitan Borough Council,http://www.sandwell.gov.uk/info/200202/performance_and_spending/1079/payments_over_500,11-Jul-2023,Childrens Services,REDACTED PERSONAL DATA,Childrens Services,545.45,External Contract Hire,2324P04_00221,REDACTED PERSONAL DATA
Sandwell Metropolitan Borough Council,http://www.sandwell.gov.uk/info/200202/performance_and_spending/1079/payments_over_500,11-Jul-2023,Childrens Services,REDACTED PERSONAL DATA,Childrens Services,545.45,External Contract Hire,2324P04_00222,REDACTED PERSONAL DATA
Sandwell Metropolitan Borough Council,http://www.sandwell.gov.uk/info/200202/performance_and_spending/1079/payments_over_500,11-Jul-2023,Childrens Services,REDACTED PERSONAL DATA,Childrens Services,545.45,External Contract Hire,2324P04_00223,REDACTED PERSONAL DATA
Sandwell Metropolitan Borough Council,http://www.sandwell.gov.uk/info/200202/performance_and_spending/1079/payments_over_500,11-Jul-2023,Childrens Services,REDACTED PERSONAL DATA,Childrens Services,727.27,External Contract Hire,2324P04_00224,REDACTED PERSONAL DATA
Sandwell Metropolitan Borough Council,http://www.sandwell.gov.uk/info/200202/performance_and_spending/1079/payments_over_500,11-Jul-2023,Childrens Services,REDACTED PERSONAL DATA,Childrens Services,727.27,External Contract Hire,2324P04_00225,REDACTED PERSONAL DATA
Sandwell Metropolitan Borough Council,http://www.sandwell.gov.uk/info/200202/performance_and_spending/1079/payments_over_500,11-Jul-2023,Childrens Services,REDACTED PERSONAL DATA,Childrens Services,727.27,External Contract Hire,2324P04_00226,REDACTED PERSONAL DATA
Sandwell Metropolitan Borough Council,http://www.sandwell.gov.uk/info/200202/performance_and_spending/1079/payments_over_500,11-Jul-2023,Childrens Services,REDACTED PERSONAL DATA,Childrens Services,727.27,External Contract Hire,2324P04_00227,REDACTED PERSONAL DATA
Sandwell Metropolitan Borough Council,http://www.sandwell.gov.uk/info/200202/performance_and_spending/1079/payments_over_500,11-Jul-2023,Childrens Services,REDACTED PERSONAL DATA,Childrens Services,727.27,External Contract Hire,2324P04_00228,REDACTED PERSONAL DATA
Sandwell Metropolitan Borough Council,http://www.sandwell.gov.uk/info/200202/performance_and_spending/1079/payments_over_500,11-Jul-2023,Childrens Services,REDACTED PERSONAL DATA,Childrens Services,727.27,External Contract Hire,2324P04_00229,REDACTED PERSONAL DATA
Sandwell Metropolitan Borough Council,http://www.sandwell.gov.uk/info/200202/performance_and_spending/1079/payments_over_500,11-Jul-2023,Childrens Services,REDACTED PERSONAL DATA,Childrens Services,727.27,External Contract Hire,2324P04_00230,REDACTED PERSONAL DATA
Sandwell Metropolitan Borough Council,http://www.sandwell.gov.uk/info/200202/performance_and_spending/1079/payments_over_500,11-Jul-2023,Childrens Services,REDACTED PERSONAL DATA,Childrens Services,727.27,External Contract Hire,2324P04_00231,REDACTED PERSONAL DATA
Sandwell Metropolitan Borough Council,http://www.sandwell.gov.uk/info/200202/performance_and_spending/1079/payments_over_500,11-Jul-2023,Childrens Services,REDACTED PERSONAL DATA,Childrens Services,727.27,External Contract Hire,2324P04_00232,REDACTED PERSONAL DATA
Sandwell Metropolitan Borough Council,http://www.sandwell.gov.uk/info/200202/performance_and_spending/1079/payments_over_500,11-Jul-2023,Childrens Services,REDACTED PERSONAL DATA,Childrens Services,727.28,External Contract Hire,2324P04_00233,REDACTED PERSONAL DATA
Sandwell Metropolitan Borough Council,http://www.sandwell.gov.uk/info/200202/performance_and_spending/1079/payments_over_500,11-Jul-2023,Childrens Services,REDACTED PERSONAL DATA,Childrens Services,727.28,External Contract Hire,2324P04_00234,REDACTED PERSONAL DATA
Sandwell Metropolitan Borough Council,http://www.sandwell.gov.uk/info/200202/performance_and_spending/1079/payments_over_500,31-Jul-2023,Childrens Services,REDACTED PERSONAL DATA,Childrens Services,776.16,External Contract Hire,2324P04_00235,REDACTED PERSONAL DATA
Sandwell Metropolitan Borough Council,http://www.sandwell.gov.uk/info/200202/performance_and_spending/1079/payments_over_500,11-Jul-2023,Childrens Services,REDACTED PERSONAL DATA,Childrens Services,800.00,External Contract Hire,2324P04_00236,REDACTED PERSONAL DATA
Sandwell Metropolitan Borough Council,http://www.sandwell.gov.uk/info/200202/performance_and_spending/1079/payments_over_500,31-Jul-2023,Childrens Services,REDACTED PERSONAL DATA,Childrens Services,880.52,External Contract Hire,2324P04_00237,REDACTED PERSONAL DATA
Sandwell Metropolitan Borough Council,http://www.sandwell.gov.uk/info/200202/performance_and_spending/1079/payments_over_500,11-Jul-2023,Childrens Services,REDACTED PERSONAL DATA,Childrens Services,909.09,External Contract Hire,2324P04_00238,REDACTED PERSONAL DATA
Sandwell Metropolitan Borough Council,http://www.sandwell.gov.uk/info/200202/performance_and_spending/1079/payments_over_500,11-Jul-2023,Childrens Services,REDACTED PERSONAL DATA,Childrens Services,1090.90,External Contract Hire,2324P04_00239,REDACTED PERSONAL DATA
Sandwell Metropolitan Borough Council,http://www.sandwell.gov.uk/info/200202/performance_and_spending/1079/payments_over_500,18-Jul-2023,Childrens Services,SADWICA DAY NURSERY,Childrens Services,2458.00,Grant Payments,2324P04_00240,01667892
Sandwell Metropolitan Borough Council,http://www.sandwell.gov.uk/info/200202/performance_and_spending/1079/payments_over_500,04-Jul-2023,Childrens Services,SADWICA DAY NURSERY,Childrens Services,5376.00,Grant Payments,2324P04_00241,01667892
Sandwell Metropolitan Borough Council,http://www.sandwell.gov.uk/info/200202/performance_and_spending/1079/payments_over_500,05-Jul-2023,Childrens Services,SADWICA DAY NURSERY,Childrens Services,7538.00,Grant Payments,2324P04_00242,01667892
Sandwell Metropolitan Borough Council,http://www.sandwell.gov.uk/info/200202/performance_and_spending/1079/payments_over_500,12-Jul-2023,Childrens Services,JUNIOR ADVENTURES GROUP UK LTD,Childrens Services,7680.00,Grant Payments,2324P04_00243,164355
Sandwell Metropolitan Borough Council,http://www.sandwell.gov.uk/info/200202/performance_and_spending/1079/payments_over_500,01-Jul-2023,Childrens Services,CONFEDERATION OF BANGLADESHI ORGANISATIONS (CBO) LIMITED,Childrens Services,8250.00,Grant Payments,2324P04_00244,10034
Sandwell Metropolitan Borough Council,http://www.sandwell.gov.uk/info/200202/performance_and_spending/1079/payments_over_500,04-Jul-2023,Childrens Services,AFRICAN FRENCH SPEAKING COMMUNITY SUPPORT,Childrens Services,9206.00,Grant Payments,2324P04_00245,107906
Sandwell Metropolitan Borough Council,http://www.sandwell.gov.uk/info/200202/performance_and_spending/1079/payments_over_500,01-Jul-2023,Childrens Services,ILEYS COMMUNITY ASSOCIATION,Childrens Services,11555.00,Grant Payments,2324P04_00246,88247
Sandwell Metropolitan Borough Council,http://www.sandwell.gov.uk/info/200202/performance_and_spending/1079/payments_over_500,04-Jul-2023,Childrens Services,PREMIER SOCCER COACHING T/A PREMIER EDUCATION,Childrens Services,12722.00,Grant Payments,2324P04_00247,163599
Sandwell Metropolitan Borough Council,http://www.sandwell.gov.uk/info/200202/performance_and_spending/1079/payments_over_500,01-Jul-2023,Childrens Services,GREAT BRIDGE COMMUNITY FORUM,Childrens Services,17350.00,Grant Payments,2324P04_00248,21026008
Sandwell Metropolitan Borough Council,http://www.sandwell.gov.uk/info/200202/performance_and_spending/1079/payments_over_500,04-Jul-2023,Childrens Services,NEW CREATIVITY CIC,Childrens Services,22400.00,Grant Payments,2324P04_00249,166454
Sandwell Metropolitan Borough Council,http://www.sandwell.gov.uk/info/200202/performance_and_spending/1079/payments_over_500,13-Jul-2023,Childrens Services,SANDWELL YOUNG CARERS,Childrens Services,26320.00,Grant Payments,2324P04_00250,08482635
Sandwell Metropolitan Borough Council,http://www.sandwell.gov.uk/info/200202/performance_and_spending/1079/payments_over_500,04-Jul-2023,Childrens Services,RB SPORTS ACTIVITIES LTD,Childrens Services,31512.00,Grant Payments,2324P04_00251,126163
Sandwell Metropolitan Borough Council,http://www.sandwell.gov.uk/info/200202/performance_and_spending/1079/payments_over_500,06-Jul-2023,Childrens Services,EARLS GYMNASTICS CLUB,Childrens Services,31924.00,Grant Payments,2324P04_00252,96950
Sandwell Metropolitan Borough Council,http://www.sandwell.gov.uk/info/200202/performance_and_spending/1079/payments_over_500,05-Jul-2023,Childrens Services,SPORTING YOUR FUTURES,Childrens Services,38400.00,Grant Payments,2324P04_00253,153219
Sandwell Metropolitan Borough Council,http://www.sandwell.gov.uk/info/200202/performance_and_spending/1079/payments_over_500,04-Jul-2023,Childrens Services,STRIKE9T C.I.C,Childrens Services,43200.00,Grant Payments,2324P04_00254,162855
Sandwell Metropolitan Borough Council,http://www.sandwell.gov.uk/info/200202/performance_and_spending/1079/payments_over_500,04-Jul-2023,Childrens Services,THE ALBION FOUNDATION,Childrens Services,44160.00,Grant Payments,2324P04_00255,21026659
Sandwell Metropolitan Borough Council,http://www.sandwell.gov.uk/info/200202/performance_and_spending/1079/payments_over_500,01-Jul-2023,Childrens Services Capital,EVARIS SOLUTIONS LTD,Childrens Services Capital,-930.00,"CIP - New Construction,Conversion, Enhancement & Reno",2324P04_00256,161598
Sandwell Metropolitan Borough Council,http://www.sandwell.gov.uk/info/200202/performance_and_spending/1079/payments_over_500,01-Jul-2023,Childrens Services Capital,BRYLAND FIRE PROTECTION LTD,Childrens Services Capital,853.33,"CIP - New Construction,Conversion, Enhancement & Reno",2324P04_00257,3520
Sandwell Metropolitan Borough Council,http://www.sandwell.gov.uk/info/200202/performance_and_spending/1079/payments_over_500,01-Jul-2023,Childrens Services Capital,EVARIS SOLUTIONS LTD,Childrens Services Capital,1240.00,"CIP - New Construction,Conversion, Enhancement & Reno",2324P04_00258,161598
Sandwell Metropolitan Borough Council,http://www.sandwell.gov.uk/info/200202/performance_and_spending/1079/payments_over_500,01-Jul-2023,Childrens Services Capital,STRATEGIC LEISURE LIMITED,Childrens Services Capital,1490.73,"CIP - New Construction,Conversion, Enhancement & Reno",2324P04_00259,106038
Sandwell Metropolitan Borough Council,http://www.sandwell.gov.uk/info/200202/performance_and_spending/1079/payments_over_500,01-Jul-2023,Childrens Services Capital,UPLANDS MANOR PRIMARY  ,Childrens Services Capital,19036.27,"CIP - New Construction,Conversion, Enhancement & Reno",2324P04_00260,04024322
Sandwell Metropolitan Borough Council,http://www.sandwell.gov.uk/info/200202/performance_and_spending/1079/payments_over_500,01-Jul-2023,Childrens Services Capital,UPLANDS MANOR PRIMARY   ,Childrens Services Capital,20000.00,"CIP - New Construction,Conversion, Enhancement & Reno",2324P04_00261,04024322
Sandwell Metropolitan Borough Council,http://www.sandwell.gov.uk/info/200202/performance_and_spending/1079/payments_over_500,18-Jul-2023,Childrens Services Capital,HARDYMAN & CO LIMITED,Childrens Services Capital,39889.49,"CIP - New Construction,Conversion, Enhancement & Reno",2324P04_00262,10788
Sandwell Metropolitan Borough Council,http://www.sandwell.gov.uk/info/200202/performance_and_spending/1079/payments_over_500,11-Jul-2023,Childrens Services Capital,SEDDON CONSTRUCTION LIMITED,Childrens Services Capital,58548.53,"CIP - New Construction,Conversion, Enhancement & Reno",2324P04_00263,132999
Sandwell Metropolitan Borough Council,http://www.sandwell.gov.uk/info/200202/performance_and_spending/1079/payments_over_500,04-Jul-2023,Corporate Management,WEST MIDLANDS EMPLOYERS,Corporate Management,6105.40,Externally Purchased Professional Services ,2324P04_00264,01587505
Sandwell Metropolitan Borough Council,http://www.sandwell.gov.uk/info/200202/performance_and_spending/1079/payments_over_500,12-Jul-2023,FINANCE (Inc SIU),SATCHELL MORAN SOLICITORS,Assistant Chief Executive (Excl SIU),500.00,Insurance,2324P04_00265,154265
Sandwell Metropolitan Borough Council,http://www.sandwell.gov.uk/info/200202/performance_and_spending/1079/payments_over_500,04-Jul-2023,FINANCE (Inc SIU),SATCHELL MORAN SOLICITORS,Assistant Chief Executive (Excl SIU),500.00,Insurance,2324P04_00266,154265
Sandwell Metropolitan Borough Council,http://www.sandwell.gov.uk/info/200202/performance_and_spending/1079/payments_over_500,26-Jul-2023,FINANCE (Inc SIU),CADENT GAS LTD,Assistant Chief Executive (Excl SIU),544.78,Insurance,2324P04_00267,131864
Sandwell Metropolitan Borough Council,http://www.sandwell.gov.uk/info/200202/performance_and_spending/1079/payments_over_500,05-Jul-2023,FINANCE (Inc SIU),GOWING LAW SOLICITORS,Assistant Chief Executive (Excl SIU),600.00,Insurance,2324P04_00268,163069
Sandwell Metropolitan Borough Council,http://www.sandwell.gov.uk/info/200202/performance_and_spending/1079/payments_over_500,24-Jul-2023,FINANCE (Inc SIU),REDACTED PERSONAL DATA,Assistant Chief Executive (Excl SIU),600.00,Insurance,2324P04_00269,REDACTED PERSONAL DATA
Sandwell Metropolitan Borough Council,http://www.sandwell.gov.uk/info/200202/performance_and_spending/1079/payments_over_500,20-Jul-2023,FINANCE (Inc SIU),DWP,Assistant Chief Executive (Excl SIU),725.00,Insurance,2324P04_00270,01753867
Sandwell Metropolitan Borough Council,http://www.sandwell.gov.uk/info/200202/performance_and_spending/1079/payments_over_500,18-Jul-2023,FINANCE (Inc SIU),SEDGWICK INTERNATIONAL UK,Assistant Chief Executive (Excl SIU),1162.50,Externally Purchased Professional Services ,2324P04_00271,136510
Sandwell Metropolitan Borough Council,http://www.sandwell.gov.uk/info/200202/performance_and_spending/1079/payments_over_500,24-Jul-2023,FINANCE (Inc SIU),CHESHIRE ESTATE & LEGAL,Assistant Chief Executive (Excl SIU),1500.00,Insurance,2324P04_00272,139926
Sandwell Metropolitan Borough Council,http://www.sandwell.gov.uk/info/200202/performance_and_spending/1079/payments_over_500,20-Jul-2023,FINANCE (Inc SIU),GOWING LAW SOLICITORS,Assistant Chief Executive (Excl SIU),1500.00,Insurance,2324P04_00273,163069
Sandwell Metropolitan Borough Council,http://www.sandwell.gov.uk/info/200202/performance_and_spending/1079/payments_over_500,26-Jul-2023,FINANCE (Inc SIU),MCDERMOTT SMITH LAW CLIENT ACCOUNT,Assistant Chief Executive (Excl SIU),1500.00,Insurance,2324P04_00274,164526
Sandwell Metropolitan Borough Council,http://www.sandwell.gov.uk/info/200202/performance_and_spending/1079/payments_over_500,01-Jul-2023,FINANCE (Inc SIU),TIVIDALE COMMUNITY PRIMARY SCHOOL,Assistant Chief Executive (Excl SIU),1700.00,Insurance,2324P04_00275,20555
Sandwell Metropolitan Borough Council,http://www.sandwell.gov.uk/info/200202/performance_and_spending/1079/payments_over_500,27-Jul-2023,FINANCE (Inc SIU),GOWING LAW SOLICITORS,Assistant Chief Executive (Excl SIU),1800.00,Insurance,2324P04_00276,163069
Sandwell Metropolitan Borough Council,http://www.sandwell.gov.uk/info/200202/performance_and_spending/1079/payments_over_500,10-Jul-2023,FINANCE (Inc SIU),ANGELUS LAW CLIENT ACCOUNT,Assistant Chief Executive (Excl SIU),2000.00,Insurance,2324P04_00277,162521
Sandwell Metropolitan Borough Council,http://www.sandwell.gov.uk/info/200202/performance_and_spending/1079/payments_over_500,01-Jul-2023,FINANCE (Inc SIU),KING GEORGE V PRIMARY SCHOOL,Assistant Chief Executive (Excl SIU),2160.00,Insurance,2324P04_00278,71638
Sandwell Metropolitan Borough Council,http://www.sandwell.gov.uk/info/200202/performance_and_spending/1079/payments_over_500,26-Jul-2023,FINANCE (Inc SIU),GOWING LAW SOLICITORS,Assistant Chief Executive (Excl SIU),2250.00,Insurance,2324P04_00279,163069
Sandwell Metropolitan Borough Council,http://www.sandwell.gov.uk/info/200202/performance_and_spending/1079/payments_over_500,01-Jul-2023,FINANCE (Inc SIU),CHESHIRE ESTATE & LEGAL,Assistant Chief Executive (Excl SIU),2500.00,Insurance,2324P04_00280,139926
Sandwell Metropolitan Borough Council,http://www.sandwell.gov.uk/info/200202/performance_and_spending/1079/payments_over_500,24-Jul-2023,FINANCE (Inc SIU),VERITAS SOLICITORS,Assistant Chief Executive (Excl SIU),2626.19,Insurance,2324P04_00281,163336
Sandwell Metropolitan Borough Council,http://www.sandwell.gov.uk/info/200202/performance_and_spending/1079/payments_over_500,05-Jul-2023,FINANCE (Inc SIU),GOWING LAW SOLICITORS,Assistant Chief Executive (Excl SIU),3000.00,Insurance,2324P04_00282,163069
Sandwell Metropolitan Borough Council,http://www.sandwell.gov.uk/info/200202/performance_and_spending/1079/payments_over_500,06-Jul-2023,FINANCE (Inc SIU),CANTER LEVIN & BERG SOLICITORS,Assistant Chief Executive (Excl SIU),3500.00,Insurance,2324P04_00283,57595
Sandwell Metropolitan Borough Council,http://www.sandwell.gov.uk/info/200202/performance_and_spending/1079/payments_over_500,07-Jul-2023,FINANCE (Inc SIU),R3 POLYGON UK LTD,Assistant Chief Executive (Excl SIU),3595.96,Insurance,2324P04_00284,01770993
Sandwell Metropolitan Borough Council,http://www.sandwell.gov.uk/info/200202/performance_and_spending/1079/payments_over_500,26-Jul-2023,FINANCE (Inc SIU),GOWING LAW SOLICITORS,Assistant Chief Executive (Excl SIU),6000.00,Insurance,2324P04_00285,163069
Sandwell Metropolitan Borough Council,http://www.sandwell.gov.uk/info/200202/performance_and_spending/1079/payments_over_500,21-Jul-2023,FINANCE (Inc SIU),GOWING LAW SOLICITORS,Assistant Chief Executive (Excl SIU),6000.00,Insurance,2324P04_00286,163069
Sandwell Metropolitan Borough Council,http://www.sandwell.gov.uk/info/200202/performance_and_spending/1079/payments_over_500,13-Jul-2023,FINANCE (Inc SIU),DRISCOLL KINGSTON SOLICITORS,Assistant Chief Executive (Excl SIU),7000.00,Insurance,2324P04_00287,140883
Sandwell Metropolitan Borough Council,http://www.sandwell.gov.uk/info/200202/performance_and_spending/1079/payments_over_500,11-Jul-2023,FINANCE (Inc SIU),MCDERMOTT SMITH LAW CLIENT ACCOUNT,Assistant Chief Executive (Excl SIU),8000.00,Insurance,2324P04_00288,164526
Sandwell Metropolitan Borough Council,http://www.sandwell.gov.uk/info/200202/performance_and_spending/1079/payments_over_500,26-Jul-2023,FINANCE (Inc SIU),GOWING LAW SOLICITORS,Assistant Chief Executive (Excl SIU),9150.00,Insurance,2324P04_00289,163069
Sandwell Metropolitan Borough Council,http://www.sandwell.gov.uk/info/200202/performance_and_spending/1079/payments_over_500,14-Jul-2023,FINANCE (Inc SIU),RAMSDENS SOLICITORS LLP,Assistant Chief Executive (Excl SIU),16000.00,Insurance,2324P04_00290,117972
Sandwell Metropolitan Borough Council,http://www.sandwell.gov.uk/info/200202/performance_and_spending/1079/payments_over_500,26-Jul-2023,FINANCE (Inc SIU),IRWIN MITCHELL LLP,Assistant Chief Executive (Excl SIU),25000.00,Insurance,2324P04_00291,103991
Sandwell Metropolitan Borough Council,http://www.sandwell.gov.uk/info/200202/performance_and_spending/1079/payments_over_500,24-Jul-2023,FINANCE (Inc SIU),TIPTON GREEN JUNIOR SCHOOL,Assistant Chief Executive (Excl SIU),36916.16,Insurance,2324P04_00292,61068
Sandwell Metropolitan Borough Council,http://www.sandwell.gov.uk/info/200202/performance_and_spending/1079/payments_over_500,01-Jul-2023,FINANCE (Inc SIU),REDACTIVE EVENTS LTD,Assistant Chief Executive (Excl SIU),595.00,Conference Expenses,2324P04_00293,92912
Sandwell Metropolitan Borough Council,http://www.sandwell.gov.uk/info/200202/performance_and_spending/1079/payments_over_500,18-Jul-2023,FINANCE (Inc SIU),XEROX FINANCE LTD,Total Adult Social Care,619.25,"Printing, Stationery & General Office Expenses",2324P04_00294,2269
Sandwell Metropolitan Borough Council,http://www.sandwell.gov.uk/info/200202/performance_and_spending/1079/payments_over_500,01-Jul-2023,FINANCE (Inc SIU),NEC SOFTWARE SOLUTIONS UK LTD,Assistant Chief Executive (Excl SIU),634.34,Private Contractors,2324P04_00295,56043
Sandwell Metropolitan Borough Council,http://www.sandwell.gov.uk/info/200202/performance_and_spending/1079/payments_over_500,18-Jul-2023,FINANCE (Inc SIU),PHOENIX SOFTWARE LTD,Assistant Chief Executive (Excl SIU),708.30,ICT ,2324P04_00296,01504689
Sandwell Metropolitan Borough Council,http://www.sandwell.gov.uk/info/200202/performance_and_spending/1079/payments_over_500,04-Jul-2023,FINANCE (Inc SIU),PAYPOINT PLC,Assistant Chief Executive (Excl SIU),744.85,Fuel ,2324P04_00297,112333
Sandwell Metropolitan Borough Council,http://www.sandwell.gov.uk/info/200202/performance_and_spending/1079/payments_over_500,12-Jul-2023,FINANCE (Inc SIU),RENAISSANCE CREATIVE DESIGN & PRINT LTD,Assistant Chief Executive (Excl SIU),775.00,Advertising & Publicity,2324P04_00298,97376
Sandwell Metropolitan Borough Council,http://www.sandwell.gov.uk/info/200202/performance_and_spending/1079/payments_over_500,25-Jul-2023,FINANCE (Inc SIU),PAYPOINT PLC,Assistant Chief Executive (Excl SIU),815.85,Fuel ,2324P04_00299,112333
Sandwell Metropolitan Borough Council,http://www.sandwell.gov.uk/info/200202/performance_and_spending/1079/payments_over_500,18-Jul-2023,FINANCE (Inc SIU),RESTORE SCAN LIMITED,Total Adult Social Care,914.20,Waste Disposal Charges,2324P04_00300,13549
Sandwell Metropolitan Borough Council,http://www.sandwell.gov.uk/info/200202/performance_and_spending/1079/payments_over_500,12-Jul-2023,FINANCE (Inc SIU),RENAISSANCE CREATIVE DESIGN & PRINT LTD,Assistant Chief Executive (Excl SIU),960.00,Advertising & Publicity,2324P04_00301,97376
Sandwell Metropolitan Borough Council,http://www.sandwell.gov.uk/info/200202/performance_and_spending/1079/payments_over_500,01-Jul-2023,FINANCE (Inc SIU),PAYPOINT PLC,Assistant Chief Executive (Excl SIU),1090.85,Fuel ,2324P04_00302,112333
Sandwell Metropolitan Borough Council,http://www.sandwell.gov.uk/info/200202/performance_and_spending/1079/payments_over_500,19-Jul-2023,FINANCE (Inc SIU),PAYPOINT PLC,Assistant Chief Executive (Excl SIU),1294.85,Fuel ,2324P04_00303,112333
Sandwell Metropolitan Borough Council,http://www.sandwell.gov.uk/info/200202/performance_and_spending/1079/payments_over_500,01-Jul-2023,FINANCE (Inc SIU),CAMMAX LTD,Assistant Chief Executive (Excl SIU),1454.12,Equipment & Furniture ,2324P04_00304,140126
Sandwell Metropolitan Borough Council,http://www.sandwell.gov.uk/info/200202/performance_and_spending/1079/payments_over_500,01-Jul-2023,FINANCE (Inc SIU),GBS PROCURE LIMITED,Assistant Chief Executive (Excl SIU),1784.95,Externally Purchased Professional Services ,2324P04_00305,165756
Sandwell Metropolitan Borough Council,http://www.sandwell.gov.uk/info/200202/performance_and_spending/1079/payments_over_500,11-Jul-2023,FINANCE (Inc SIU),IRON MOUNTAIN (UK) LTD,Assistant Chief Executive (Excl SIU),1875.90,ICT ,2324P04_00306,01719704
Sandwell Metropolitan Borough Council,http://www.sandwell.gov.uk/info/200202/performance_and_spending/1079/payments_over_500,01-Jul-2023,FINANCE (Inc SIU),CIPFA C.CO,Assistant Chief Executive (Excl SIU),2119.00,Externally Purchased Professional Services ,2324P04_00307,134304
Sandwell Metropolitan Borough Council,http://www.sandwell.gov.uk/info/200202/performance_and_spending/1079/payments_over_500,01-Jul-2023,FINANCE (Inc SIU),GREENHALGH KERR SOLICITORS LIMITED,Assistant Chief Executive (Excl SIU),2276.00,Externally Purchased Professional Services ,2324P04_00308,127273
Sandwell Metropolitan Borough Council,http://www.sandwell.gov.uk/info/200202/performance_and_spending/1079/payments_over_500,01-Jul-2023,FINANCE (Inc SIU),LAVAT CONSULTING LIMITED T/A PSTAX,Assistant Chief Executive (Excl SIU),2400.00,Consultancy,2324P04_00309,127781
Sandwell Metropolitan Borough Council,http://www.sandwell.gov.uk/info/200202/performance_and_spending/1079/payments_over_500,11-Jul-2023,FINANCE (Inc SIU),CDW LIMITED,Assistant Chief Executive (Excl SIU),2465.10,ICT ,2324P04_00310,140946
Sandwell Metropolitan Borough Council,http://www.sandwell.gov.uk/info/200202/performance_and_spending/1079/payments_over_500,01-Jul-2023,FINANCE (Inc SIU),GREENHALGH KERR SOLICITORS LIMITED,Assistant Chief Executive (Excl SIU),3003.00,Externally Purchased Professional Services ,2324P04_00311,127273
Sandwell Metropolitan Borough Council,http://www.sandwell.gov.uk/info/200202/performance_and_spending/1079/payments_over_500,01-Jul-2023,FINANCE (Inc SIU),GREENHALGH KERR SOLICITORS LIMITED,Assistant Chief Executive (Excl SIU),3023.00,Externally Purchased Professional Services ,2324P04_00312,127273
Sandwell Metropolitan Borough Council,http://www.sandwell.gov.uk/info/200202/performance_and_spending/1079/payments_over_500,01-Jul-2023,FINANCE (Inc SIU),NHS PENSIONS,Assistant Chief Executive (Excl SIU),3243.08,LGS,2324P04_00313,141186
Sandwell Metropolitan Borough Council,http://www.sandwell.gov.uk/info/200202/performance_and_spending/1079/payments_over_500,01-Jul-2023,FINANCE (Inc SIU),SUPPORT WAREHOUSE LTD,Assistant Chief Executive (Excl SIU),4794.71,ICT ,2324P04_00314,140978
Sandwell Metropolitan Borough Council,http://www.sandwell.gov.uk/info/200202/performance_and_spending/1079/payments_over_500,01-Jul-2023,FINANCE (Inc SIU),HAWK INCENTIVES LTD,Assistant Chief Executive (Excl SIU),5000.00,Catering Provisions,2324P04_00315,148982
Sandwell Metropolitan Borough Council,http://www.sandwell.gov.uk/info/200202/performance_and_spending/1079/payments_over_500,01-Jul-2023,FINANCE (Inc SIU),GREENHALGH KERR SOLICITORS LIMITED,Assistant Chief Executive (Excl SIU),5510.00,Externally Purchased Professional Services ,2324P04_00316,127273
Sandwell Metropolitan Borough Council,http://www.sandwell.gov.uk/info/200202/performance_and_spending/1079/payments_over_500,01-Jul-2023,FINANCE (Inc SIU),SOCITM ADVISORY LTD,Assistant Chief Executive (Excl SIU),9833.33,Consultancy,2324P04_00317,162370
Sandwell Metropolitan Borough Council,http://www.sandwell.gov.uk/info/200202/performance_and_spending/1079/payments_over_500,01-Jul-2023,FINANCE (Inc SIU),HAWK INCENTIVES LTD,Assistant Chief Executive (Excl SIU),15000.00,Catering Provisions,2324P04_00318,148982
Sandwell Metropolitan Borough Council,http://www.sandwell.gov.uk/info/200202/performance_and_spending/1079/payments_over_500,24-Jul-2023,FINANCE (Inc SIU),SOCITM ADVISORY LTD,Assistant Chief Executive (Excl SIU),16150.00,Consultancy,2324P04_00319,162370
Sandwell Metropolitan Borough Council,http://www.sandwell.gov.uk/info/200202/performance_and_spending/1079/payments_over_500,01-Jul-2023,FINANCE (Inc SIU),PROVISION HOUSE,Assistant Chief Executive (Excl SIU),17825.00,Equipment & Furniture ,2324P04_00320,163600
Sandwell Metropolitan Borough Council,http://www.sandwell.gov.uk/info/200202/performance_and_spending/1079/payments_over_500,01-Jul-2023,FINANCE (Inc SIU),SOCITM ADVISORY LTD,Assistant Chief Executive (Excl SIU),19796.43,Consultancy,2324P04_00321,162370
Sandwell Metropolitan Borough Council,http://www.sandwell.gov.uk/info/200202/performance_and_spending/1079/payments_over_500,01-Jul-2023,FINANCE (Inc SIU),HAWK INCENTIVES LTD,Assistant Chief Executive (Excl SIU),20000.00,Catering Provisions,2324P04_00322,148982
Sandwell Metropolitan Borough Council,http://www.sandwell.gov.uk/info/200202/performance_and_spending/1079/payments_over_500,01-Jul-2023,FINANCE (Inc SIU),CIPFA C.CO,Assistant Chief Executive (Excl SIU),40000.00,Externally Purchased Professional Services ,2324P04_00323,134304
Sandwell Metropolitan Borough Council,http://www.sandwell.gov.uk/info/200202/performance_and_spending/1079/payments_over_500,01-Jul-2023,FINANCE (Inc SIU),SOCITM ADVISORY LTD,Assistant Chief Executive (Excl SIU),71410.71,Consultancy,2324P04_00324,162370
Sandwell Metropolitan Borough Council,http://www.sandwell.gov.uk/info/200202/performance_and_spending/1079/payments_over_500,05-Jul-2023,FINANCE (Inc SIU),SANDWELL CHILDREN'S TRUST,Assistant Chief Executive (Excl SIU),190000.00,Grant Payments,2324P04_00325,133302
Sandwell Metropolitan Borough Council,http://www.sandwell.gov.uk/info/200202/performance_and_spending/1079/payments_over_500,01-Jul-2023,FINANCE (Inc SIU),INFOSYS LIMITED,Assistant Chief Executive (Excl SIU),338310.00,Consultancy,2324P04_00326,164052
Sandwell Metropolitan Borough Council,http://www.sandwell.gov.uk/info/200202/performance_and_spending/1079/payments_over_500,10-Jul-2023,FINANCE (Inc SIU),ALBRIGHT EDUCATION CENTRE,Assistant Chief Executive (Excl SIU),630.00,Schools Support Services,2324P04_00327,151478
Sandwell Metropolitan Borough Council,http://www.sandwell.gov.uk/info/200202/performance_and_spending/1079/payments_over_500,10-Jul-2023,FINANCE (Inc SIU),ELM TREE PRIMARY ACADEMY,Assistant Chief Executive (Excl SIU),735.00,Grant Payments,2324P04_00328,164361
Sandwell Metropolitan Borough Council,http://www.sandwell.gov.uk/info/200202/performance_and_spending/1079/payments_over_500,10-Jul-2023,FINANCE (Inc SIU),WHITECREST PRIMARY SCHOOL ,Assistant Chief Executive (Excl SIU),2070.00,Schools Support Services,2324P04_00329,61075
Sandwell Metropolitan Borough Council,http://www.sandwell.gov.uk/info/200202/performance_and_spending/1079/payments_over_500,10-Jul-2023,FINANCE (Inc SIU),ST MARGARETS C OF E PRIMARY SCHOOL,Assistant Chief Executive (Excl SIU),2340.00,Schools Support Services,2324P04_00330,61057
Sandwell Metropolitan Borough Council,http://www.sandwell.gov.uk/info/200202/performance_and_spending/1079/payments_over_500,10-Jul-2023,FINANCE (Inc SIU),HIGH POINT ACADEMY,Assistant Chief Executive (Excl SIU),2790.00,Grant Payments,2324P04_00331,152394
Sandwell Metropolitan Borough Council,http://www.sandwell.gov.uk/info/200202/performance_and_spending/1079/payments_over_500,10-Jul-2023,FINANCE (Inc SIU),HOLY NAME CATHOLIC PRIMARY,Assistant Chief Executive (Excl SIU),3780.00,Schools Support Services,2324P04_00332,92683
Sandwell Metropolitan Borough Council,http://www.sandwell.gov.uk/info/200202/performance_and_spending/1079/payments_over_500,10-Jul-2023,FINANCE (Inc SIU),HAMSTEAD INFANT SCHOOL,Assistant Chief Executive (Excl SIU),3870.00,Schools Support Services,2324P04_00333,60997
Sandwell Metropolitan Borough Council,http://www.sandwell.gov.uk/info/200202/performance_and_spending/1079/payments_over_500,10-Jul-2023,FINANCE (Inc SIU),ABBEY INFANT SCHOOL          ,Assistant Chief Executive (Excl SIU),3960.00,Schools Support Services,2324P04_00334,60959
Sandwell Metropolitan Borough Council,http://www.sandwell.gov.uk/info/200202/performance_and_spending/1079/payments_over_500,10-Jul-2023,FINANCE (Inc SIU),ST CATHERINE OF SIENA MULTI ACADEMY COMPANY,Assistant Chief Executive (Excl SIU),4050.00,Grant Payments,2324P04_00335,61052
Sandwell Metropolitan Borough Council,http://www.sandwell.gov.uk/info/200202/performance_and_spending/1079/payments_over_500,10-Jul-2023,FINANCE (Inc SIU),ST FRANCIS XAVIER CATHOLIC PRIMARY,Assistant Chief Executive (Excl SIU),4050.00,Grant Payments,2324P04_00336,61051
Sandwell Metropolitan Borough Council,http://www.sandwell.gov.uk/info/200202/performance_and_spending/1079/payments_over_500,10-Jul-2023,FINANCE (Inc SIU),ST MARYS RC PRIMARY SCHOOL ,Assistant Chief Executive (Excl SIU),4080.00,Grant Payments,2324P04_00337,61060
Sandwell Metropolitan Borough Council,http://www.sandwell.gov.uk/info/200202/performance_and_spending/1079/payments_over_500,10-Jul-2023,FINANCE (Inc SIU),ST JOHN BOSCO RC PRIMARY SCHOOL   ,Assistant Chief Executive (Excl SIU),4230.00,Grant Payments,2324P04_00338,61055
Sandwell Metropolitan Borough Council,http://www.sandwell.gov.uk/info/200202/performance_and_spending/1079/payments_over_500,10-Jul-2023,FINANCE (Inc SIU),ST MARTINS CE PRIMARY SCHOOL,Assistant Chief Executive (Excl SIU),4410.00,Schools Support Services,2324P04_00339,61058
Sandwell Metropolitan Borough Council,http://www.sandwell.gov.uk/info/200202/performance_and_spending/1079/payments_over_500,10-Jul-2023,FINANCE (Inc SIU),GROVE VALE PRIMARY SCHOOL,Assistant Chief Executive (Excl SIU),4500.00,Schools Support Services,2324P04_00340,60993
Sandwell Metropolitan Borough Council,http://www.sandwell.gov.uk/info/200202/performance_and_spending/1079/payments_over_500,10-Jul-2023,FINANCE (Inc SIU),ST MARY MAGDALENE CE PRIMARY SCHOOL   ,Assistant Chief Executive (Excl SIU),5145.00,Schools Support Services,2324P04_00341,61059
Sandwell Metropolitan Borough Council,http://www.sandwell.gov.uk/info/200202/performance_and_spending/1079/payments_over_500,10-Jul-2023,FINANCE (Inc SIU),OCKER HILL INFANT SCHOOL ,Assistant Chief Executive (Excl SIU),5310.00,Schools Support Services,2324P04_00342,61036
Sandwell Metropolitan Borough Council,http://www.sandwell.gov.uk/info/200202/performance_and_spending/1079/payments_over_500,10-Jul-2023,FINANCE (Inc SIU),CORNGREAVES ACADEMY,Assistant Chief Executive (Excl SIU),5400.00,Grant Payments,2324P04_00343,112862
Sandwell Metropolitan Borough Council,http://www.sandwell.gov.uk/info/200202/performance_and_spending/1079/payments_over_500,10-Jul-2023,FINANCE (Inc SIU),DEVONSHIRE INFANTS ACADEMY,Assistant Chief Executive (Excl SIU),5760.00,Grant Payments,2324P04_00344,118366
Sandwell Metropolitan Borough Council,http://www.sandwell.gov.uk/info/200202/performance_and_spending/1079/payments_over_500,10-Jul-2023,FINANCE (Inc SIU),LIGHTWOODS PRIMARY ACADEMY .,Assistant Chief Executive (Excl SIU),5790.00,Grant Payments,2324P04_00345,61012
Sandwell Metropolitan Borough Council,http://www.sandwell.gov.uk/info/200202/performance_and_spending/1079/payments_over_500,10-Jul-2023,FINANCE (Inc SIU),ST PAULS C OF E ACADEMY,Assistant Chief Executive (Excl SIU),5790.00,Grant Payments,2324P04_00346,118126
Sandwell Metropolitan Borough Council,http://www.sandwell.gov.uk/info/200202/performance_and_spending/1079/payments_over_500,10-Jul-2023,FINANCE (Inc SIU),PARK HILL PRIMARY SCHOOL,Assistant Chief Executive (Excl SIU),5850.00,Schools Support Services,2324P04_00347,61040
Sandwell Metropolitan Borough Council,http://www.sandwell.gov.uk/info/200202/performance_and_spending/1079/payments_over_500,10-Jul-2023,FINANCE (Inc SIU),TIVIDALE COMMUNITY PRIMARY  ,Assistant Chief Executive (Excl SIU),6390.00,Schools Support Services,2324P04_00348,61069
Sandwell Metropolitan Borough Council,http://www.sandwell.gov.uk/info/200202/performance_and_spending/1079/payments_over_500,10-Jul-2023,FINANCE (Inc SIU),ANNIE LENNARD INFANT SCHOOL,Assistant Chief Executive (Excl SIU),6660.00,Schools Support Services,2324P04_00349,60966
Sandwell Metropolitan Borough Council,http://www.sandwell.gov.uk/info/200202/performance_and_spending/1079/payments_over_500,10-Jul-2023,FINANCE (Inc SIU),ORCHARD SCHOOL  ,Assistant Chief Executive (Excl SIU),6660.00,Schools Support Services,2324P04_00350,60956
Sandwell Metropolitan Borough Council,http://www.sandwell.gov.uk/info/200202/performance_and_spending/1079/payments_over_500,10-Jul-2023,FINANCE (Inc SIU),OUR LADY AND ST HUBERTS CATHOLIC PRIMARY SCHOOL,Assistant Chief Executive (Excl SIU),6660.00,Grant Payments,2324P04_00351,61053
Sandwell Metropolitan Borough Council,http://www.sandwell.gov.uk/info/200202/performance_and_spending/1079/payments_over_500,10-Jul-2023,FINANCE (Inc SIU),ALBERT PRITCHARD INFANT SCHOOL,Assistant Chief Executive (Excl SIU),6840.00,Schools Support Services,2324P04_00352,60962
Sandwell Metropolitan Borough Council,http://www.sandwell.gov.uk/info/200202/performance_and_spending/1079/payments_over_500,10-Jul-2023,FINANCE (Inc SIU),MOORLANDS PRIMARY SCHOOL  ,Assistant Chief Executive (Excl SIU),7020.00,Schools Support Services,2324P04_00353,04036544
Sandwell Metropolitan Borough Council,http://www.sandwell.gov.uk/info/200202/performance_and_spending/1079/payments_over_500,10-Jul-2023,FINANCE (Inc SIU),HAMSTEAD JUNIOR SCHOOL  ,Assistant Chief Executive (Excl SIU),7035.00,Schools Support Services,2324P04_00354,60998
Sandwell Metropolitan Borough Council,http://www.sandwell.gov.uk/info/200202/performance_and_spending/1079/payments_over_500,10-Jul-2023,FINANCE (Inc SIU),SHENSTONE LODGE SCHOOL   ,Assistant Chief Executive (Excl SIU),7200.00,Grant Payments,2324P04_00355,22995
Sandwell Metropolitan Borough Council,http://www.sandwell.gov.uk/info/200202/performance_and_spending/1079/payments_over_500,10-Jul-2023,FINANCE (Inc SIU),SHIRELAND BIOMEDICAL UTC,Assistant Chief Executive (Excl SIU),7200.00,Grant Payments,2324P04_00356,128174
Sandwell Metropolitan Borough Council,http://www.sandwell.gov.uk/info/200202/performance_and_spending/1079/payments_over_500,10-Jul-2023,FINANCE (Inc SIU),ST JOHNS C OF E PRIMARY ACADEMY,Assistant Chief Executive (Excl SIU),7290.00,Grant Payments,2324P04_00357,61056
Sandwell Metropolitan Borough Council,http://www.sandwell.gov.uk/info/200202/performance_and_spending/1079/payments_over_500,10-Jul-2023,FINANCE (Inc SIU),SHIRELAND TECHNOLOGY PRIMARY SCHOOL,Assistant Chief Executive (Excl SIU),7380.00,Grant Payments,2324P04_00358,148598
Sandwell Metropolitan Borough Council,http://www.sandwell.gov.uk/info/200202/performance_and_spending/1079/payments_over_500,10-Jul-2023,FINANCE (Inc SIU),ST PHILIPS CATHOLIC PRIMARY ,Assistant Chief Executive (Excl SIU),7470.00,Grant Payments,2324P04_00359,61063
Sandwell Metropolitan Borough Council,http://www.sandwell.gov.uk/info/200202/performance_and_spending/1079/payments_over_500,10-Jul-2023,FINANCE (Inc SIU),TIMBERTREE (ACADEMY) PRIMARY SCHOOL,Assistant Chief Executive (Excl SIU),7560.00,Grant Payments,2324P04_00360,112804
Sandwell Metropolitan Borough Council,http://www.sandwell.gov.uk/info/200202/performance_and_spending/1079/payments_over_500,10-Jul-2023,FINANCE (Inc SIU),GRACE MARY PRIMARY SCHOOL  ,Assistant Chief Executive (Excl SIU),7575.00,Schools Support Services,2324P04_00361,60991
Sandwell Metropolitan Borough Council,http://www.sandwell.gov.uk/info/200202/performance_and_spending/1079/payments_over_500,10-Jul-2023,FINANCE (Inc SIU),SILVERTREES ACADEMY TRUST,Assistant Chief Executive (Excl SIU),7740.00,Grant Payments,2324P04_00362,113719
Sandwell Metropolitan Borough Council,http://www.sandwell.gov.uk/info/200202/performance_and_spending/1079/payments_over_500,10-Jul-2023,FINANCE (Inc SIU),OLD HILL PRIMARY SCHOOL ,Assistant Chief Executive (Excl SIU),7755.00,Schools Support Services,2324P04_00363,61038
Sandwell Metropolitan Borough Council,http://www.sandwell.gov.uk/info/200202/performance_and_spending/1079/payments_over_500,10-Jul-2023,FINANCE (Inc SIU),KING GEORGE V PRIMARY SCHOOL,Assistant Chief Executive (Excl SIU),7845.00,Schools Support Services,2324P04_00364,61009
Sandwell Metropolitan Borough Council,http://www.sandwell.gov.uk/info/200202/performance_and_spending/1079/payments_over_500,10-Jul-2023,FINANCE (Inc SIU),HOLYHEAD PRIMARY ACADEMY,Assistant Chief Executive (Excl SIU),8010.00,Grant Payments,2324P04_00365,61005
Sandwell Metropolitan Borough Council,http://www.sandwell.gov.uk/info/200202/performance_and_spending/1079/payments_over_500,10-Jul-2023,FINANCE (Inc SIU),PERRYFIELDS PRIMARY SCHOOL,Assistant Chief Executive (Excl SIU),8190.00,Schools Support Services,2324P04_00366,61042
Sandwell Metropolitan Borough Council,http://www.sandwell.gov.uk/info/200202/performance_and_spending/1079/payments_over_500,10-Jul-2023,FINANCE (Inc SIU),OCKER HILL ACADEMY,Assistant Chief Executive (Excl SIU),8280.00,Grant Payments,2324P04_00367,113691
Sandwell Metropolitan Borough Council,http://www.sandwell.gov.uk/info/200202/performance_and_spending/1079/payments_over_500,10-Jul-2023,FINANCE (Inc SIU),BRICKHOUSE PRIMARY SCHOOL,Assistant Chief Executive (Excl SIU),8370.00,Schools Support Services,2324P04_00368,60973
Sandwell Metropolitan Borough Council,http://www.sandwell.gov.uk/info/200202/performance_and_spending/1079/payments_over_500,10-Jul-2023,FINANCE (Inc SIU),ABBEY JUNIOR SCHOOL   ,Assistant Chief Executive (Excl SIU),8385.00,Schools Support Services,2324P04_00369,60961
Sandwell Metropolitan Borough Council,http://www.sandwell.gov.uk/info/200202/performance_and_spending/1079/payments_over_500,10-Jul-2023,FINANCE (Inc SIU),OAKHAM PRIMARY SCHOOL ,Assistant Chief Executive (Excl SIU),8640.00,Schools Support Services,2324P04_00370,61035
Sandwell Metropolitan Borough Council,http://www.sandwell.gov.uk/info/200202/performance_and_spending/1079/payments_over_500,10-Jul-2023,FINANCE (Inc SIU),TIVIDALE HALL PRIMARY SCHOOL ,Assistant Chief Executive (Excl SIU),8670.00,Schools Support Services,2324P04_00371,61070
Sandwell Metropolitan Borough Council,http://www.sandwell.gov.uk/info/200202/performance_and_spending/1079/payments_over_500,10-Jul-2023,FINANCE (Inc SIU),DEVONSHIRE JUNIOR ACADEMY,Assistant Chief Executive (Excl SIU),9180.00,Grant Payments,2324P04_00372,118367
Sandwell Metropolitan Borough Council,http://www.sandwell.gov.uk/info/200202/performance_and_spending/1079/payments_over_500,10-Jul-2023,FINANCE (Inc SIU),ALL SAINTS CE PRIMARY SCHOOL   ,Assistant Chief Executive (Excl SIU),9570.00,Schools Support Services,2324P04_00373,60964
Sandwell Metropolitan Borough Council,http://www.sandwell.gov.uk/info/200202/performance_and_spending/1079/payments_over_500,10-Jul-2023,FINANCE (Inc SIU),BLEAKHOUSE PRIMARY SCHOOL.,Assistant Chief Executive (Excl SIU),9720.00,Schools Support Services,2324P04_00374,60969
Sandwell Metropolitan Borough Council,http://www.sandwell.gov.uk/info/200202/performance_and_spending/1079/payments_over_500,10-Jul-2023,FINANCE (Inc SIU),JUBILEE PARK ACADEMY TRUST,Assistant Chief Executive (Excl SIU),9810.00,Grant Payments,2324P04_00375,113377
Sandwell Metropolitan Borough Council,http://www.sandwell.gov.uk/info/200202/performance_and_spending/1079/payments_over_500,10-Jul-2023,FINANCE (Inc SIU),NEWTOWN PRIMARY ACADEMY  ,Assistant Chief Executive (Excl SIU),9810.00,Grant Payments,2324P04_00376,61034
Sandwell Metropolitan Borough Council,http://www.sandwell.gov.uk/info/200202/performance_and_spending/1079/payments_over_500,10-Jul-2023,FINANCE (Inc SIU),OLD PARK PRIMARY SCHOOL  ,Assistant Chief Executive (Excl SIU),9915.00,Schools Support Services,2324P04_00377,61039
Sandwell Metropolitan Borough Council,http://www.sandwell.gov.uk/info/200202/performance_and_spending/1079/payments_over_500,10-Jul-2023,FINANCE (Inc SIU),MEADOWS SCHOOL,Assistant Chief Executive (Excl SIU),10005.00,Schools Support Services,2324P04_00378,60955
Sandwell Metropolitan Borough Council,http://www.sandwell.gov.uk/info/200202/performance_and_spending/1079/payments_over_500,10-Jul-2023,FINANCE (Inc SIU),CHRIST CHURCH CE PRIMARY ,Assistant Chief Executive (Excl SIU),10530.00,Schools Support Services,2324P04_00379,60978
Sandwell Metropolitan Borough Council,http://www.sandwell.gov.uk/info/200202/performance_and_spending/1079/payments_over_500,10-Jul-2023,FINANCE (Inc SIU),MOAT FARM INFANTS SCHOOL ,Assistant Chief Executive (Excl SIU),10710.00,Schools Support Services,2324P04_00380,61031
Sandwell Metropolitan Borough Council,http://www.sandwell.gov.uk/info/200202/performance_and_spending/1079/payments_over_500,10-Jul-2023,FINANCE (Inc SIU),RYDERS GREEN PRIMARY SCHOOL,Assistant Chief Executive (Excl SIU),10890.00,Schools Support Services,2324P04_00381,61047
Sandwell Metropolitan Borough Council,http://www.sandwell.gov.uk/info/200202/performance_and_spending/1079/payments_over_500,10-Jul-2023,FINANCE (Inc SIU),CAUSEWAY GREEN PRIMARY SCHOOL ,Assistant Chief Executive (Excl SIU),10920.00,Schools Support Services,2324P04_00382,60976
Sandwell Metropolitan Borough Council,http://www.sandwell.gov.uk/info/200202/performance_and_spending/1079/payments_over_500,10-Jul-2023,FINANCE (Inc SIU),WESTMINSTER SCHOOL  ,Assistant Chief Executive (Excl SIU),11250.00,Schools Support Services,2324P04_00383,60957
Sandwell Metropolitan Borough Council,http://www.sandwell.gov.uk/info/200202/performance_and_spending/1079/payments_over_500,10-Jul-2023,FINANCE (Inc SIU),HARVILLS HAWTHORN PRIMARY SCHOOL,Assistant Chief Executive (Excl SIU),11565.00,Schools Support Services,2324P04_00384,01782074
Sandwell Metropolitan Borough Council,http://www.sandwell.gov.uk/info/200202/performance_and_spending/1079/payments_over_500,10-Jul-2023,FINANCE (Inc SIU),EATON VALLEY PRIMARY SCHOOL,Assistant Chief Executive (Excl SIU),11610.00,Schools Support Services,2324P04_00385,60981
Sandwell Metropolitan Borough Council,http://www.sandwell.gov.uk/info/200202/performance_and_spending/1079/payments_over_500,10-Jul-2023,FINANCE (Inc SIU),CROCKETTS LANE COMMUNITY PRIMARY SCHOOL ,Assistant Chief Executive (Excl SIU),11970.00,Schools Support Services,2324P04_00386,60980
Sandwell Metropolitan Borough Council,http://www.sandwell.gov.uk/info/200202/performance_and_spending/1079/payments_over_500,10-Jul-2023,FINANCE (Inc SIU),HIGHFIELDS PRIMARY SCHOOL ,Assistant Chief Executive (Excl SIU),12240.00,Schools Support Services,2324P04_00387,01782118
Sandwell Metropolitan Borough Council,http://www.sandwell.gov.uk/info/200202/performance_and_spending/1079/payments_over_500,10-Jul-2023,FINANCE (Inc SIU),LYNG PRIMARY SCHOOL  ,Assistant Chief Executive (Excl SIU),12330.00,Schools Support Services,2324P04_00388,61026
Sandwell Metropolitan Borough Council,http://www.sandwell.gov.uk/info/200202/performance_and_spending/1079/payments_over_500,10-Jul-2023,FINANCE (Inc SIU),HARGATE PRIMARY SCHOOL,Assistant Chief Executive (Excl SIU),12420.00,Schools Support Services,2324P04_00389,60999
Sandwell Metropolitan Borough Council,http://www.sandwell.gov.uk/info/200202/performance_and_spending/1079/payments_over_500,10-Jul-2023,FINANCE (Inc SIU),ROUNDS GREEN PRIMARY ACADEMY  ,Assistant Chief Executive (Excl SIU),12420.00,Grant Payments,2324P04_00390,61045
Sandwell Metropolitan Borough Council,http://www.sandwell.gov.uk/info/200202/performance_and_spending/1079/payments_over_500,10-Jul-2023,FINANCE (Inc SIU),TEMPLE MEADOW PRIMARY SCHOOL  ,Assistant Chief Executive (Excl SIU),12510.00,Schools Support Services,2324P04_00391,61065
Sandwell Metropolitan Borough Council,http://www.sandwell.gov.uk/info/200202/performance_and_spending/1079/payments_over_500,10-Jul-2023,FINANCE (Inc SIU),WOOD GREEN JUNIOR SCHOOL ,Assistant Chief Executive (Excl SIU),12510.00,Schools Support Services,2324P04_00392,61076
Sandwell Metropolitan Borough Council,http://www.sandwell.gov.uk/info/200202/performance_and_spending/1079/payments_over_500,10-Jul-2023,FINANCE (Inc SIU),GALTON VALLEY PRIMARY SCHOOL,Assistant Chief Executive (Excl SIU),12780.00,Schools Support Services,2324P04_00393,73124
Sandwell Metropolitan Borough Council,http://www.sandwell.gov.uk/info/200202/performance_and_spending/1079/payments_over_500,10-Jul-2023,FINANCE (Inc SIU),HANBURY PRIMARY SCHOOL    ,Assistant Chief Executive (Excl SIU),12870.00,Schools Support Services,2324P04_00394,60995
Sandwell Metropolitan Borough Council,http://www.sandwell.gov.uk/info/200202/performance_and_spending/1079/payments_over_500,10-Jul-2023,FINANCE (Inc SIU),LODGE PRIMARY SCHOOL ,Assistant Chief Executive (Excl SIU),12870.00,Schools Support Services,2324P04_00395,61015
Sandwell Metropolitan Borough Council,http://www.sandwell.gov.uk/info/200202/performance_and_spending/1079/payments_over_500,10-Jul-2023,FINANCE (Inc SIU),MOAT FARM JUNIOR SCHOOL   ,Assistant Chief Executive (Excl SIU),13230.00,Grant Payments,2324P04_00396,61032
Sandwell Metropolitan Borough Council,http://www.sandwell.gov.uk/info/200202/performance_and_spending/1079/payments_over_500,10-Jul-2023,FINANCE (Inc SIU),BURNT TREE PRIMARY SCHOOL,Assistant Chief Executive (Excl SIU),13320.00,Schools Support Services,2324P04_00397,60974
Sandwell Metropolitan Borough Council,http://www.sandwell.gov.uk/info/200202/performance_and_spending/1079/payments_over_500,10-Jul-2023,FINANCE (Inc SIU),GREAT BRIDGE PRIMARY SCHOOL  ,Assistant Chief Executive (Excl SIU),13320.00,Schools Support Services,2324P04_00398,42484
Sandwell Metropolitan Borough Council,http://www.sandwell.gov.uk/info/200202/performance_and_spending/1079/payments_over_500,10-Jul-2023,FINANCE (Inc SIU),GEORGE BETTS PRIMARY ACADEMY,Assistant Chief Executive (Excl SIU),13530.00,Grant Payments,2324P04_00399,113420
Sandwell Metropolitan Borough Council,http://www.sandwell.gov.uk/info/200202/performance_and_spending/1079/payments_over_500,10-Jul-2023,FINANCE (Inc SIU),TIPTON GREEN JUNIOR SCHOOL,Assistant Chief Executive (Excl SIU),13770.00,Grant Payments,2324P04_00400,61068
Sandwell Metropolitan Borough Council,http://www.sandwell.gov.uk/info/200202/performance_and_spending/1079/payments_over_500,10-Jul-2023,FINANCE (Inc SIU),SPRINGFIELD PRIMARY SCHOOL  ,Assistant Chief Executive (Excl SIU),13785.00,Schools Support Services,2324P04_00401,61050
Sandwell Metropolitan Borough Council,http://www.sandwell.gov.uk/info/200202/performance_and_spending/1079/payments_over_500,10-Jul-2023,FINANCE (Inc SIU),BEARWOOD PRIMARY SCHOOL   ,Assistant Chief Executive (Excl SIU),14130.00,Schools Support Services,2324P04_00402,60967
Sandwell Metropolitan Borough Council,http://www.sandwell.gov.uk/info/200202/performance_and_spending/1079/payments_over_500,10-Jul-2023,FINANCE (Inc SIU),HOLY TRINITY CE PRIMARY  ,Assistant Chief Executive (Excl SIU),14310.00,Schools Support Services,2324P04_00403,61004
Sandwell Metropolitan Borough Council,http://www.sandwell.gov.uk/info/200202/performance_and_spending/1079/payments_over_500,10-Jul-2023,FINANCE (Inc SIU),REDDAL HILL PRIMARY SCHOOL ,Assistant Chief Executive (Excl SIU),14310.00,Schools Support Services,2324P04_00404,61043
Sandwell Metropolitan Borough Council,http://www.sandwell.gov.uk/info/200202/performance_and_spending/1079/payments_over_500,10-Jul-2023,FINANCE (Inc SIU),HALL GREEN PRIMARY SCHOOL ,Assistant Chief Executive (Excl SIU),14400.00,Schools Support Services,2324P04_00405,60996
Sandwell Metropolitan Borough Council,http://www.sandwell.gov.uk/info/200202/performance_and_spending/1079/payments_over_500,10-Jul-2023,FINANCE (Inc SIU),FERNDALE PRIMARY SCHOOL  ,Assistant Chief Executive (Excl SIU),14760.00,Schools Support Services,2324P04_00406,60987
Sandwell Metropolitan Borough Council,http://www.sandwell.gov.uk/info/200202/performance_and_spending/1079/payments_over_500,10-Jul-2023,FINANCE (Inc SIU),MESTY CROFT ACADEMY,Assistant Chief Executive (Excl SIU),14760.00,Grant Payments,2324P04_00407,106208
Sandwell Metropolitan Borough Council,http://www.sandwell.gov.uk/info/200202/performance_and_spending/1079/payments_over_500,10-Jul-2023,FINANCE (Inc SIU),ST MATTHEWS CE PRIMARY SCHOOL  ,Assistant Chief Executive (Excl SIU),14940.00,Schools Support Services,2324P04_00408,61061
Sandwell Metropolitan Borough Council,http://www.sandwell.gov.uk/info/200202/performance_and_spending/1079/payments_over_500,10-Jul-2023,FINANCE (Inc SIU),HATELEY HEATH PRIMARY ACADEMY ,Assistant Chief Executive (Excl SIU),14955.00,Grant Payments,2324P04_00409,61000
Sandwell Metropolitan Borough Council,http://www.sandwell.gov.uk/info/200202/performance_and_spending/1079/payments_over_500,10-Jul-2023,FINANCE (Inc SIU),BRANDHALL PRIMARY SCHOOL  ,Assistant Chief Executive (Excl SIU),15210.00,Schools Support Services,2324P04_00410,60971
Sandwell Metropolitan Borough Council,http://www.sandwell.gov.uk/info/200202/performance_and_spending/1079/payments_over_500,10-Jul-2023,FINANCE (Inc SIU),LANGLEY PRIMARY SCHOOL,Assistant Chief Executive (Excl SIU),15225.00,Schools Support Services,2324P04_00411,61011
Sandwell Metropolitan Borough Council,http://www.sandwell.gov.uk/info/200202/performance_and_spending/1079/payments_over_500,10-Jul-2023,FINANCE (Inc SIU),BLACKHEATH PRIMARY SCHOOL   ,Assistant Chief Executive (Excl SIU),15930.00,Schools Support Services,2324P04_00412,60968
Sandwell Metropolitan Borough Council,http://www.sandwell.gov.uk/info/200202/performance_and_spending/1079/payments_over_500,10-Jul-2023,FINANCE (Inc SIU),SACRED HEART PRIMARY SCHOOL   ,Assistant Chief Executive (Excl SIU),16110.00,Schools Support Services,2324P04_00413,61048
Sandwell Metropolitan Borough Council,http://www.sandwell.gov.uk/info/200202/performance_and_spending/1079/payments_over_500,10-Jul-2023,FINANCE (Inc SIU),SHIRELAND HALL PRIMARY ACADEMY,Assistant Chief Executive (Excl SIU),17010.00,Grant Payments,2324P04_00414,15209
Sandwell Metropolitan Borough Council,http://www.sandwell.gov.uk/info/200202/performance_and_spending/1079/payments_over_500,10-Jul-2023,FINANCE (Inc SIU),WEDNESBURY OAK ACADEMY,Assistant Chief Executive (Excl SIU),17010.00,Grant Payments,2324P04_00415,116882
Sandwell Metropolitan Borough Council,http://www.sandwell.gov.uk/info/200202/performance_and_spending/1079/payments_over_500,10-Jul-2023,FINANCE (Inc SIU),QUAERERE ACADEMY TRUST,Assistant Chief Executive (Excl SIU),17100.00,Grant Payments,2324P04_00416,60939
Sandwell Metropolitan Borough Council,http://www.sandwell.gov.uk/info/200202/performance_and_spending/1079/payments_over_500,10-Jul-2023,FINANCE (Inc SIU),JOSEPH TURNER PRIMARY SCHOOL,Assistant Chief Executive (Excl SIU),17640.00,Schools Support Services,2324P04_00417,61006
Sandwell Metropolitan Borough Council,http://www.sandwell.gov.uk/info/200202/performance_and_spending/1079/payments_over_500,10-Jul-2023,FINANCE (Inc SIU),GLEBEFIELDS PRIMARY SCHOOL ,Assistant Chief Executive (Excl SIU),17730.00,Schools Support Services,2324P04_00418,60989
Sandwell Metropolitan Borough Council,http://www.sandwell.gov.uk/info/200202/performance_and_spending/1079/payments_over_500,10-Jul-2023,FINANCE (Inc SIU),ROOD END PRIMARY SCHOOL  ,Assistant Chief Executive (Excl SIU),18105.00,Schools Support Services,2324P04_00419,61044
Sandwell Metropolitan Borough Council,http://www.sandwell.gov.uk/info/200202/performance_and_spending/1079/payments_over_500,10-Jul-2023,FINANCE (Inc SIU),ST JAMES C OF E PRIMARY SCHOOL,Assistant Chief Executive (Excl SIU),18390.00,Schools Support Services,2324P04_00420,61054
Sandwell Metropolitan Borough Council,http://www.sandwell.gov.uk/info/200202/performance_and_spending/1079/payments_over_500,10-Jul-2023,FINANCE (Inc SIU),THE PRIORY PRIMARY  ,Assistant Chief Executive (Excl SIU),19095.00,Schools Support Services,2324P04_00421,61066
Sandwell Metropolitan Borough Council,http://www.sandwell.gov.uk/info/200202/performance_and_spending/1079/payments_over_500,10-Jul-2023,FINANCE (Inc SIU),WEST BROMWICH COLLEGIATE ACADEMY,Assistant Chief Executive (Excl SIU),19890.00,Grant Payments,2324P04_00422,137780
Sandwell Metropolitan Borough Council,http://www.sandwell.gov.uk/info/200202/performance_and_spending/1079/payments_over_500,10-Jul-2023,FINANCE (Inc SIU),SHIRELAND COLLEGIATE ACADEMY TRUST T/A TAMESIDE,Assistant Chief Executive (Excl SIU),21150.00,Grant Payments,2324P04_00423,61064
Sandwell Metropolitan Borough Council,http://www.sandwell.gov.uk/info/200202/performance_and_spending/1079/payments_over_500,10-Jul-2023,FINANCE (Inc SIU),VICTORIA PARK PRIMARY ACADEMY,Assistant Chief Executive (Excl SIU),21810.00,Grant Payments,2324P04_00424,106209
Sandwell Metropolitan Borough Council,http://www.sandwell.gov.uk/info/200202/performance_and_spending/1079/payments_over_500,10-Jul-2023,FINANCE (Inc SIU),CAPE PRIMARY SCHOOL,Assistant Chief Executive (Excl SIU),22410.00,Schools Support Services,2324P04_00425,01672537
Sandwell Metropolitan Borough Council,http://www.sandwell.gov.uk/info/200202/performance_and_spending/1079/payments_over_500,10-Jul-2023,FINANCE (Inc SIU),ROWLEY HALL PRIMARY SCHOOL ,Assistant Chief Executive (Excl SIU),22905.00,Schools Support Services,2324P04_00426,61046
Sandwell Metropolitan Borough Council,http://www.sandwell.gov.uk/info/200202/performance_and_spending/1079/payments_over_500,10-Jul-2023,FINANCE (Inc SIU),YEW TREE PRIMARY SCHOOL  ,Assistant Chief Executive (Excl SIU),22995.00,Schools Support Services,2324P04_00427,61078
Sandwell Metropolitan Borough Council,http://www.sandwell.gov.uk/info/200202/performance_and_spending/1079/payments_over_500,10-Jul-2023,FINANCE (Inc SIU),PERRYFIELDS HIGH SCHOOL   ,Assistant Chief Executive (Excl SIU),23865.00,Grant Payments,2324P04_00428,60946
Sandwell Metropolitan Borough Council,http://www.sandwell.gov.uk/info/200202/performance_and_spending/1079/payments_over_500,10-Jul-2023,FINANCE (Inc SIU),SANDWELL ACADEMY TRUST LTD.,Assistant Chief Executive (Excl SIU),24840.00,Grant Payments,2324P04_00429,126137
Sandwell Metropolitan Borough Council,http://www.sandwell.gov.uk/info/200202/performance_and_spending/1079/payments_over_500,10-Jul-2023,FINANCE (Inc SIU),PENNYHILL PRIMARY,Assistant Chief Executive (Excl SIU),25200.00,Schools Support Services,2324P04_00430,73125
Sandwell Metropolitan Borough Council,http://www.sandwell.gov.uk/info/200202/performance_and_spending/1079/payments_over_500,10-Jul-2023,FINANCE (Inc SIU),Q3 ACADEMY LANGLEY,Assistant Chief Executive (Excl SIU),26415.00,Grant Payments,2324P04_00431,128009
Sandwell Metropolitan Borough Council,http://www.sandwell.gov.uk/info/200202/performance_and_spending/1079/payments_over_500,10-Jul-2023,FINANCE (Inc SIU),STUART BATHURST CATHOLIC HIGH SCHOOL ,Assistant Chief Executive (Excl SIU),27360.00,Grant Payments,2324P04_00432,60949
Sandwell Metropolitan Borough Council,http://www.sandwell.gov.uk/info/200202/performance_and_spending/1079/payments_over_500,10-Jul-2023,FINANCE (Inc SIU),UPLANDS MANOR PRIMARY,Assistant Chief Executive (Excl SIU),31365.00,Schools Support Services,2324P04_00433,61071
Sandwell Metropolitan Borough Council,http://www.sandwell.gov.uk/info/200202/performance_and_spending/1079/payments_over_500,10-Jul-2023,FINANCE (Inc SIU),ORMISTON SANDWELL COMMUNITY ACADEMY ,Assistant Chief Executive (Excl SIU),31845.00,Grant Payments,2324P04_00434,60950
Sandwell Metropolitan Borough Council,http://www.sandwell.gov.uk/info/200202/performance_and_spending/1079/payments_over_500,10-Jul-2023,FINANCE (Inc SIU),BRISTNALL HALL ACADEMY,Assistant Chief Executive (Excl SIU),32130.00,Grant Payments,2324P04_00435,107471
Sandwell Metropolitan Borough Council,http://www.sandwell.gov.uk/info/200202/performance_and_spending/1079/payments_over_500,10-Jul-2023,FINANCE (Inc SIU),WOOD GREEN ACADEMY ,Assistant Chief Executive (Excl SIU),33750.00,Grant Payments,2324P04_00436,100125
Sandwell Metropolitan Borough Council,http://www.sandwell.gov.uk/info/200202/performance_and_spending/1079/payments_over_500,10-Jul-2023,FINANCE (Inc SIU),THE RIVERS MULTI ACADEMY TRUST,Assistant Chief Executive (Excl SIU),34380.00,Grant Payments,2324P04_00437,61014
Sandwell Metropolitan Borough Council,http://www.sandwell.gov.uk/info/200202/performance_and_spending/1079/payments_over_500,10-Jul-2023,FINANCE (Inc SIU),ST MICHAELS CE HIGH SCHOOL,Assistant Chief Executive (Excl SIU),36975.00,Schools Support Services,2324P04_00438,60948
Sandwell Metropolitan Borough Council,http://www.sandwell.gov.uk/info/200202/performance_and_spending/1079/payments_over_500,10-Jul-2023,FINANCE (Inc SIU),GEORGE SALTER COLLEGIATE ACADEMY ORMISTON ACADEMIES TRUST,Assistant Chief Executive (Excl SIU),39690.00,Grant Payments,2324P04_00439,01217798
Sandwell Metropolitan Borough Council,http://www.sandwell.gov.uk/info/200202/performance_and_spending/1079/payments_over_500,10-Jul-2023,FINANCE (Inc SIU),GOSPEL OAK SCHOOL,Assistant Chief Executive (Excl SIU),39780.00,Grant Payments,2324P04_00440,60952
Sandwell Metropolitan Borough Council,http://www.sandwell.gov.uk/info/200202/performance_and_spending/1079/payments_over_500,10-Jul-2023,FINANCE (Inc SIU),Q3 ACADEMY TIPTON - THE MERCIAN TRUST,Assistant Chief Executive (Excl SIU),44790.00,Grant Payments,2324P04_00441,112047
Sandwell Metropolitan Borough Council,http://www.sandwell.gov.uk/info/200202/performance_and_spending/1079/payments_over_500,10-Jul-2023,FINANCE (Inc SIU),WODENSBOROUGH ORMISTON ACADEMY,Assistant Chief Executive (Excl SIU),46890.00,Grant Payments,2324P04_00442,115040
Sandwell Metropolitan Borough Council,http://www.sandwell.gov.uk/info/200202/performance_and_spending/1079/payments_over_500,10-Jul-2023,FINANCE (Inc SIU),SHIRELAND COLLEGIATE ACADEMY ,Assistant Chief Executive (Excl SIU),47730.00,Grant Payments,2324P04_00443,60947
Sandwell Metropolitan Borough Council,http://www.sandwell.gov.uk/info/200202/performance_and_spending/1079/payments_over_500,10-Jul-2023,FINANCE (Inc SIU),ORMISTON FORGE ACADEMY,Assistant Chief Executive (Excl SIU),47880.00,Grant Payments,2324P04_00444,60941
Sandwell Metropolitan Borough Council,http://www.sandwell.gov.uk/info/200202/performance_and_spending/1079/payments_over_500,10-Jul-2023,FINANCE (Inc SIU),HOLLY LODGE FOUNDATION HIGH SCHOOL,Assistant Chief Executive (Excl SIU),49245.00,Schools Support Services,2324P04_00445,60942
Sandwell Metropolitan Borough Council,http://www.sandwell.gov.uk/info/200202/performance_and_spending/1079/payments_over_500,10-Jul-2023,FINANCE (Inc SIU),OLDBURY ACADEMY,Assistant Chief Executive (Excl SIU),54330.00,Grant Payments,2324P04_00446,69241
Sandwell Metropolitan Borough Council,http://www.sandwell.gov.uk/info/200202/performance_and_spending/1079/payments_over_500,10-Jul-2023,FINANCE (Inc SIU),PHOENIX COLLEGIATE COLLEGE,Assistant Chief Executive (Excl SIU),62610.00,Schools Support Services,2324P04_00447,95444
Sandwell Metropolitan Borough Council,http://www.sandwell.gov.uk/info/200202/performance_and_spending/1079/payments_over_500,01-Jul-2023,Housing & Assets Total,MIDLAND FORESTRY LIMITED,Housing & Assets Total,-1660.00,Externally Purchased Professional Services ,2324P04_00448,45812
Sandwell Metropolitan Borough Council,http://www.sandwell.gov.uk/info/200202/performance_and_spending/1079/payments_over_500,10-Jul-2023,Housing & Assets Total,REDACTED PERSONAL DATA,Housing & Assets Total,500.00,Rents,2324P04_00449,REDACTED PERSONAL DATA
Sandwell Metropolitan Borough Council,http://www.sandwell.gov.uk/info/200202/performance_and_spending/1079/payments_over_500,10-Jul-2023,Housing & Assets Total,REDACTED PERSONAL DATA,Housing & Assets Total,500.00,Rents,2324P04_00450,REDACTED PERSONAL DATA
Sandwell Metropolitan Borough Council,http://www.sandwell.gov.uk/info/200202/performance_and_spending/1079/payments_over_500,10-Jul-2023,Housing & Assets Total,REDACTED PERSONAL DATA,Housing & Assets Total,500.00,Rents,2324P04_00451,REDACTED PERSONAL DATA
Sandwell Metropolitan Borough Council,http://www.sandwell.gov.uk/info/200202/performance_and_spending/1079/payments_over_500,10-Jul-2023,Housing & Assets Total,REDACTED PERSONAL DATA,Housing & Assets Total,500.00,Rents,2324P04_00452,REDACTED PERSONAL DATA
Sandwell Metropolitan Borough Council,http://www.sandwell.gov.uk/info/200202/performance_and_spending/1079/payments_over_500,10-Jul-2023,Housing & Assets Total,REDACTED PERSONAL DATA,Housing & Assets Total,500.00,Rents,2324P04_00453,REDACTED PERSONAL DATA
Sandwell Metropolitan Borough Council,http://www.sandwell.gov.uk/info/200202/performance_and_spending/1079/payments_over_500,10-Jul-2023,Housing & Assets Total,CONTRACT LETTINGS LTD,Corporate Management,541.80,Rents,2324P04_00454,76625
Sandwell Metropolitan Borough Council,http://www.sandwell.gov.uk/info/200202/performance_and_spending/1079/payments_over_500,01-Jul-2023,Housing & Assets Total,CONTRACT LETTINGS LTD,Corporate Management,559.86,Rents,2324P04_00455,76625
Sandwell Metropolitan Borough Council,http://www.sandwell.gov.uk/info/200202/performance_and_spending/1079/payments_over_500,01-Jul-2023,Housing & Assets Total,CONTRACT LETTINGS LTD,Corporate Management,559.86,Rents,2324P04_00456,76625
Sandwell Metropolitan Borough Council,http://www.sandwell.gov.uk/info/200202/performance_and_spending/1079/payments_over_500,01-Jul-2023,Housing & Assets Total,VICARAGE LODGE BIRMINGHAM,Corporate Management,560.00,Rents,2324P04_00457,111819
Sandwell Metropolitan Borough Council,http://www.sandwell.gov.uk/info/200202/performance_and_spending/1079/payments_over_500,04-Jul-2023,Housing & Assets Total,MIDLAND FORESTRY LIMITED,Housing & Assets Total,571.05,Externally Purchased Professional Services ,2324P04_00458,45812
Sandwell Metropolitan Borough Council,http://www.sandwell.gov.uk/info/200202/performance_and_spending/1079/payments_over_500,01-Jul-2023,Housing & Assets Total,CKP LTD T/A HAGLEY HOTEL,Corporate Management,585.00,Rents,2324P04_00459,143677
Sandwell Metropolitan Borough Council,http://www.sandwell.gov.uk/info/200202/performance_and_spending/1079/payments_over_500,04-Jul-2023,Housing & Assets Total,MIDLAND FORESTRY LIMITED,Housing & Assets Total,599.39,Externally Purchased Professional Services ,2324P04_00460,45812
Sandwell Metropolitan Borough Council,http://www.sandwell.gov.uk/info/200202/performance_and_spending/1079/payments_over_500,17-Jul-2023,Housing & Assets Total,ESSEX AVENUE COMMUNITY ASSOCIATION,Corporate Management,600.00,Tenants Expenses,2324P04_00461,113690
Sandwell Metropolitan Borough Council,http://www.sandwell.gov.uk/info/200202/performance_and_spending/1079/payments_over_500,04-Jul-2023,Housing & Assets Total,MIDLAND FORESTRY LIMITED,Housing & Assets Total,637.53,Externally Purchased Professional Services ,2324P04_00462,45812
Sandwell Metropolitan Borough Council,http://www.sandwell.gov.uk/info/200202/performance_and_spending/1079/payments_over_500,01-Jul-2023,Housing & Assets Total,VICARAGE LODGE BIRMINGHAM,Corporate Management,640.00,Rents,2324P04_00463,111819
Sandwell Metropolitan Borough Council,http://www.sandwell.gov.uk/info/200202/performance_and_spending/1079/payments_over_500,01-Jul-2023,Housing & Assets Total,VICARAGE LODGE BIRMINGHAM,Corporate Management,640.00,Rents,2324P04_00464,111819
Sandwell Metropolitan Borough Council,http://www.sandwell.gov.uk/info/200202/performance_and_spending/1079/payments_over_500,01-Jul-2023,Housing & Assets Total,REDACTED PERSONAL DATA,Housing & Assets Total,680.00,Advertising & Publicity,2324P04_00465,REDACTED PERSONAL DATA
Sandwell Metropolitan Borough Council,http://www.sandwell.gov.uk/info/200202/performance_and_spending/1079/payments_over_500,04-Jul-2023,Housing & Assets Total,MIDLAND FORESTRY LIMITED,Housing & Assets Total,688.75,Externally Purchased Professional Services ,2324P04_00466,45812
Sandwell Metropolitan Borough Council,http://www.sandwell.gov.uk/info/200202/performance_and_spending/1079/payments_over_500,01-Jul-2023,Housing & Assets Total,MIDLAND FORESTRY LIMITED,Housing & Assets Total,692.01,Externally Purchased Professional Services ,2324P04_00467,45812
Sandwell Metropolitan Borough Council,http://www.sandwell.gov.uk/info/200202/performance_and_spending/1079/payments_over_500,01-Jul-2023,Housing & Assets Total,MIDLAND FORESTRY LIMITED,Housing & Assets Total,719.27,Externally Purchased Professional Services ,2324P04_00468,45812
Sandwell Metropolitan Borough Council,http://www.sandwell.gov.uk/info/200202/performance_and_spending/1079/payments_over_500,01-Jul-2023,Housing & Assets Total,CONTRACT LETTINGS LTD,Corporate Management,763.22,Rents,2324P04_00469,76625
Sandwell Metropolitan Borough Council,http://www.sandwell.gov.uk/info/200202/performance_and_spending/1079/payments_over_500,01-Jul-2023,Housing & Assets Total,CKP LTD T/A HAGLEY HOTEL,Corporate Management,765.00,Rents,2324P04_00470,143677
Sandwell Metropolitan Borough Council,http://www.sandwell.gov.uk/info/200202/performance_and_spending/1079/payments_over_500,02-Jul-2023,Housing & Assets Total,"HIGHFIELD HOUSE HOTEL,",Corporate Management,765.00,Rents,2324P04_00471,162756
Sandwell Metropolitan Borough Council,http://www.sandwell.gov.uk/info/200202/performance_and_spending/1079/payments_over_500,02-Jul-2023,Housing & Assets Total,"HIGHFIELD HOUSE HOTEL,",Corporate Management,810.00,Rents,2324P04_00472,162756
Sandwell Metropolitan Borough Council,http://www.sandwell.gov.uk/info/200202/performance_and_spending/1079/payments_over_500,12-Jul-2023,Housing & Assets Total,TOTALENERGIES GAS & POWER LTD,Corporate Management,829.82,Electricity,2324P04_00473,107605
Sandwell Metropolitan Borough Council,http://www.sandwell.gov.uk/info/200202/performance_and_spending/1079/payments_over_500,01-Jul-2023,Housing & Assets Total,CKP LTD T/A HAGLEY HOTEL,Corporate Management,850.00,Rents,2324P04_00474,143677
Sandwell Metropolitan Borough Council,http://www.sandwell.gov.uk/info/200202/performance_and_spending/1079/payments_over_500,04-Jul-2023,Housing & Assets Total,MIDLAND FORESTRY LIMITED,Housing & Assets Total,854.39,Externally Purchased Professional Services ,2324P04_00475,45812
Sandwell Metropolitan Borough Council,http://www.sandwell.gov.uk/info/200202/performance_and_spending/1079/payments_over_500,01-Jul-2023,Housing & Assets Total,CKP LTD T/A HAGLEY HOTEL,Corporate Management,855.00,Rents,2324P04_00476,143677
Sandwell Metropolitan Borough Council,http://www.sandwell.gov.uk/info/200202/performance_and_spending/1079/payments_over_500,01-Jul-2023,Housing & Assets Total,CKP LTD T/A HAGLEY HOTEL,Corporate Management,910.00,Rents,2324P04_00477,143677
Sandwell Metropolitan Borough Council,http://www.sandwell.gov.uk/info/200202/performance_and_spending/1079/payments_over_500,10-Jul-2023,Housing & Assets Total,CONTRACT LETTINGS LTD,Corporate Management,927.00,Rents,2324P04_00478,76625
Sandwell Metropolitan Borough Council,http://www.sandwell.gov.uk/info/200202/performance_and_spending/1079/payments_over_500,01-Jul-2023,Housing & Assets Total,BEECHWOOD TREES & LANDSCAPE LTD,Housing & Assets Total,931.76,Externally Purchased Professional Services ,2324P04_00479,93287
Sandwell Metropolitan Borough Council,http://www.sandwell.gov.uk/info/200202/performance_and_spending/1079/payments_over_500,01-Jul-2023,Housing & Assets Total,BEECHWOOD TREES & LANDSCAPE LTD,Housing & Assets Total,937.22,Externally Purchased Professional Services ,2324P04_00480,93287
Sandwell Metropolitan Borough Council,http://www.sandwell.gov.uk/info/200202/performance_and_spending/1079/payments_over_500,04-Jul-2023,Housing & Assets Total,MIDLAND FORESTRY LIMITED,Housing & Assets Total,952.48,Externally Purchased Professional Services ,2324P04_00481,45812
Sandwell Metropolitan Borough Council,http://www.sandwell.gov.uk/info/200202/performance_and_spending/1079/payments_over_500,27-Jul-2023,Housing & Assets Total,REDACTED PERSONAL DATA,Corporate Management,1000.00,Rents,2324P04_00482,REDACTED PERSONAL DATA
Sandwell Metropolitan Borough Council,http://www.sandwell.gov.uk/info/200202/performance_and_spending/1079/payments_over_500,17-Jul-2023,Housing & Assets Total,WEST MIDLANDS PROPERTY MANAGEMENT & LETTINGS LTD,Corporate Management,1043.00,Rents,2324P04_00483,165891
Sandwell Metropolitan Borough Council,http://www.sandwell.gov.uk/info/200202/performance_and_spending/1079/payments_over_500,01-Jul-2023,Housing & Assets Total,CKP LTD T/A HAGLEY HOTEL,Corporate Management,1085.00,Rents,2324P04_00484,143677
Sandwell Metropolitan Borough Council,http://www.sandwell.gov.uk/info/200202/performance_and_spending/1079/payments_over_500,02-Jul-2023,Housing & Assets Total,"HIGHFIELD HOUSE HOTEL,",Corporate Management,1125.00,Rents,2324P04_00485,162756
Sandwell Metropolitan Borough Council,http://www.sandwell.gov.uk/info/200202/performance_and_spending/1079/payments_over_500,27-Jul-2023,Housing & Assets Total,REDACTED PERSONAL DATA,Corporate Management,1235.00,Rents,2324P04_00486,REDACTED PERSONAL DATA
Sandwell Metropolitan Borough Council,http://www.sandwell.gov.uk/info/200202/performance_and_spending/1079/payments_over_500,01-Jul-2023,Housing & Assets Total,COOKE RUDLING LIMITED,Assistant Chief Executive (Excl SIU),1275.00,Externally Purchased Professional Services ,2324P04_00487,01577073
Sandwell Metropolitan Borough Council,http://www.sandwell.gov.uk/info/200202/performance_and_spending/1079/payments_over_500,24-Jul-2023,Housing & Assets Total,REDACTED PERSONAL DATA,Corporate Management,1275.00,Rents,2324P04_00488,REDACTED PERSONAL DATA
Sandwell Metropolitan Borough Council,http://www.sandwell.gov.uk/info/200202/performance_and_spending/1079/payments_over_500,02-Jul-2023,Housing & Assets Total,"HIGHFIELD HOUSE HOTEL,",Corporate Management,1280.00,Rents,2324P04_00489,162756
Sandwell Metropolitan Borough Council,http://www.sandwell.gov.uk/info/200202/performance_and_spending/1079/payments_over_500,04-Jul-2023,Housing & Assets Total,MIDLAND FORESTRY LIMITED,Housing & Assets Total,1302.32,Externally Purchased Professional Services ,2324P04_00490,45812
Sandwell Metropolitan Borough Council,http://www.sandwell.gov.uk/info/200202/performance_and_spending/1079/payments_over_500,01-Jul-2023,Housing & Assets Total,CKP LTD T/A HAGLEY HOTEL,Corporate Management,1395.00,Rents,2324P04_00491,143677
Sandwell Metropolitan Borough Council,http://www.sandwell.gov.uk/info/200202/performance_and_spending/1079/payments_over_500,01-Jul-2023,Housing & Assets Total,CKP LTD T/A HAGLEY HOTEL,Corporate Management,1430.00,Rents,2324P04_00492,143677
Sandwell Metropolitan Borough Council,http://www.sandwell.gov.uk/info/200202/performance_and_spending/1079/payments_over_500,02-Jul-2023,Housing & Assets Total,"HIGHFIELD HOUSE HOTEL,",Corporate Management,1440.00,Rents,2324P04_00493,162756
Sandwell Metropolitan Borough Council,http://www.sandwell.gov.uk/info/200202/performance_and_spending/1079/payments_over_500,01-Jul-2023,Housing & Assets Total,CKP LTD T/A HAGLEY HOTEL,Corporate Management,1495.00,Rents,2324P04_00494,143677
Sandwell Metropolitan Borough Council,http://www.sandwell.gov.uk/info/200202/performance_and_spending/1079/payments_over_500,07-Jul-2023,Housing & Assets Total,BRUSHSTROKES,Corporate Management,1541.51,Grant Payments,2324P04_00495,21029374
Sandwell Metropolitan Borough Council,http://www.sandwell.gov.uk/info/200202/performance_and_spending/1079/payments_over_500,01-Jul-2023,Housing & Assets Total,CKP LTD T/A HAGLEY HOTEL,Corporate Management,1550.00,Rents,2324P04_00496,143677
Sandwell Metropolitan Borough Council,http://www.sandwell.gov.uk/info/200202/performance_and_spending/1079/payments_over_500,01-Jul-2023,Housing & Assets Total,MIDLAND FORESTRY LIMITED,Housing & Assets Total,1660.00,Externally Purchased Professional Services ,2324P04_00497,45812
Sandwell Metropolitan Borough Council,http://www.sandwell.gov.uk/info/200202/performance_and_spending/1079/payments_over_500,02-Jul-2023,Housing & Assets Total,"HIGHFIELD HOUSE HOTEL,",Corporate Management,1695.00,Rents,2324P04_00498,162756
Sandwell Metropolitan Borough Council,http://www.sandwell.gov.uk/info/200202/performance_and_spending/1079/payments_over_500,01-Jul-2023,Housing & Assets Total,REDACTED PERSONAL DATA,Housing & Assets Total,1723.07,Tenants Expenses,2324P04_00499,REDACTED PERSONAL DATA
Sandwell Metropolitan Borough Council,http://www.sandwell.gov.uk/info/200202/performance_and_spending/1079/payments_over_500,07-Jul-2023,Housing & Assets Total,BRUSHSTROKES,Corporate Management,1775.00,Grant Payments,2324P04_00500,21029374
Sandwell Metropolitan Borough Council,http://www.sandwell.gov.uk/info/200202/performance_and_spending/1079/payments_over_500,02-Jul-2023,Housing & Assets Total,"HIGHFIELD HOUSE HOTEL,",Corporate Management,1800.00,Rents,2324P04_00501,162756
Sandwell Metropolitan Borough Council,http://www.sandwell.gov.uk/info/200202/performance_and_spending/1079/payments_over_500,02-Jul-2023,Housing & Assets Total,"HIGHFIELD HOUSE HOTEL,",Corporate Management,1800.00,Rents,2324P04_00502,162756
Sandwell Metropolitan Borough Council,http://www.sandwell.gov.uk/info/200202/performance_and_spending/1079/payments_over_500,02-Jul-2023,Housing & Assets Total,"HIGHFIELD HOUSE HOTEL,",Corporate Management,1800.00,Rents,2324P04_00503,162756
Sandwell Metropolitan Borough Council,http://www.sandwell.gov.uk/info/200202/performance_and_spending/1079/payments_over_500,01-Jul-2023,Housing & Assets Total,CKP LTD T/A HAGLEY HOTEL,Corporate Management,1845.00,Rents,2324P04_00504,143677
Sandwell Metropolitan Borough Council,http://www.sandwell.gov.uk/info/200202/performance_and_spending/1079/payments_over_500,05-Jul-2023,Housing & Assets Total,JDW SERVICES - REDACTED PERSONAL DATA,Corporate Management,1850.00,Tenants Expenses,2324P04_00505,REDACTED PERSONAL DATA
Sandwell Metropolitan Borough Council,http://www.sandwell.gov.uk/info/200202/performance_and_spending/1079/payments_over_500,01-Jul-2023,Housing & Assets Total,CKP LTD T/A HAGLEY HOTEL,Corporate Management,1860.00,Rents,2324P04_00506,143677
Sandwell Metropolitan Borough Council,http://www.sandwell.gov.uk/info/200202/performance_and_spending/1079/payments_over_500,02-Jul-2023,Housing & Assets Total,"HIGHFIELD HOUSE HOTEL,",Corporate Management,1875.00,Rents,2324P04_00507,162756
Sandwell Metropolitan Borough Council,http://www.sandwell.gov.uk/info/200202/performance_and_spending/1079/payments_over_500,07-Jul-2023,Housing & Assets Total,BRUSHSTROKES,Corporate Management,1930.00,Grant Payments,2324P04_00508,21029374
Sandwell Metropolitan Borough Council,http://www.sandwell.gov.uk/info/200202/performance_and_spending/1079/payments_over_500,17-Jul-2023,Housing & Assets Total,REDACTED PERSONAL DATA,Corporate Management,1982.89,Rents,2324P04_00509,REDACTED PERSONAL DATA
Sandwell Metropolitan Borough Council,http://www.sandwell.gov.uk/info/200202/performance_and_spending/1079/payments_over_500,01-Jul-2023,Housing & Assets Total,CKP LTD T/A HAGLEY HOTEL,Corporate Management,2015.00,Rents,2324P04_00510,143677
Sandwell Metropolitan Borough Council,http://www.sandwell.gov.uk/info/200202/performance_and_spending/1079/payments_over_500,01-Jul-2023,Housing & Assets Total,CKP LTD T/A HAGLEY HOTEL,Corporate Management,2015.00,Rents,2324P04_00511,143677
Sandwell Metropolitan Borough Council,http://www.sandwell.gov.uk/info/200202/performance_and_spending/1079/payments_over_500,01-Jul-2023,Housing & Assets Total,CKP LTD T/A HAGLEY HOTEL,Corporate Management,2520.00,Rents,2324P04_00512,143677
Sandwell Metropolitan Borough Council,http://www.sandwell.gov.uk/info/200202/performance_and_spending/1079/payments_over_500,01-Jul-2023,Housing & Assets Total,CKP LTD T/A HAGLEY HOTEL,Corporate Management,2535.00,Rents,2324P04_00513,143677
Sandwell Metropolitan Borough Council,http://www.sandwell.gov.uk/info/200202/performance_and_spending/1079/payments_over_500,01-Jul-2023,Housing & Assets Total,CKP LTD T/A HAGLEY HOTEL,Corporate Management,2700.00,Rents,2324P04_00514,143677
Sandwell Metropolitan Borough Council,http://www.sandwell.gov.uk/info/200202/performance_and_spending/1079/payments_over_500,01-Jul-2023,Housing & Assets Total,CKP LTD T/A HAGLEY HOTEL,Corporate Management,2900.00,Rents,2324P04_00515,143677
Sandwell Metropolitan Borough Council,http://www.sandwell.gov.uk/info/200202/performance_and_spending/1079/payments_over_500,01-Jul-2023,Housing & Assets Total,HRJ GOULD LTD,Housing & Assets Total,2900.00,Externally Purchased Professional Services ,2324P04_00516,166435
Sandwell Metropolitan Borough Council,http://www.sandwell.gov.uk/info/200202/performance_and_spending/1079/payments_over_500,01-Jul-2023,Housing & Assets Total,MIDLAND FORESTRY LIMITED,Housing & Assets Total,3029.58,Externally Purchased Professional Services ,2324P04_00517,45812
Sandwell Metropolitan Borough Council,http://www.sandwell.gov.uk/info/200202/performance_and_spending/1079/payments_over_500,02-Jul-2023,Housing & Assets Total,"HIGHFIELD HOUSE HOTEL,",Corporate Management,3040.00,Rents,2324P04_00518,162756
Sandwell Metropolitan Borough Council,http://www.sandwell.gov.uk/info/200202/performance_and_spending/1079/payments_over_500,07-Jul-2023,Housing & Assets Total,BRUSHSTROKES,Corporate Management,3135.00,Grant Payments,2324P04_00519,21029374
Sandwell Metropolitan Borough Council,http://www.sandwell.gov.uk/info/200202/performance_and_spending/1079/payments_over_500,02-Jul-2023,Housing & Assets Total,"HIGHFIELD HOUSE HOTEL,",Corporate Management,3150.00,Rents,2324P04_00520,162756
Sandwell Metropolitan Borough Council,http://www.sandwell.gov.uk/info/200202/performance_and_spending/1079/payments_over_500,07-Jul-2023,Housing & Assets Total,BRUSHSTROKES,Corporate Management,3206.86,Grant Payments,2324P04_00521,21029374
Sandwell Metropolitan Borough Council,http://www.sandwell.gov.uk/info/200202/performance_and_spending/1079/payments_over_500,10-Jul-2023,Housing & Assets Total,CONTRACT LETTINGS LTD,Corporate Management,3247.00,Rents,2324P04_00522,76625
Sandwell Metropolitan Borough Council,http://www.sandwell.gov.uk/info/200202/performance_and_spending/1079/payments_over_500,01-Jul-2023,Housing & Assets Total,CKP LTD T/A HAGLEY HOTEL,Corporate Management,3300.00,Rents,2324P04_00523,143677
Sandwell Metropolitan Borough Council,http://www.sandwell.gov.uk/info/200202/performance_and_spending/1079/payments_over_500,07-Jul-2023,Housing & Assets Total,BRUSHSTROKES,Corporate Management,3420.00,Grant Payments,2324P04_00524,21029374
Sandwell Metropolitan Borough Council,http://www.sandwell.gov.uk/info/200202/performance_and_spending/1079/payments_over_500,01-Jul-2023,Housing & Assets Total,CKP LTD T/A HAGLEY HOTEL,Corporate Management,3640.00,Rents,2324P04_00525,143677
Sandwell Metropolitan Borough Council,http://www.sandwell.gov.uk/info/200202/performance_and_spending/1079/payments_over_500,01-Jul-2023,Housing & Assets Total,BEECHWOOD TREES & LANDSCAPE LTD,Housing & Assets Total,3875.00,Externally Purchased Professional Services ,2324P04_00526,93287
Sandwell Metropolitan Borough Council,http://www.sandwell.gov.uk/info/200202/performance_and_spending/1079/payments_over_500,01-Jul-2023,Housing & Assets Total,CKP LTD T/A HAGLEY HOTEL,Corporate Management,4030.00,Rents,2324P04_00527,143677
Sandwell Metropolitan Borough Council,http://www.sandwell.gov.uk/info/200202/performance_and_spending/1079/payments_over_500,01-Jul-2023,Housing & Assets Total,CKP LTD T/A HAGLEY HOTEL,Corporate Management,4130.00,Rents,2324P04_00528,143677
Sandwell Metropolitan Borough Council,http://www.sandwell.gov.uk/info/200202/performance_and_spending/1079/payments_over_500,01-Jul-2023,Housing & Assets Total,CKP LTD T/A HAGLEY HOTEL,Corporate Management,4230.00,Rents,2324P04_00529,143677
Sandwell Metropolitan Borough Council,http://www.sandwell.gov.uk/info/200202/performance_and_spending/1079/payments_over_500,24-Jul-2023,Housing & Assets Total,REDACTED PERSONAL DATA,Corporate Management,4800.00,Rents,2324P04_00530,REDACTED PERSONAL DATA
Sandwell Metropolitan Borough Council,http://www.sandwell.gov.uk/info/200202/performance_and_spending/1079/payments_over_500,01-Jul-2023,Housing & Assets Total,CKP LTD T/A HAGLEY HOTEL,Corporate Management,5040.00,Rents,2324P04_00531,143677
Sandwell Metropolitan Borough Council,http://www.sandwell.gov.uk/info/200202/performance_and_spending/1079/payments_over_500,01-Jul-2023,Housing & Assets Total,CKP LTD T/A HAGLEY HOTEL,Corporate Management,5310.00,Rents,2324P04_00532,143677
Sandwell Metropolitan Borough Council,http://www.sandwell.gov.uk/info/200202/performance_and_spending/1079/payments_over_500,07-Jul-2023,Housing & Assets Total,BRUSHSTROKES,Corporate Management,7228.00,Grant Payments,2324P04_00533,21029374
Sandwell Metropolitan Borough Council,http://www.sandwell.gov.uk/info/200202/performance_and_spending/1079/payments_over_500,07-Jul-2023,Housing & Assets Total,PROFILE SECURITY SERVICES LTD,Corporate Management,10375.20,Security,2324P04_00534,131253
Sandwell Metropolitan Borough Council,http://www.sandwell.gov.uk/info/200202/performance_and_spending/1079/payments_over_500,07-Jul-2023,Housing & Assets Total,PROFILE SECURITY SERVICES LTD,Corporate Management,10375.20,Security,2324P04_00535,131253
Sandwell Metropolitan Borough Council,http://www.sandwell.gov.uk/info/200202/performance_and_spending/1079/payments_over_500,18-Jul-2023,Housing & Assets Total,THE ROLLIN' CAFE,Housing & Assets Total,39000.00,Equipment & Furniture ,2324P04_00536,166605
Sandwell Metropolitan Borough Council,http://www.sandwell.gov.uk/info/200202/performance_and_spending/1079/payments_over_500,01-Jul-2023,Housing & Assets Total,SAFFRON HOTEL,Corporate Management,108040.00,Rents,2324P04_00537,164316
Sandwell Metropolitan Borough Council,http://www.sandwell.gov.uk/info/200202/performance_and_spending/1079/payments_over_500,01-Jul-2023,Housing & Assets Total,SAFFRON HOTEL,Corporate Management,110090.00,Rents,2324P04_00538,164316
Sandwell Metropolitan Borough Council,http://www.sandwell.gov.uk/info/200202/performance_and_spending/1079/payments_over_500,27-Jul-2023,Housing & Assets Total,A PRASHER,Corporate Management,500.00,Rents,2324P04_00539,112229
Sandwell Metropolitan Borough Council,http://www.sandwell.gov.uk/info/200202/performance_and_spending/1079/payments_over_500,27-Jul-2023,Housing & Assets Total,BALIJIT KAUR,Corporate Management,500.00,Rents,2324P04_00540,101860
Sandwell Metropolitan Borough Council,http://www.sandwell.gov.uk/info/200202/performance_and_spending/1079/payments_over_500,27-Jul-2023,Housing & Assets Total,BALWANT SINGH,Corporate Management,500.00,Rents,2324P04_00541,84433
Sandwell Metropolitan Borough Council,http://www.sandwell.gov.uk/info/200202/performance_and_spending/1079/payments_over_500,27-Jul-2023,Housing & Assets Total,NARINDER SINGH,Corporate Management,500.00,Rents,2324P04_00542,114091
Sandwell Metropolitan Borough Council,http://www.sandwell.gov.uk/info/200202/performance_and_spending/1079/payments_over_500,27-Jul-2023,Housing & Assets Total,ELEANOR MCGEE,Corporate Management,550.00,Rents,2324P04_00543,109162
Sandwell Metropolitan Borough Council,http://www.sandwell.gov.uk/info/200202/performance_and_spending/1079/payments_over_500,13-Jul-2023,Housing & Communities,WEST MIDLANDS COMBINED AUTHORITY,Housing & Communities,4295.81,CIP - Furniture,2324P04_00544,126646
Sandwell Metropolitan Borough Council,http://www.sandwell.gov.uk/info/200202/performance_and_spending/1079/payments_over_500,01-Jul-2023,Housing & Communities,HILTON MAIN LIGHTING AND CONNECTIONS,Housing & Communities,29185.00,"CIP - New Construction,Conversion, Enhancement & Reno",2324P04_00545,113202
Sandwell Metropolitan Borough Council,http://www.sandwell.gov.uk/info/200202/performance_and_spending/1079/payments_over_500,01-Jul-2023,Housing & Communities,SANDWELL LEISURE TRUST,Housing & Communities,90280.00,"CIP - New Construction,Conversion, Enhancement & Reno",2324P04_00546,23305
Sandwell Metropolitan Borough Council,http://www.sandwell.gov.uk/info/200202/performance_and_spending/1079/payments_over_500,01-Jul-2023,Housing & Communities,WATES CONSTRUCTION LTD ,Housing & Communities,116026.19,"CIP - New Construction,Conversion, Enhancement & Reno",2324P04_00547,77000882
Sandwell Metropolitan Borough Council,http://www.sandwell.gov.uk/info/200202/performance_and_spending/1079/payments_over_500,05-Jul-2023,Housing & Communities,WATES CONSTRUCTION LTD ,Housing & Communities,596589.91,"CIP - New Construction,Conversion, Enhancement & Reno",2324P04_00548,77000882
Sandwell Metropolitan Borough Council,http://www.sandwell.gov.uk/info/200202/performance_and_spending/1079/payments_over_500,01-Jul-2023,Housing Revenue Account Capital,SELECT WINDOWS (HOME IMPROVEMENTS) LIMITED,Housing Revenue Account Capital,504.69,Contract Payments,2324P04_00549,42616
Sandwell Metropolitan Borough Council,http://www.sandwell.gov.uk/info/200202/performance_and_spending/1079/payments_over_500,01-Jul-2023,Housing Revenue Account Capital,SELECT WINDOWS (HOME IMPROVEMENTS) LIMITED,Housing Revenue Account Capital,504.69,Contract Payments,2324P04_00550,42616
Sandwell Metropolitan Borough Council,http://www.sandwell.gov.uk/info/200202/performance_and_spending/1079/payments_over_500,01-Jul-2023,Housing Revenue Account Capital,SELECT WINDOWS (HOME IMPROVEMENTS) LIMITED,Housing Revenue Account Capital,523.42,Contract Payments,2324P04_00551,42616
Sandwell Metropolitan Borough Council,http://www.sandwell.gov.uk/info/200202/performance_and_spending/1079/payments_over_500,01-Jul-2023,Housing Revenue Account Capital,SELECT WINDOWS (HOME IMPROVEMENTS) LIMITED,Housing Revenue Account Capital,532.03,Contract Payments,2324P04_00552,42616
Sandwell Metropolitan Borough Council,http://www.sandwell.gov.uk/info/200202/performance_and_spending/1079/payments_over_500,01-Jul-2023,Housing Revenue Account Capital,SELECT WINDOWS (HOME IMPROVEMENTS) LIMITED,Housing Revenue Account Capital,540.75,Contract Payments,2324P04_00553,42616
Sandwell Metropolitan Borough Council,http://www.sandwell.gov.uk/info/200202/performance_and_spending/1079/payments_over_500,01-Jul-2023,Housing Revenue Account Capital,SELECT WINDOWS (HOME IMPROVEMENTS) LIMITED,Housing Revenue Account Capital,585.20,Contract Payments,2324P04_00554,42616
Sandwell Metropolitan Borough Council,http://www.sandwell.gov.uk/info/200202/performance_and_spending/1079/payments_over_500,01-Jul-2023,Housing Revenue Account Capital,SELECT WINDOWS (HOME IMPROVEMENTS) LIMITED,Housing Revenue Account Capital,610.45,Contract Payments,2324P04_00555,42616
Sandwell Metropolitan Borough Council,http://www.sandwell.gov.uk/info/200202/performance_and_spending/1079/payments_over_500,01-Jul-2023,Housing Revenue Account Capital,SELECT WINDOWS (HOME IMPROVEMENTS) LIMITED,Housing Revenue Account Capital,635.25,Contract Payments,2324P04_00556,42616
Sandwell Metropolitan Borough Council,http://www.sandwell.gov.uk/info/200202/performance_and_spending/1079/payments_over_500,01-Jul-2023,Housing Revenue Account Capital,SELECT WINDOWS (HOME IMPROVEMENTS) LIMITED,Housing Revenue Account Capital,748.63,Contract Payments,2324P04_00557,42616
Sandwell Metropolitan Borough Council,http://www.sandwell.gov.uk/info/200202/performance_and_spending/1079/payments_over_500,01-Jul-2023,Housing Revenue Account Capital,SELECT WINDOWS (HOME IMPROVEMENTS) LIMITED,Housing Revenue Account Capital,748.63,Contract Payments,2324P04_00558,42616
Sandwell Metropolitan Borough Council,http://www.sandwell.gov.uk/info/200202/performance_and_spending/1079/payments_over_500,26-Jul-2023,Housing Revenue Account Capital,RIDGE & PARTNERS LLP,Housing Revenue Account Capital,780.00,"CIP - New Construction,Conversion, Enhancement & Reno",2324P04_00559,134994
Sandwell Metropolitan Borough Council,http://www.sandwell.gov.uk/info/200202/performance_and_spending/1079/payments_over_500,01-Jul-2023,Housing Revenue Account Capital,SELECT WINDOWS (HOME IMPROVEMENTS) LIMITED,Housing Revenue Account Capital,811.12,Contract Payments,2324P04_00560,42616
Sandwell Metropolitan Borough Council,http://www.sandwell.gov.uk/info/200202/performance_and_spending/1079/payments_over_500,01-Jul-2023,Housing Revenue Account Capital,SELECT WINDOWS (HOME IMPROVEMENTS) LIMITED,Housing Revenue Account Capital,811.12,Contract Payments,2324P04_00561,42616
Sandwell Metropolitan Borough Council,http://www.sandwell.gov.uk/info/200202/performance_and_spending/1079/payments_over_500,01-Jul-2023,Housing Revenue Account Capital,SELECT WINDOWS (HOME IMPROVEMENTS) LIMITED,Housing Revenue Account Capital,842.36,Contract Payments,2324P04_00562,42616
Sandwell Metropolitan Borough Council,http://www.sandwell.gov.uk/info/200202/performance_and_spending/1079/payments_over_500,01-Jul-2023,Housing Revenue Account Capital,SELECT WINDOWS (HOME IMPROVEMENTS) LIMITED,Housing Revenue Account Capital,961.02,Contract Payments,2324P04_00563,42616
Sandwell Metropolitan Borough Council,http://www.sandwell.gov.uk/info/200202/performance_and_spending/1079/payments_over_500,01-Jul-2023,Housing Revenue Account Capital,SELECT WINDOWS (HOME IMPROVEMENTS) LIMITED,Housing Revenue Account Capital,996.38,Contract Payments,2324P04_00564,42616
Sandwell Metropolitan Borough Council,http://www.sandwell.gov.uk/info/200202/performance_and_spending/1079/payments_over_500,01-Jul-2023,Housing Revenue Account Capital,STROMA SPECIALIST ACCESS LTD,Housing Revenue Account Capital,1016.00,"CIP - New Construction,Conversion, Enhancement & Reno",2324P04_00565,136243
Sandwell Metropolitan Borough Council,http://www.sandwell.gov.uk/info/200202/performance_and_spending/1079/payments_over_500,01-Jul-2023,Housing Revenue Account Capital,RIDGE & PARTNERS LLP,Housing Revenue Account Capital,1040.00,CIP - Acquisition of Land & Existing Buildings,2324P04_00566,134994
Sandwell Metropolitan Borough Council,http://www.sandwell.gov.uk/info/200202/performance_and_spending/1079/payments_over_500,26-Jul-2023,Housing Revenue Account Capital,RIDGE & PARTNERS LLP,Housing Revenue Account Capital,1040.00,CIP - Acquisition of Land & Existing Buildings,2324P04_00567,134994
Sandwell Metropolitan Borough Council,http://www.sandwell.gov.uk/info/200202/performance_and_spending/1079/payments_over_500,01-Jul-2023,Housing Revenue Account Capital,SELECT WINDOWS (HOME IMPROVEMENTS) LIMITED,Housing Revenue Account Capital,1043.95,Contract Payments,2324P04_00568,42616
Sandwell Metropolitan Borough Council,http://www.sandwell.gov.uk/info/200202/performance_and_spending/1079/payments_over_500,01-Jul-2023,Housing Revenue Account Capital,SELECT WINDOWS (HOME IMPROVEMENTS) LIMITED,Housing Revenue Account Capital,1053.43,Contract Payments,2324P04_00569,42616
Sandwell Metropolitan Borough Council,http://www.sandwell.gov.uk/info/200202/performance_and_spending/1079/payments_over_500,04-Jul-2023,Housing Revenue Account Capital,J A BEDWARD & SON  ,Housing Revenue Account Capital,1110.00,Deferred Charges/Grant Payments,2324P04_00570,77001727
Sandwell Metropolitan Borough Council,http://www.sandwell.gov.uk/info/200202/performance_and_spending/1079/payments_over_500,01-Jul-2023,Housing Revenue Account Capital,SELECT WINDOWS (HOME IMPROVEMENTS) LIMITED,Housing Revenue Account Capital,1172.60,Contract Payments,2324P04_00571,42616
Sandwell Metropolitan Borough Council,http://www.sandwell.gov.uk/info/200202/performance_and_spending/1079/payments_over_500,01-Jul-2023,Housing Revenue Account Capital,POWRED HEATING COMPONENTS LIMITED,Housing Revenue Account Capital,1181.14,Materials & Consumables,2324P04_00572,133978
Sandwell Metropolitan Borough Council,http://www.sandwell.gov.uk/info/200202/performance_and_spending/1079/payments_over_500,01-Jul-2023,Housing Revenue Account Capital,SELECT WINDOWS (HOME IMPROVEMENTS) LIMITED,Housing Revenue Account Capital,1208.70,Contract Payments,2324P04_00573,42616
Sandwell Metropolitan Borough Council,http://www.sandwell.gov.uk/info/200202/performance_and_spending/1079/payments_over_500,07-Jul-2023,Housing Revenue Account Capital,DOLPHIN LIFTS MIDLANDS LTD,Housing Revenue Account Capital,1746.75,Deferred Charges/Grant Payments,2324P04_00574,123852
Sandwell Metropolitan Borough Council,http://www.sandwell.gov.uk/info/200202/performance_and_spending/1079/payments_over_500,01-Jul-2023,Housing Revenue Account Capital,RIDGE & PARTNERS LLP,Housing Revenue Account Capital,2080.00,Consultancy,2324P04_00575,134994
Sandwell Metropolitan Borough Council,http://www.sandwell.gov.uk/info/200202/performance_and_spending/1079/payments_over_500,01-Jul-2023,Housing Revenue Account Capital,CDC TECHNICAL SERVICES LTD,Housing Revenue Account Capital,2095.00,"CIP - New Construction,Conversion, Enhancement & Reno",2324P04_00576,101080
Sandwell Metropolitan Borough Council,http://www.sandwell.gov.uk/info/200202/performance_and_spending/1079/payments_over_500,01-Jul-2023,Housing Revenue Account Capital,RIDGE & PARTNERS LLP,Housing Revenue Account Capital,2251.67,Consultancy,2324P04_00577,134994
Sandwell Metropolitan Borough Council,http://www.sandwell.gov.uk/info/200202/performance_and_spending/1079/payments_over_500,04-Jul-2023,Housing Revenue Account Capital,DOLPHIN LIFTS MIDLANDS LTD,Housing Revenue Account Capital,3262.80,Deferred Charges/Grant Payments,2324P04_00578,123852
Sandwell Metropolitan Borough Council,http://www.sandwell.gov.uk/info/200202/performance_and_spending/1079/payments_over_500,17-Jul-2023,Housing Revenue Account Capital,DOLPHIN LIFTS MIDLANDS LTD,Housing Revenue Account Capital,3366.02,Deferred Charges/Grant Payments,2324P04_00579,123852
Sandwell Metropolitan Borough Council,http://www.sandwell.gov.uk/info/200202/performance_and_spending/1079/payments_over_500,01-Jul-2023,Housing Revenue Account Capital,PARCOR LTD,Housing Revenue Account Capital,4850.00,"CIP - New Construction,Conversion, Enhancement & Reno",2324P04_00580,163117
Sandwell Metropolitan Borough Council,http://www.sandwell.gov.uk/info/200202/performance_and_spending/1079/payments_over_500,17-Jul-2023,Housing Revenue Account Capital,VINCI CONSTRUCTION LTD,Housing Revenue Account Capital,5799.54,Deferred Charges/Grant Payments,2324P04_00581,36361
Sandwell Metropolitan Borough Council,http://www.sandwell.gov.uk/info/200202/performance_and_spending/1079/payments_over_500,01-Jul-2023,Housing Revenue Account Capital,VINCI CONSTRUCTION LTD,Housing Revenue Account Capital,6217.95,Deferred Charges/Grant Payments,2324P04_00582,36361
Sandwell Metropolitan Borough Council,http://www.sandwell.gov.uk/info/200202/performance_and_spending/1079/payments_over_500,04-Jul-2023,Housing Revenue Account Capital,VINCI CONSTRUCTION LTD,Housing Revenue Account Capital,6778.87,Deferred Charges/Grant Payments,2324P04_00583,36361
Sandwell Metropolitan Borough Council,http://www.sandwell.gov.uk/info/200202/performance_and_spending/1079/payments_over_500,01-Jul-2023,Housing Revenue Account Capital,DOLPHIN LIFTS MIDLANDS LTD,Housing Revenue Account Capital,6851.66,Deferred Charges/Grant Payments,2324P04_00584,123852
Sandwell Metropolitan Borough Council,http://www.sandwell.gov.uk/info/200202/performance_and_spending/1079/payments_over_500,01-Jul-2023,Housing Revenue Account Capital,PHOENIX GAS SERVICES LIMITED,Housing Revenue Account Capital,7548.95,Contract Payments,2324P04_00585,126729
Sandwell Metropolitan Borough Council,http://www.sandwell.gov.uk/info/200202/performance_and_spending/1079/payments_over_500,01-Jul-2023,Housing Revenue Account Capital,PHOENIX GAS SERVICES LIMITED,Housing Revenue Account Capital,7948.42,Contract Payments,2324P04_00586,126729
Sandwell Metropolitan Borough Council,http://www.sandwell.gov.uk/info/200202/performance_and_spending/1079/payments_over_500,17-Jul-2023,Housing Revenue Account Capital,VINCI CONSTRUCTION LTD,Housing Revenue Account Capital,9032.60,Deferred Charges/Grant Payments,2324P04_00587,36361
Sandwell Metropolitan Borough Council,http://www.sandwell.gov.uk/info/200202/performance_and_spending/1079/payments_over_500,07-Jul-2023,Housing Revenue Account Capital,VINCI CONSTRUCTION LTD,Housing Revenue Account Capital,9239.78,Deferred Charges/Grant Payments,2324P04_00588,36361
Sandwell Metropolitan Borough Council,http://www.sandwell.gov.uk/info/200202/performance_and_spending/1079/payments_over_500,03-Jul-2023,Housing Revenue Account Capital,PHOENIX GAS SERVICES LIMITED,Housing Revenue Account Capital,9460.72,Contract Payments,2324P04_00589,126729
Sandwell Metropolitan Borough Council,http://www.sandwell.gov.uk/info/200202/performance_and_spending/1079/payments_over_500,17-Jul-2023,Housing Revenue Account Capital,WESSEX LIFT CO LTD,Housing Revenue Account Capital,9857.00,Deferred Charges/Grant Payments,2324P04_00590,01095737
Sandwell Metropolitan Borough Council,http://www.sandwell.gov.uk/info/200202/performance_and_spending/1079/payments_over_500,17-Jul-2023,Housing Revenue Account Capital,VINCI CONSTRUCTION LTD,Housing Revenue Account Capital,10158.27,Deferred Charges/Grant Payments,2324P04_00591,36361
Sandwell Metropolitan Borough Council,http://www.sandwell.gov.uk/info/200202/performance_and_spending/1079/payments_over_500,01-Jul-2023,Housing Revenue Account Capital,PR PROPERTY MAINTENANCE,Housing Revenue Account Capital,10193.33,Deferred Charges/Grant Payments,2324P04_00592,33836
Sandwell Metropolitan Borough Council,http://www.sandwell.gov.uk/info/200202/performance_and_spending/1079/payments_over_500,01-Jul-2023,Housing Revenue Account Capital,VINCI CONSTRUCTION LTD,Housing Revenue Account Capital,10629.55,Deferred Charges/Grant Payments,2324P04_00593,36361
Sandwell Metropolitan Borough Council,http://www.sandwell.gov.uk/info/200202/performance_and_spending/1079/payments_over_500,14-Jul-2023,Housing Revenue Account Capital,VINCI CONSTRUCTION LTD,Housing Revenue Account Capital,12176.61,"CIP - New Construction,Conversion, Enhancement & Reno",2324P04_00594,36361
Sandwell Metropolitan Borough Council,http://www.sandwell.gov.uk/info/200202/performance_and_spending/1079/payments_over_500,01-Jul-2023,Housing Revenue Account Capital,AXIS EUROPE PLC ,Housing Revenue Account Capital,12720.73,Deferred Charges/Grant Payments,2324P04_00595,64946
Sandwell Metropolitan Borough Council,http://www.sandwell.gov.uk/info/200202/performance_and_spending/1079/payments_over_500,01-Jul-2023,Housing Revenue Account Capital,VINCI CONSTRUCTION LTD,Housing Revenue Account Capital,13131.07,Deferred Charges/Grant Payments,2324P04_00596,36361
Sandwell Metropolitan Borough Council,http://www.sandwell.gov.uk/info/200202/performance_and_spending/1079/payments_over_500,07-Jul-2023,Housing Revenue Account Capital,WESSEX LIFT CO LTD,Housing Revenue Account Capital,13281.00,Deferred Charges/Grant Payments,2324P04_00597,01095737
Sandwell Metropolitan Borough Council,http://www.sandwell.gov.uk/info/200202/performance_and_spending/1079/payments_over_500,01-Jul-2023,Housing Revenue Account Capital,LIFT & ENGINEERING SERVICES LTD,Housing Revenue Account Capital,15067.13,CIP - Fixtures & Fittings,2324P04_00598,77003962
Sandwell Metropolitan Borough Council,http://www.sandwell.gov.uk/info/200202/performance_and_spending/1079/payments_over_500,01-Jul-2023,Housing Revenue Account Capital,PR PROPERTY MAINTENANCE,Housing Revenue Account Capital,21190.94,Deferred Charges/Grant Payments,2324P04_00599,33836
Sandwell Metropolitan Borough Council,http://www.sandwell.gov.uk/info/200202/performance_and_spending/1079/payments_over_500,01-Jul-2023,Housing Revenue Account Capital,PR PROPERTY MAINTENANCE,Housing Revenue Account Capital,23382.85,Deferred Charges/Grant Payments,2324P04_00600,33836
Sandwell Metropolitan Borough Council,http://www.sandwell.gov.uk/info/200202/performance_and_spending/1079/payments_over_500,01-Jul-2023,Housing Revenue Account Capital,PR PROPERTY MAINTENANCE,Housing Revenue Account Capital,25033.40,Deferred Charges/Grant Payments,2324P04_00601,33836
Sandwell Metropolitan Borough Council,http://www.sandwell.gov.uk/info/200202/performance_and_spending/1079/payments_over_500,01-Jul-2023,Housing Revenue Account Capital,PR PROPERTY MAINTENANCE,Housing Revenue Account Capital,26504.34,Deferred Charges/Grant Payments,2324P04_00602,33836
Sandwell Metropolitan Borough Council,http://www.sandwell.gov.uk/info/200202/performance_and_spending/1079/payments_over_500,17-Jul-2023,Housing Revenue Account Capital,VINCI CONSTRUCTION LTD,Housing Revenue Account Capital,30263.55,Deferred Charges/Grant Payments,2324P04_00603,36361
Sandwell Metropolitan Borough Council,http://www.sandwell.gov.uk/info/200202/performance_and_spending/1079/payments_over_500,01-Jul-2023,Housing Revenue Account Capital,PR PROPERTY MAINTENANCE,Housing Revenue Account Capital,42381.87,Deferred Charges/Grant Payments,2324P04_00604,33836
Sandwell Metropolitan Borough Council,http://www.sandwell.gov.uk/info/200202/performance_and_spending/1079/payments_over_500,05-Jul-2023,Housing Revenue Account Capital,TRICAS CONSTRUCTION LIMITED,Housing Revenue Account Capital,51226.45,"CIP - New Construction,Conversion, Enhancement & Reno",2324P04_00605,165600
Sandwell Metropolitan Borough Council,http://www.sandwell.gov.uk/info/200202/performance_and_spending/1079/payments_over_500,01-Jul-2023,Housing Revenue Account Capital,VINCI CONSTRUCTION LTD,Housing Revenue Account Capital,85242.43,Deferred Charges/Grant Payments,2324P04_00606,36361
Sandwell Metropolitan Borough Council,http://www.sandwell.gov.uk/info/200202/performance_and_spending/1079/payments_over_500,01-Jul-2023,Housing Revenue Account Capital,AXIS EUROPE PLC ,Housing Revenue Account Capital,87514.96,Deferred Charges/Grant Payments,2324P04_00607,64946
Sandwell Metropolitan Borough Council,http://www.sandwell.gov.uk/info/200202/performance_and_spending/1079/payments_over_500,24-Jul-2023,Housing Revenue Account Capital,SEDDON CONSTRUCTION LIMITED,Housing Revenue Account Capital,99088.35,"CIP - New Construction,Conversion, Enhancement & Reno",2324P04_00608,132999
Sandwell Metropolitan Borough Council,http://www.sandwell.gov.uk/info/200202/performance_and_spending/1079/payments_over_500,11-Jul-2023,Housing Revenue Account Capital,TRICAS CONSTRUCTION LIMITED,Housing Revenue Account Capital,121430.31,"CIP - New Construction,Conversion, Enhancement & Reno",2324P04_00609,165600
Sandwell Metropolitan Borough Council,http://www.sandwell.gov.uk/info/200202/performance_and_spending/1079/payments_over_500,10-Jul-2023,Housing Revenue Account Capital,SYCAMORE WINDOWS & CONSERVATORIES LIMITED,Housing Revenue Account Capital,133138.74,"CIP - New Construction,Conversion, Enhancement & Reno",2324P04_00610,145272
Sandwell Metropolitan Borough Council,http://www.sandwell.gov.uk/info/200202/performance_and_spending/1079/payments_over_500,12-Jul-2023,Housing Revenue Account Capital,J.HARPER & SONS (LEOMINSTER) LIMITED,Housing Revenue Account Capital,177555.64,"CIP - New Construction,Conversion, Enhancement & Reno",2324P04_00611,111814
Sandwell Metropolitan Borough Council,http://www.sandwell.gov.uk/info/200202/performance_and_spending/1079/payments_over_500,01-Jul-2023,Housing Revenue Account Capital,NATIONWIDE WINDOWS LIMITED,Housing Revenue Account Capital,199383.98,"CIP - New Construction,Conversion, Enhancement & Reno",2324P04_00612,108316
Sandwell Metropolitan Borough Council,http://www.sandwell.gov.uk/info/200202/performance_and_spending/1079/payments_over_500,01-Jul-2023,Housing Revenue Account Capital,LOVELL PARTNERSHIPS  LTD,Housing Revenue Account Capital,224488.28,"CIP - New Construction,Conversion, Enhancement & Reno",2324P04_00613,77007398
Sandwell Metropolitan Borough Council,http://www.sandwell.gov.uk/info/200202/performance_and_spending/1079/payments_over_500,03-Jul-2023,Housing Revenue Account Capital,SURE MAINTENANCE LIMITED,Housing Revenue Account Capital,237127.25,"CIP - New Construction,Conversion, Enhancement & Reno",2324P04_00614,93926
Sandwell Metropolitan Borough Council,http://www.sandwell.gov.uk/info/200202/performance_and_spending/1079/payments_over_500,14-Jul-2023,Housing Revenue Account Capital,VINCI CONSTRUCTION LTD,Housing Revenue Account Capital,444403.25,"CIP - New Construction,Conversion, Enhancement & Reno",2324P04_00615,36361
Sandwell Metropolitan Borough Council,http://www.sandwell.gov.uk/info/200202/performance_and_spending/1079/payments_over_500,14-Jul-2023,Housing Revenue Account Capital,VINCI CONSTRUCTION LTD,Housing Revenue Account Capital,519955.53,"CIP - New Construction,Conversion, Enhancement & Reno",2324P04_00616,36361
Sandwell Metropolitan Borough Council,http://www.sandwell.gov.uk/info/200202/performance_and_spending/1079/payments_over_500,18-Jul-2023,Housing Revenue Account Capital,SEDDON CONSTRUCTION LIMITED,Housing Revenue Account Capital,546851.82,"CIP - New Construction,Conversion, Enhancement & Reno",2324P04_00617,132999
Sandwell Metropolitan Borough Council,http://www.sandwell.gov.uk/info/200202/performance_and_spending/1079/payments_over_500,05-Jul-2023,Housing Revenue Account Capital,LOVELL PARTNERSHIPS  LTD,Housing Revenue Account Capital,621380.53,"CIP - New Construction,Conversion, Enhancement & Reno",2324P04_00618,77007398
Sandwell Metropolitan Borough Council,http://www.sandwell.gov.uk/info/200202/performance_and_spending/1079/payments_over_500,11-Jul-2023,Housing Revenue Account Capital,LIFT & ENGINEERING SERVICES LTD,Housing Revenue Account Capital,601.16,"CIP - New Construction,Conversion, Enhancement & Reno",2324P04_00619,77003962
Sandwell Metropolitan Borough Council,http://www.sandwell.gov.uk/info/200202/performance_and_spending/1079/payments_over_500,21-Jul-2023,Individual School Budgets With Inclusion,MONIQUE BROWN.,Individual School Budgets With Inclusion,557.10,Grant Payments,2324P04_00620,127112
Sandwell Metropolitan Borough Council,http://www.sandwell.gov.uk/info/200202/performance_and_spending/1079/payments_over_500,21-Jul-2023,Individual School Budgets With Inclusion,CAROLINE HENDERSON,Individual School Budgets With Inclusion,639.90,Grant Payments,2324P04_00621,129980
Sandwell Metropolitan Borough Council,http://www.sandwell.gov.uk/info/200202/performance_and_spending/1079/payments_over_500,21-Jul-2023,Individual School Budgets With Inclusion,DONNA CLEARY,Individual School Budgets With Inclusion,639.90,Grant Payments,2324P04_00622,118531
Sandwell Metropolitan Borough Council,http://www.sandwell.gov.uk/info/200202/performance_and_spending/1079/payments_over_500,21-Jul-2023,Individual School Budgets With Inclusion,LISA HINTON,Individual School Budgets With Inclusion,653.40,Grant Payments,2324P04_00623,92923
Sandwell Metropolitan Borough Council,http://www.sandwell.gov.uk/info/200202/performance_and_spending/1079/payments_over_500,21-Jul-2023,Individual School Budgets With Inclusion,ANNE MARIE JACKSON-HEPBURN,Individual School Budgets With Inclusion,696.96,Grant Payments,2324P04_00624,162845
Sandwell Metropolitan Borough Council,http://www.sandwell.gov.uk/info/200202/performance_and_spending/1079/payments_over_500,21-Jul-2023,Individual School Budgets With Inclusion,THERESA DEAKIN,Individual School Budgets With Inclusion,747.90,Grant Payments,2324P04_00625,39468
Sandwell Metropolitan Borough Council,http://www.sandwell.gov.uk/info/200202/performance_and_spending/1079/payments_over_500,04-Jul-2023,Individual School Budgets With Inclusion,ABBEY INFANT SCHOOL ,Individual School Budgets With Inclusion,781.20,Grant Payments,2324P04_00626,60959
Sandwell Metropolitan Borough Council,http://www.sandwell.gov.uk/info/200202/performance_and_spending/1079/payments_over_500,21-Jul-2023,Individual School Budgets With Inclusion,STACEY PARTRIDGE (STEP UP CHILDCARE),Individual School Budgets With Inclusion,853.20,Grant Payments,2324P04_00627,151395
Sandwell Metropolitan Borough Council,http://www.sandwell.gov.uk/info/200202/performance_and_spending/1079/payments_over_500,21-Jul-2023,Individual School Budgets With Inclusion,SARAH HOWEY,Individual School Budgets With Inclusion,853.20,Grant Payments,2324P04_00628,140888
Sandwell Metropolitan Borough Council,http://www.sandwell.gov.uk/info/200202/performance_and_spending/1079/payments_over_500,21-Jul-2023,Individual School Budgets With Inclusion,CLARE O'DRISCOLL,Individual School Budgets With Inclusion,883.75,Grant Payments,2324P04_00629,129659
Sandwell Metropolitan Borough Council,http://www.sandwell.gov.uk/info/200202/performance_and_spending/1079/payments_over_500,21-Jul-2023,Individual School Budgets With Inclusion,CAROLINE TAVARES,Individual School Budgets With Inclusion,898.20,Grant Payments,2324P04_00630,112188
Sandwell Metropolitan Borough Council,http://www.sandwell.gov.uk/info/200202/performance_and_spending/1079/payments_over_500,21-Jul-2023,Individual School Budgets With Inclusion,MICHAELA MOSELEY,Individual School Budgets With Inclusion,898.20,Grant Payments,2324P04_00631,121672
Sandwell Metropolitan Borough Council,http://www.sandwell.gov.uk/info/200202/performance_and_spending/1079/payments_over_500,21-Jul-2023,Individual School Budgets With Inclusion,JENNIE THOMAS,Individual School Budgets With Inclusion,979.20,Grant Payments,2324P04_00632,134322
Sandwell Metropolitan Borough Council,http://www.sandwell.gov.uk/info/200202/performance_and_spending/1079/payments_over_500,21-Jul-2023,Individual School Budgets With Inclusion,LEEANNE ADAMS,Individual School Budgets With Inclusion,979.20,Grant Payments,2324P04_00633,134517
Sandwell Metropolitan Borough Council,http://www.sandwell.gov.uk/info/200202/performance_and_spending/1079/payments_over_500,21-Jul-2023,Individual School Budgets With Inclusion,CARA PRATT,Individual School Budgets With Inclusion,1066.50,Grant Payments,2324P04_00634,140537
Sandwell Metropolitan Borough Council,http://www.sandwell.gov.uk/info/200202/performance_and_spending/1079/payments_over_500,21-Jul-2023,Individual School Budgets With Inclusion,LEKA HOWE,Individual School Budgets With Inclusion,1197.00,Grant Payments,2324P04_00635,119503
Sandwell Metropolitan Borough Council,http://www.sandwell.gov.uk/info/200202/performance_and_spending/1079/payments_over_500,21-Jul-2023,Individual School Budgets With Inclusion,CLAIRE PARTRIDGE,Individual School Budgets With Inclusion,1293.30,Grant Payments,2324P04_00636,123143
Sandwell Metropolitan Borough Council,http://www.sandwell.gov.uk/info/200202/performance_and_spending/1079/payments_over_500,21-Jul-2023,Individual School Budgets With Inclusion,JOANNE HUGHES,Individual School Budgets With Inclusion,1347.30,Grant Payments,2324P04_00637,120199
Sandwell Metropolitan Borough Council,http://www.sandwell.gov.uk/info/200202/performance_and_spending/1079/payments_over_500,21-Jul-2023,Individual School Budgets With Inclusion,BEEHIVE WB LTD,Individual School Budgets With Inclusion,1493.10,Grant Payments,2324P04_00638,164780
Sandwell Metropolitan Borough Council,http://www.sandwell.gov.uk/info/200202/performance_and_spending/1079/payments_over_500,21-Jul-2023,Individual School Budgets With Inclusion,SARAH DAVIES,Individual School Budgets With Inclusion,1493.10,Grant Payments,2324P04_00639,122065
Sandwell Metropolitan Borough Council,http://www.sandwell.gov.uk/info/200202/performance_and_spending/1079/payments_over_500,21-Jul-2023,Individual School Budgets With Inclusion,JACQUELINE HEHIR,Individual School Budgets With Inclusion,1509.30,Grant Payments,2324P04_00640,75203
Sandwell Metropolitan Borough Council,http://www.sandwell.gov.uk/info/200202/performance_and_spending/1079/payments_over_500,21-Jul-2023,Individual School Budgets With Inclusion,ABIGAIL CRUMPTON,Individual School Budgets With Inclusion,1571.85,Grant Payments,2324P04_00641,130863
Sandwell Metropolitan Borough Council,http://www.sandwell.gov.uk/info/200202/performance_and_spending/1079/payments_over_500,21-Jul-2023,Individual School Budgets With Inclusion,NEWTOWN PRIMARY ACADEMY  ,Individual School Budgets With Inclusion,1598.40,Grant Payments,2324P04_00642,61034
Sandwell Metropolitan Borough Council,http://www.sandwell.gov.uk/info/200202/performance_and_spending/1079/payments_over_500,21-Jul-2023,Individual School Budgets With Inclusion,VANESSA BILLINGSLEY,Individual School Budgets With Inclusion,1706.40,Grant Payments,2324P04_00643,125216
Sandwell Metropolitan Borough Council,http://www.sandwell.gov.uk/info/200202/performance_and_spending/1079/payments_over_500,21-Jul-2023,Individual School Budgets With Inclusion,SADWICA DAY NURSERY,Individual School Budgets With Inclusion,1848.60,Grant Payments,2324P04_00644,01667892
Sandwell Metropolitan Borough Council,http://www.sandwell.gov.uk/info/200202/performance_and_spending/1079/payments_over_500,21-Jul-2023,Individual School Budgets With Inclusion,LITTLE STEPPERS,Individual School Budgets With Inclusion,1850.40,Grant Payments,2324P04_00645,120240
Sandwell Metropolitan Borough Council,http://www.sandwell.gov.uk/info/200202/performance_and_spending/1079/payments_over_500,21-Jul-2023,Individual School Budgets With Inclusion,NATALIE WESTON,Individual School Budgets With Inclusion,1877.04,Grant Payments,2324P04_00646,152056
Sandwell Metropolitan Borough Council,http://www.sandwell.gov.uk/info/200202/performance_and_spending/1079/payments_over_500,21-Jul-2023,Individual School Budgets With Inclusion,SATVINDER KAUR,Individual School Budgets With Inclusion,1919.70,Grant Payments,2324P04_00647,131042
Sandwell Metropolitan Borough Council,http://www.sandwell.gov.uk/info/200202/performance_and_spending/1079/payments_over_500,21-Jul-2023,Individual School Budgets With Inclusion,GEMMA NOONE,Individual School Budgets With Inclusion,1960.20,Grant Payments,2324P04_00648,153866
Sandwell Metropolitan Borough Council,http://www.sandwell.gov.uk/info/200202/performance_and_spending/1079/payments_over_500,21-Jul-2023,Individual School Budgets With Inclusion,HAYLEY TURNER,Individual School Budgets With Inclusion,2133.00,Grant Payments,2324P04_00649,162824
Sandwell Metropolitan Borough Council,http://www.sandwell.gov.uk/info/200202/performance_and_spending/1079/payments_over_500,21-Jul-2023,Individual School Budgets With Inclusion,SARAH WATERS,Individual School Budgets With Inclusion,2178.00,Grant Payments,2324P04_00650,134518
Sandwell Metropolitan Borough Council,http://www.sandwell.gov.uk/info/200202/performance_and_spending/1079/payments_over_500,21-Jul-2023,Individual School Budgets With Inclusion,HAYLEY GODDARD,Individual School Budgets With Inclusion,2245.50,Grant Payments,2324P04_00651,139835
Sandwell Metropolitan Borough Council,http://www.sandwell.gov.uk/info/200202/performance_and_spending/1079/payments_over_500,21-Jul-2023,Individual School Budgets With Inclusion,GLEBEFIELDS PRIMARY SCHOOL ,Individual School Budgets With Inclusion,2397.60,Grant Payments,2324P04_00652,60989
Sandwell Metropolitan Borough Council,http://www.sandwell.gov.uk/info/200202/performance_and_spending/1079/payments_over_500,21-Jul-2023,Individual School Budgets With Inclusion,REKA ONWUMELU,Individual School Budgets With Inclusion,2809.80,Grant Payments,2324P04_00653,123887
Sandwell Metropolitan Borough Council,http://www.sandwell.gov.uk/info/200202/performance_and_spending/1079/payments_over_500,21-Jul-2023,Individual School Budgets With Inclusion,JENNIFER LOUISE LEATHERLAND,Individual School Budgets With Inclusion,2889.90,Grant Payments,2324P04_00654,131850
Sandwell Metropolitan Borough Council,http://www.sandwell.gov.uk/info/200202/performance_and_spending/1079/payments_over_500,21-Jul-2023,Individual School Budgets With Inclusion,SACRED HEART PRIMARY SCHOOL  ,Individual School Budgets With Inclusion,3196.80,Grant Payments,2324P04_00655,61048
Sandwell Metropolitan Borough Council,http://www.sandwell.gov.uk/info/200202/performance_and_spending/1079/payments_over_500,21-Jul-2023,Individual School Budgets With Inclusion,ROWINA WINDSOR,Individual School Budgets With Inclusion,3448.80,Grant Payments,2324P04_00656,138305
Sandwell Metropolitan Borough Council,http://www.sandwell.gov.uk/info/200202/performance_and_spending/1079/payments_over_500,21-Jul-2023,Individual School Budgets With Inclusion,TENDER TROOPS DAY NURSERY AND CHILDREN HUB,Individual School Budgets With Inclusion,3467.70,Grant Payments,2324P04_00657,164824
Sandwell Metropolitan Borough Council,http://www.sandwell.gov.uk/info/200202/performance_and_spending/1079/payments_over_500,21-Jul-2023,Individual School Budgets With Inclusion,CROCKETTS LANE COMMUNITY PRIMARY SCHOOL ,Individual School Budgets With Inclusion,3996.00,Grant Payments,2324P04_00658,60980
Sandwell Metropolitan Borough Council,http://www.sandwell.gov.uk/info/200202/performance_and_spending/1079/payments_over_500,21-Jul-2023,Individual School Budgets With Inclusion,HANBURY PRIMARY SCHOOL    ,Individual School Budgets With Inclusion,3996.00,Grant Payments,2324P04_00659,60995
Sandwell Metropolitan Borough Council,http://www.sandwell.gov.uk/info/200202/performance_and_spending/1079/payments_over_500,21-Jul-2023,Individual School Budgets With Inclusion,WENDY MAXWELL,Individual School Budgets With Inclusion,4203.45,Grant Payments,2324P04_00660,37344
Sandwell Metropolitan Borough Council,http://www.sandwell.gov.uk/info/200202/performance_and_spending/1079/payments_over_500,21-Jul-2023,Individual School Budgets With Inclusion,ST PHILIPS CATHOLIC PRIMARY ,Individual School Budgets With Inclusion,4266.00,Grant Payments,2324P04_00661,61063
Sandwell Metropolitan Borough Council,http://www.sandwell.gov.uk/info/200202/performance_and_spending/1079/payments_over_500,21-Jul-2023,Individual School Budgets With Inclusion,LITTLE ACADEMY NURSERY,Individual School Budgets With Inclusion,4311.90,Grant Payments,2324P04_00662,81904
Sandwell Metropolitan Borough Council,http://www.sandwell.gov.uk/info/200202/performance_and_spending/1079/payments_over_500,21-Jul-2023,Individual School Budgets With Inclusion,TULIP DAY NURSERY LTD,Individual School Budgets With Inclusion,4312.80,Grant Payments,2324P04_00663,152250
Sandwell Metropolitan Borough Council,http://www.sandwell.gov.uk/info/200202/performance_and_spending/1079/payments_over_500,21-Jul-2023,Individual School Budgets With Inclusion,TINY STEPS,Individual School Budgets With Inclusion,4568.40,Grant Payments,2324P04_00664,125778
Sandwell Metropolitan Borough Council,http://www.sandwell.gov.uk/info/200202/performance_and_spending/1079/payments_over_500,21-Jul-2023,Individual School Budgets With Inclusion,CAP DAY NURSERY,Individual School Budgets With Inclusion,4763.70,Grant Payments,2324P04_00665,51154
Sandwell Metropolitan Borough Council,http://www.sandwell.gov.uk/info/200202/performance_and_spending/1079/payments_over_500,21-Jul-2023,Individual School Budgets With Inclusion,ST MATTHEWS CE PRIMARY SCHOOL  ,Individual School Budgets With Inclusion,4795.20,Grant Payments,2324P04_00666,61061
Sandwell Metropolitan Borough Council,http://www.sandwell.gov.uk/info/200202/performance_and_spending/1079/payments_over_500,21-Jul-2023,Individual School Budgets With Inclusion,AL KAHIR SCHOOL,Individual School Budgets With Inclusion,4850.10,Grant Payments,2324P04_00667,128728
Sandwell Metropolitan Borough Council,http://www.sandwell.gov.uk/info/200202/performance_and_spending/1079/payments_over_500,21-Jul-2023,Individual School Budgets With Inclusion,ST MICHAELS DAY NURSERY,Individual School Budgets With Inclusion,4890.60,Grant Payments,2324P04_00668,01698538
Sandwell Metropolitan Borough Council,http://www.sandwell.gov.uk/info/200202/performance_and_spending/1079/payments_over_500,21-Jul-2023,Individual School Budgets With Inclusion,BABY STEPS DAY CARE,Individual School Budgets With Inclusion,4905.90,Grant Payments,2324P04_00669,165672
Sandwell Metropolitan Borough Council,http://www.sandwell.gov.uk/info/200202/performance_and_spending/1079/payments_over_500,21-Jul-2023,Individual School Budgets With Inclusion,ROOTS & SHOOTS PLAYGROUP,Individual School Budgets With Inclusion,5046.30,Grant Payments,2324P04_00670,75502
Sandwell Metropolitan Borough Council,http://www.sandwell.gov.uk/info/200202/performance_and_spending/1079/payments_over_500,21-Jul-2023,Individual School Budgets With Inclusion,WHITECREST PRIMARY SCHOOL,Individual School Budgets With Inclusion,5103.00,Grant Payments,2324P04_00671,38087
Sandwell Metropolitan Borough Council,http://www.sandwell.gov.uk/info/200202/performance_and_spending/1079/payments_over_500,21-Jul-2023,Individual School Budgets With Inclusion,UPLANDS MANOR PRIMARY,Individual School Budgets With Inclusion,5119.20,Grant Payments,2324P04_00672,61071
Sandwell Metropolitan Borough Council,http://www.sandwell.gov.uk/info/200202/performance_and_spending/1079/payments_over_500,21-Jul-2023,Individual School Budgets With Inclusion,TWO STEPS PRE-SCHOOL,Individual School Budgets With Inclusion,5471.55,Grant Payments,2324P04_00673,109186
Sandwell Metropolitan Borough Council,http://www.sandwell.gov.uk/info/200202/performance_and_spending/1079/payments_over_500,21-Jul-2023,Individual School Budgets With Inclusion,ALBERT PRITCHARD INFANT SCHOOL,Individual School Budgets With Inclusion,5594.40,Grant Payments,2324P04_00674,60962
Sandwell Metropolitan Borough Council,http://www.sandwell.gov.uk/info/200202/performance_and_spending/1079/payments_over_500,21-Jul-2023,Individual School Budgets With Inclusion,DEVONSHIRE INFANTS ACADEMY,Individual School Budgets With Inclusion,5594.40,Grant Payments,2324P04_00675,118366
Sandwell Metropolitan Borough Council,http://www.sandwell.gov.uk/info/200202/performance_and_spending/1079/payments_over_500,21-Jul-2023,Individual School Budgets With Inclusion,CONFEDERATION OF BANGLADESHI ORGANISATIONS (CBO) LIMITED,Individual School Budgets With Inclusion,5652.90,Grant Payments,2324P04_00676,10034
Sandwell Metropolitan Borough Council,http://www.sandwell.gov.uk/info/200202/performance_and_spending/1079/payments_over_500,21-Jul-2023,Individual School Budgets With Inclusion,TIP TOP DAY NURSERY WEDNESBURY,Individual School Budgets With Inclusion,5767.20,Grant Payments,2324P04_00677,147082
Sandwell Metropolitan Borough Council,http://www.sandwell.gov.uk/info/200202/performance_and_spending/1079/payments_over_500,21-Jul-2023,Individual School Budgets With Inclusion,CHRIST CHURCH C OF E PRIMARY SCHOOL,Individual School Budgets With Inclusion,5874.12,Grant Payments,2324P04_00678,1705
Sandwell Metropolitan Borough Council,http://www.sandwell.gov.uk/info/200202/performance_and_spending/1079/payments_over_500,21-Jul-2023,Individual School Budgets With Inclusion,ST CATHERINE OF SIENA MULTI ACADEMY COMPANY,Individual School Budgets With Inclusion,5972.40,Grant Payments,2324P04_00679,61052
Sandwell Metropolitan Borough Council,http://www.sandwell.gov.uk/info/200202/performance_and_spending/1079/payments_over_500,21-Jul-2023,Individual School Budgets With Inclusion,ST JAMES C OF E PRIMARY SCHOOL,Individual School Budgets With Inclusion,5972.40,Grant Payments,2324P04_00680,61054
Sandwell Metropolitan Borough Council,http://www.sandwell.gov.uk/info/200202/performance_and_spending/1079/payments_over_500,21-Jul-2023,Individual School Budgets With Inclusion,CONIFERS DAY NURSERY LTD,Individual School Budgets With Inclusion,6202.80,Grant Payments,2324P04_00681,131957
Sandwell Metropolitan Borough Council,http://www.sandwell.gov.uk/info/200202/performance_and_spending/1079/payments_over_500,21-Jul-2023,Individual School Budgets With Inclusion,BLOXCIDGE HOUSE DAY NURSERY,Individual School Budgets With Inclusion,6316.20,Grant Payments,2324P04_00682,82862
Sandwell Metropolitan Borough Council,http://www.sandwell.gov.uk/info/200202/performance_and_spending/1079/payments_over_500,21-Jul-2023,Individual School Budgets With Inclusion,LITTLE ANGELS DAY NURSERY LIMITED,Individual School Budgets With Inclusion,6316.20,Grant Payments,2324P04_00683,10207
Sandwell Metropolitan Borough Council,http://www.sandwell.gov.uk/info/200202/performance_and_spending/1079/payments_over_500,21-Jul-2023,Individual School Budgets With Inclusion,ALL SAINTS CE PRIMARY SCHOOL,Individual School Budgets With Inclusion,6393.60,Grant Payments,2324P04_00684,60964
Sandwell Metropolitan Borough Council,http://www.sandwell.gov.uk/info/200202/performance_and_spending/1079/payments_over_500,21-Jul-2023,Individual School Budgets With Inclusion,BLACKHEATH PRIMARY SCHOOL   ,Individual School Budgets With Inclusion,6393.60,Grant Payments,2324P04_00685,60968
Sandwell Metropolitan Borough Council,http://www.sandwell.gov.uk/info/200202/performance_and_spending/1079/payments_over_500,21-Jul-2023,Individual School Budgets With Inclusion,GRACE MARY PRIMARY SCHOOL  ,Individual School Budgets With Inclusion,6393.60,Grant Payments,2324P04_00686,60991
Sandwell Metropolitan Borough Council,http://www.sandwell.gov.uk/info/200202/performance_and_spending/1079/payments_over_500,21-Jul-2023,Individual School Budgets With Inclusion,PENNYHILL PRIMARY,Individual School Budgets With Inclusion,6393.60,Grant Payments,2324P04_00687,73125
Sandwell Metropolitan Borough Council,http://www.sandwell.gov.uk/info/200202/performance_and_spending/1079/payments_over_500,21-Jul-2023,Individual School Budgets With Inclusion,REDDAL HILL PRIMARY SCHOOL ,Individual School Budgets With Inclusion,6393.60,Grant Payments,2324P04_00688,61043
Sandwell Metropolitan Borough Council,http://www.sandwell.gov.uk/info/200202/performance_and_spending/1079/payments_over_500,21-Jul-2023,Individual School Budgets With Inclusion,ST MARTINS CE PRIMARY SCHOOL,Individual School Budgets With Inclusion,6393.60,Grant Payments,2324P04_00689,61058
Sandwell Metropolitan Borough Council,http://www.sandwell.gov.uk/info/200202/performance_and_spending/1079/payments_over_500,21-Jul-2023,Individual School Budgets With Inclusion,ST MARY MAGDALENE CE PRIMARY SCHOOL,Individual School Budgets With Inclusion,6393.60,Grant Payments,2324P04_00690,61059
Sandwell Metropolitan Borough Council,http://www.sandwell.gov.uk/info/200202/performance_and_spending/1079/payments_over_500,21-Jul-2023,Individual School Budgets With Inclusion,STEPPING STONES NURSERY,Individual School Budgets With Inclusion,6597.18,Grant Payments,2324P04_00691,50029
Sandwell Metropolitan Borough Council,http://www.sandwell.gov.uk/info/200202/performance_and_spending/1079/payments_over_500,21-Jul-2023,Individual School Budgets With Inclusion,KANGAROO POUCH CHARLEMONT,Individual School Budgets With Inclusion,6631.20,Grant Payments,2324P04_00692,117283
Sandwell Metropolitan Borough Council,http://www.sandwell.gov.uk/info/200202/performance_and_spending/1079/payments_over_500,21-Jul-2023,Individual School Budgets With Inclusion,PITTA PATTA DAYCARE,Individual School Budgets With Inclusion,6642.00,Grant Payments,2324P04_00693,114742
Sandwell Metropolitan Borough Council,http://www.sandwell.gov.uk/info/200202/performance_and_spending/1079/payments_over_500,21-Jul-2023,Individual School Budgets With Inclusion,SMARTY PANTS @ LIGHTWOODS HOUSE LTD,Individual School Budgets With Inclusion,6720.30,Grant Payments,2324P04_00694,130645
Sandwell Metropolitan Borough Council,http://www.sandwell.gov.uk/info/200202/performance_and_spending/1079/payments_over_500,21-Jul-2023,Individual School Budgets With Inclusion,FIRST STEPS OLDBURY,Individual School Budgets With Inclusion,7077.60,Grant Payments,2324P04_00695,118886
Sandwell Metropolitan Borough Council,http://www.sandwell.gov.uk/info/200202/performance_and_spending/1079/payments_over_500,21-Jul-2023,Individual School Budgets With Inclusion,BURNT TREE PRIMARY SCHOOL,Individual School Budgets With Inclusion,7192.80,Grant Payments,2324P04_00696,60974
Sandwell Metropolitan Borough Council,http://www.sandwell.gov.uk/info/200202/performance_and_spending/1079/payments_over_500,21-Jul-2023,Individual School Budgets With Inclusion,HARGATE PRIMARY SCHOOL,Individual School Budgets With Inclusion,7192.80,Grant Payments,2324P04_00697,60999
Sandwell Metropolitan Borough Council,http://www.sandwell.gov.uk/info/200202/performance_and_spending/1079/payments_over_500,21-Jul-2023,Individual School Budgets With Inclusion,HOLYHEAD PRIMARY ACADEMY,Individual School Budgets With Inclusion,7192.80,Grant Payments,2324P04_00698,61005
Sandwell Metropolitan Borough Council,http://www.sandwell.gov.uk/info/200202/performance_and_spending/1079/payments_over_500,21-Jul-2023,Individual School Budgets With Inclusion,ST FRANCIS XAVIER CATHOLIC PRIMARY,Individual School Budgets With Inclusion,7192.80,Grant Payments,2324P04_00699,61051
Sandwell Metropolitan Borough Council,http://www.sandwell.gov.uk/info/200202/performance_and_spending/1079/payments_over_500,21-Jul-2023,Individual School Budgets With Inclusion,KANGAROO POUCH AT TIVIDALE,Individual School Budgets With Inclusion,7365.60,Grant Payments,2324P04_00700,113715
Sandwell Metropolitan Borough Council,http://www.sandwell.gov.uk/info/200202/performance_and_spending/1079/payments_over_500,21-Jul-2023,Individual School Budgets With Inclusion,PLAYHOUSE DAY NURSERY,Individual School Budgets With Inclusion,7403.40,Grant Payments,2324P04_00701,01586669
Sandwell Metropolitan Borough Council,http://www.sandwell.gov.uk/info/200202/performance_and_spending/1079/payments_over_500,21-Jul-2023,Individual School Budgets With Inclusion,KANGAROO POUCH LIMITED,Individual School Budgets With Inclusion,7513.20,Grant Payments,2324P04_00702,106981
Sandwell Metropolitan Borough Council,http://www.sandwell.gov.uk/info/200202/performance_and_spending/1079/payments_over_500,21-Jul-2023,Individual School Budgets With Inclusion,SPON LANE DAY NURSERY LIMITED,Individual School Budgets With Inclusion,7539.30,Grant Payments,2324P04_00703,127024
Sandwell Metropolitan Borough Council,http://www.sandwell.gov.uk/info/200202/performance_and_spending/1079/payments_over_500,21-Jul-2023,Individual School Budgets With Inclusion,MOORLANDS LITTLE LEARNERS PLAYGROUP,Individual School Budgets With Inclusion,7723.80,Grant Payments,2324P04_00704,46390
Sandwell Metropolitan Borough Council,http://www.sandwell.gov.uk/info/200202/performance_and_spending/1079/payments_over_500,21-Jul-2023,Individual School Budgets With Inclusion,CAUSEWAY GREEN PRIMARY SCHOOL ,Individual School Budgets With Inclusion,7992.00,Grant Payments,2324P04_00705,60976
Sandwell Metropolitan Borough Council,http://www.sandwell.gov.uk/info/200202/performance_and_spending/1079/payments_over_500,21-Jul-2023,Individual School Budgets With Inclusion,OLD HILL PRIMARY SCHOOL  ,Individual School Budgets With Inclusion,7992.00,Grant Payments,2324P04_00706,04014504
Sandwell Metropolitan Borough Council,http://www.sandwell.gov.uk/info/200202/performance_and_spending/1079/payments_over_500,21-Jul-2023,Individual School Budgets With Inclusion,BANANA MOON DAY NURSERY,Individual School Budgets With Inclusion,7998.72,Grant Payments,2324P04_00707,124220
Sandwell Metropolitan Borough Council,http://www.sandwell.gov.uk/info/200202/performance_and_spending/1079/payments_over_500,21-Jul-2023,Individual School Budgets With Inclusion,THE TODDLER HOUSE LIMITED,Individual School Budgets With Inclusion,8163.00,Grant Payments,2324P04_00708,122166
Sandwell Metropolitan Borough Council,http://www.sandwell.gov.uk/info/200202/performance_and_spending/1079/payments_over_500,21-Jul-2023,Individual School Budgets With Inclusion,TINY TOEZ LIMITED,Individual School Budgets With Inclusion,8176.14,Grant Payments,2324P04_00709,23618
Sandwell Metropolitan Borough Council,http://www.sandwell.gov.uk/info/200202/performance_and_spending/1079/payments_over_500,21-Jul-2023,Individual School Budgets With Inclusion,KAI DRUMS,Individual School Budgets With Inclusion,8300.70,Grant Payments,2324P04_00710,120729
Sandwell Metropolitan Borough Council,http://www.sandwell.gov.uk/info/200202/performance_and_spending/1079/payments_over_500,21-Jul-2023,Individual School Budgets With Inclusion,FIRST STEPS DAY NURSERY,Individual School Budgets With Inclusion,8377.20,Grant Payments,2324P04_00711,51155
Sandwell Metropolitan Borough Council,http://www.sandwell.gov.uk/info/200202/performance_and_spending/1079/payments_over_500,21-Jul-2023,Individual School Budgets With Inclusion,BOOKWORMS DAYCARE LIMITED,Individual School Budgets With Inclusion,8514.45,Grant Payments,2324P04_00712,114741
Sandwell Metropolitan Borough Council,http://www.sandwell.gov.uk/info/200202/performance_and_spending/1079/payments_over_500,21-Jul-2023,Individual School Budgets With Inclusion,JUNIPER'S PRESCHOOL,Individual School Budgets With Inclusion,8730.45,Grant Payments,2324P04_00713,154579
Sandwell Metropolitan Borough Council,http://www.sandwell.gov.uk/info/200202/performance_and_spending/1079/payments_over_500,21-Jul-2023,Individual School Budgets With Inclusion,HARVILLS HAWTHORN PRIMARY SCHOOL ,Individual School Budgets With Inclusion,8791.20,Grant Payments,2324P04_00714,01782074
Sandwell Metropolitan Borough Council,http://www.sandwell.gov.uk/info/200202/performance_and_spending/1079/payments_over_500,21-Jul-2023,Individual School Budgets With Inclusion,ST MARGARETS C OF E PRIMARY SCHOOL,Individual School Budgets With Inclusion,8791.20,Grant Payments,2324P04_00715,61057
Sandwell Metropolitan Borough Council,http://www.sandwell.gov.uk/info/200202/performance_and_spending/1079/payments_over_500,21-Jul-2023,Individual School Budgets With Inclusion,ST MARYS RC PRIMARY SCHOOL ,Individual School Budgets With Inclusion,8791.20,Grant Payments,2324P04_00716,61060
Sandwell Metropolitan Borough Council,http://www.sandwell.gov.uk/info/200202/performance_and_spending/1079/payments_over_500,21-Jul-2023,Individual School Budgets With Inclusion,TIVIDALE HALL PRIMARY SCHOOL ,Individual School Budgets With Inclusion,8791.20,Grant Payments,2324P04_00717,61070
Sandwell Metropolitan Borough Council,http://www.sandwell.gov.uk/info/200202/performance_and_spending/1079/payments_over_500,21-Jul-2023,Individual School Budgets With Inclusion,MINNS LIMITED,Individual School Budgets With Inclusion,9138.60,Grant Payments,2324P04_00718,120067
Sandwell Metropolitan Borough Council,http://www.sandwell.gov.uk/info/200202/performance_and_spending/1079/payments_over_500,21-Jul-2023,Individual School Budgets With Inclusion,ADVENTURE QUEST (GREAT BRIDGE) LTD,Individual School Budgets With Inclusion,9140.40,Grant Payments,2324P04_00719,153563
Sandwell Metropolitan Borough Council,http://www.sandwell.gov.uk/info/200202/performance_and_spending/1079/payments_over_500,21-Jul-2023,Individual School Budgets With Inclusion,LITTLE LEGEND NURSERIES LTD,Individual School Budgets With Inclusion,9532.80,Grant Payments,2324P04_00720,117890
Sandwell Metropolitan Borough Council,http://www.sandwell.gov.uk/info/200202/performance_and_spending/1079/payments_over_500,21-Jul-2023,Individual School Budgets With Inclusion,HALL GREEN PRIMARY SCHOOL ,Individual School Budgets With Inclusion,9590.40,Grant Payments,2324P04_00721,60996
Sandwell Metropolitan Borough Council,http://www.sandwell.gov.uk/info/200202/performance_and_spending/1079/payments_over_500,21-Jul-2023,Individual School Budgets With Inclusion,HAMSTEAD INFANT SCHOOL,Individual School Budgets With Inclusion,9590.40,Grant Payments,2324P04_00722,60997
Sandwell Metropolitan Borough Council,http://www.sandwell.gov.uk/info/200202/performance_and_spending/1079/payments_over_500,21-Jul-2023,Individual School Budgets With Inclusion,ST JOHN BOSCO RC PRIMARY SCHOOL   ,Individual School Budgets With Inclusion,9590.40,Grant Payments,2324P04_00723,61055
Sandwell Metropolitan Borough Council,http://www.sandwell.gov.uk/info/200202/performance_and_spending/1079/payments_over_500,21-Jul-2023,Individual School Budgets With Inclusion,TEMPLE MEADOW PRIMARY SCHOOL  ,Individual School Budgets With Inclusion,9590.40,Grant Payments,2324P04_00724,61065
Sandwell Metropolitan Borough Council,http://www.sandwell.gov.uk/info/200202/performance_and_spending/1079/payments_over_500,21-Jul-2023,Individual School Budgets With Inclusion,LITTLE LEARNERS LTD,Individual School Budgets With Inclusion,9621.45,Grant Payments,2324P04_00725,01424133
Sandwell Metropolitan Borough Council,http://www.sandwell.gov.uk/info/200202/performance_and_spending/1079/payments_over_500,21-Jul-2023,Individual School Budgets With Inclusion,HAPPY DAYS NURSERY (GREETS GREEN),Individual School Budgets With Inclusion,9762.30,Grant Payments,2324P04_00726,125840
Sandwell Metropolitan Borough Council,http://www.sandwell.gov.uk/info/200202/performance_and_spending/1079/payments_over_500,21-Jul-2023,Individual School Budgets With Inclusion,KANGAROO POUCH AT GREAT BRIDGE,Individual School Budgets With Inclusion,9903.60,Grant Payments,2324P04_00727,129771
Sandwell Metropolitan Borough Council,http://www.sandwell.gov.uk/info/200202/performance_and_spending/1079/payments_over_500,21-Jul-2023,Individual School Budgets With Inclusion,TIMBERTREE NEIGHBOURHOOD NURSERY,Individual School Budgets With Inclusion,10238.85,Grant Payments,2324P04_00728,135664
Sandwell Metropolitan Borough Council,http://www.sandwell.gov.uk/info/200202/performance_and_spending/1079/payments_over_500,21-Jul-2023,Individual School Budgets With Inclusion,LILLIPUT LODGE CHILDRENS DAY NURSERY,Individual School Budgets With Inclusion,10346.85,Grant Payments,2324P04_00729,2980
Sandwell Metropolitan Borough Council,http://www.sandwell.gov.uk/info/200202/performance_and_spending/1079/payments_over_500,21-Jul-2023,Individual School Budgets With Inclusion,OLD PARK PRIMARY SCHOOL  ,Individual School Budgets With Inclusion,10389.60,Grant Payments,2324P04_00730,61039
Sandwell Metropolitan Borough Council,http://www.sandwell.gov.uk/info/200202/performance_and_spending/1079/payments_over_500,21-Jul-2023,Individual School Budgets With Inclusion,VICTORIA PARK PRIMARY ACADEMY,Individual School Budgets With Inclusion,10389.60,Grant Payments,2324P04_00731,106209
Sandwell Metropolitan Borough Council,http://www.sandwell.gov.uk/info/200202/performance_and_spending/1079/payments_over_500,21-Jul-2023,Individual School Budgets With Inclusion,OUR LADY AND ST HUBERTS CATHOLIC PRIMARY SCHOOL,Individual School Budgets With Inclusion,10429.92,Grant Payments,2324P04_00732,61053
Sandwell Metropolitan Borough Council,http://www.sandwell.gov.uk/info/200202/performance_and_spending/1079/payments_over_500,21-Jul-2023,Individual School Budgets With Inclusion,UNITED KIDS LIMITED,Individual School Budgets With Inclusion,10560.60,Grant Payments,2324P04_00733,136360
Sandwell Metropolitan Borough Council,http://www.sandwell.gov.uk/info/200202/performance_and_spending/1079/payments_over_500,21-Jul-2023,Individual School Budgets With Inclusion,N & K VARMA LIMITED T/A (KIDDIES PLAYHOUSE TIPTON),Individual School Budgets With Inclusion,10776.60,Grant Payments,2324P04_00734,26124
Sandwell Metropolitan Borough Council,http://www.sandwell.gov.uk/info/200202/performance_and_spending/1079/payments_over_500,21-Jul-2023,Individual School Budgets With Inclusion,PRECIOUS TIMES DAY NURSERY,Individual School Budgets With Inclusion,10876.95,Grant Payments,2324P04_00735,165946
Sandwell Metropolitan Borough Council,http://www.sandwell.gov.uk/info/200202/performance_and_spending/1079/payments_over_500,21-Jul-2023,Individual School Budgets With Inclusion,GNG NURSERY,Individual School Budgets With Inclusion,10886.40,Grant Payments,2324P04_00736,114805
Sandwell Metropolitan Borough Council,http://www.sandwell.gov.uk/info/200202/performance_and_spending/1079/payments_over_500,21-Jul-2023,Individual School Budgets With Inclusion,LANGLEY PRIMARY SCHOOL,Individual School Budgets With Inclusion,11091.60,Grant Payments,2324P04_00737,61011
Sandwell Metropolitan Borough Council,http://www.sandwell.gov.uk/info/200202/performance_and_spending/1079/payments_over_500,21-Jul-2023,Individual School Budgets With Inclusion,FAIRYTALES NURSERY LTD,Individual School Budgets With Inclusion,11101.05,Grant Payments,2324P04_00738,106247
Sandwell Metropolitan Borough Council,http://www.sandwell.gov.uk/info/200202/performance_and_spending/1079/payments_over_500,21-Jul-2023,Individual School Budgets With Inclusion,BLEAKHOUSE PRIMARY SCHOOL.,Individual School Budgets With Inclusion,11188.80,Grant Payments,2324P04_00739,60969
Sandwell Metropolitan Borough Council,http://www.sandwell.gov.uk/info/200202/performance_and_spending/1079/payments_over_500,21-Jul-2023,Individual School Budgets With Inclusion,ROWLEY VILLAGE DAY NURSERY,Individual School Budgets With Inclusion,11202.24,Grant Payments,2324P04_00740,24228
Sandwell Metropolitan Borough Council,http://www.sandwell.gov.uk/info/200202/performance_and_spending/1079/payments_over_500,21-Jul-2023,Individual School Budgets With Inclusion,UNITED KIDS CHILDCARE,Individual School Budgets With Inclusion,11319.75,Grant Payments,2324P04_00741,134806
Sandwell Metropolitan Borough Council,http://www.sandwell.gov.uk/info/200202/performance_and_spending/1079/payments_over_500,21-Jul-2023,Individual School Budgets With Inclusion,BRIGHT LIGHTS DAY NURSERY,Individual School Budgets With Inclusion,11324.70,Grant Payments,2324P04_00742,89877
Sandwell Metropolitan Borough Council,http://www.sandwell.gov.uk/info/200202/performance_and_spending/1079/payments_over_500,21-Jul-2023,Individual School Budgets With Inclusion,ROWLEY HALL PRIMARY SCHOOL ,Individual School Budgets With Inclusion,11348.64,Grant Payments,2324P04_00743,61046
Sandwell Metropolitan Borough Council,http://www.sandwell.gov.uk/info/200202/performance_and_spending/1079/payments_over_500,21-Jul-2023,Individual School Budgets With Inclusion,5 STAR DAY NURSERY - OLDBURY,Individual School Budgets With Inclusion,11865.60,Grant Payments,2324P04_00744,120730
Sandwell Metropolitan Borough Council,http://www.sandwell.gov.uk/info/200202/performance_and_spending/1079/payments_over_500,21-Jul-2023,Individual School Budgets With Inclusion,LYNG PRIMARY SCHOOL  ,Individual School Budgets With Inclusion,11988.00,Grant Payments,2324P04_00745,61026
Sandwell Metropolitan Borough Council,http://www.sandwell.gov.uk/info/200202/performance_and_spending/1079/payments_over_500,21-Jul-2023,Individual School Budgets With Inclusion,PARK HILL PRIMARY SCHOOL,Individual School Budgets With Inclusion,11988.00,Grant Payments,2324P04_00746,04017201
Sandwell Metropolitan Borough Council,http://www.sandwell.gov.uk/info/200202/performance_and_spending/1079/payments_over_500,21-Jul-2023,Individual School Budgets With Inclusion,SMARTY PANTS PRIVATE DAY NURSERY LTD,Individual School Budgets With Inclusion,12193.20,Grant Payments,2324P04_00747,74037
